Body Name,Vendor Number,Vendor Name,Amount,Cost Centre,Service Label,BVCode,Period
Slough Borough Council,806901,4way Consulting Ltd,"3,638.98",P209,Capital,Capital Charges,Jun-21
Slough Borough Council,1055,A J Chapman,"69,263.83",F123,Schools,Supplies and Services,Jun-21
Slough Borough Council,806225,Abandoned Vehicle Contractor Ltd,"2,480.00",H253,Neighbourhood Services,Supplies and Services,Jun-21
Slough Borough Council,806225,Abandoned Vehicle Contractor Ltd,"1,680.00",H253,Neighbourhood Services,Transport,Jun-21
Slough Borough Council,536,Ability Housing Association,"2,798.65",M42E,Adult Social Care Operations,Supplies and Services,Jun-21
Slough Borough Council,536,Ability Housing Association,"2,477.31",M42E,Adult Social Care Operations,Supplies and Services,Jun-21
Slough Borough Council,536,Ability Housing Association,"2,675.13",M42E,Adult Social Care Operations,Supplies and Services,Jun-21
Slough Borough Council,536,Ability Housing Association,"1,855.72",M42E,Adult Social Care Operations,Supplies and Services,Jun-21
Slough Borough Council,536,Ability Housing Association,"3,076.80",M42E,Adult Social Care Operations,Supplies and Services,Jun-21
Slough Borough Council,536,Ability Housing Association,"1,359.74",M42E,Adult Social Care Operations,Supplies and Services,Jun-21
Slough Borough Council,536,Ability Housing Association,"2,630.94",M42E,Adult Social Care Operations,Supplies and Services,Jun-21
Slough Borough Council,536,Ability Housing Association,"1,446.01",M42E,Adult Social Care Operations,Supplies and Services,Jun-21
Slough Borough Council,536,Ability Housing Association,"1,578.57",M44E,Adult Social Care Operations,Supplies and Services,Jun-21
Slough Borough Council,536,Ability Housing Association,955.98,M44E,Adult Social Care Operations,Supplies and Services,Jun-21
Slough Borough Council,536,Ability Housing Association,"2,723.33",M44E,Adult Social Care Operations,Supplies and Services,Jun-21
Slough Borough Council,536,Ability Housing Association,"2,381.91",M44E,Adult Social Care Operations,Supplies and Services,Jun-21
Slough Borough Council,536,Ability Housing Association,"1,815.55",M44E,Adult Social Care Operations,Supplies and Services,Jun-21
Slough Borough Council,536,Ability Housing Association,"1,883.84",M44E,Adult Social Care Operations,Supplies and Services,Jun-21
Slough Borough Council,536,Ability Housing Association,"2,301.58",M44E,Adult Social Care Operations,Supplies and Services,Jun-21
Slough Borough Council,536,Ability Housing Association,"2,490.36",M44E,Adult Social Care Operations,Supplies and Services,Jun-21
Slough Borough Council,536,Ability Housing Association,"2,369.86",M44E,Adult Social Care Operations,Supplies and Services,Jun-21
Slough Borough Council,536,Ability Housing Association,"2,221.24",M44E,Adult Social Care Operations,Supplies and Services,Jun-21
Slough Borough Council,536,Ability Housing Association,"2,329.69",M44E,Adult Social Care Operations,Supplies and Services,Jun-21
Slough Borough Council,536,Ability Housing Association,"2,169.02",M44E,Adult Social Care Operations,Supplies and Services,Jun-21
Slough Borough Council,807554,Acorn Care & Education Ltd,"22,678.00",F462,DSG - High Needs Block,Supplies and Services,Jun-21
Slough Borough Council,807554,Acorn Care & Education Ltd,"22,678.00",F462,DSG - High Needs Block,Supplies and Services,Jun-21
Slough Borough Council,807554,Acorn Care & Education Ltd,"14,235.80",F462,DSG - High Needs Block,Supplies and Services,Jun-21
Slough Borough Council,807554,Acorn Care & Education Ltd,"14,235.80",F462,DSG - High Needs Block,Supplies and Services,Jun-21
Slough Borough Council,1506,Acorns Project Limited,"1,000.00",P214,Capital,Capital Charges,Jun-21
Slough Borough Council,1506,Acorns Project Limited,800.00,P235,Capital,Capital Charges,Jun-21
Slough Borough Council,1506,Acorns Project Limited,"1,000.00",P235,Capital,Capital Charges,Jun-21
Slough Borough Council,1506,Acorns Project Limited,800.00,P235,Capital,Capital Charges,Jun-21
Slough Borough Council,807917,Adapted Vehicle Hire,916.20,M50A,Major Infrastructure Projects,Transport,Jun-21
Slough Borough Council,807917,Adapted Vehicle Hire,946.74,M50A,Major Infrastructure Projects,Transport,Jun-21
Slough Borough Council,807917,Adapted Vehicle Hire,946.74,M50A,Major Infrastructure Projects,Transport,Jun-21
Slough Borough Council,2855,Advance Housing & Support Ltd,"1,864.72",M42F,Adult Social Care Operations,Supplies and Services,Jun-21
Slough Borough Council,2855,Advance Housing & Support Ltd,"1,097.40",M42F,Adult Social Care Operations,Supplies and Services,Jun-21
Slough Borough Council,2855,Advance Housing & Support Ltd,"1,170.56",M42F,Adult Social Care Operations,Supplies and Services,Jun-21
Slough Borough Council,2855,Advance Housing & Support Ltd,"1,609.52",M42F,Adult Social Care Operations,Supplies and Services,Jun-21
Slough Borough Council,2855,Advance Housing & Support Ltd,731.60,M42F,Adult Social Care Operations,Supplies and Services,Jun-21
Slough Borough Council,2135,Adventure Learning Childcare Limited,"12,403.57",F909,DSG - Early Years,Supplies and Services,Jun-21
Slough Borough Council,807702,AEA Consulting Worldwide Ltd,"9,840.00",C010,Communities and Leisure,Supplies and Services,Jun-21
Slough Borough Council,805178,AFM Transport Limited,"4,527.60",D880,Direct Service Organisation (DSO),Supplies and Services,Jun-21
Slough Borough Council,805178,AFM Transport Limited,"1,437.50",D880,Direct Service Organisation (DSO),Supplies and Services,Jun-21
Slough Borough Council,805178,AFM Transport Limited,"10,186.51",D880,Direct Service Organisation (DSO),Supplies and Services,Jun-21
Slough Borough Council,805178,AFM Transport Limited,"8,413.44",D880,Direct Service Organisation (DSO),Supplies and Services,Jun-21
Slough Borough Council,805178,AFM Transport Limited,"6,716.05",D880,Direct Service Organisation (DSO),Supplies and Services,Jun-21
Slough Borough Council,805178,AFM Transport Limited,"5,000.00",D880,Direct Service Organisation (DSO),Supplies and Services,Jun-21
Slough Borough Council,805178,AFM Transport Limited,"5,951.70",D880,Direct Service Organisation (DSO),Supplies and Services,Jun-21
Slough Borough Council,805178,AFM Transport Limited,"47,850.00",D880,Direct Service Organisation (DSO),Supplies and Services,Jun-21
Slough Borough Council,805178,AFM Transport Limited,"4,241.90",D880,Direct Service Organisation (DSO),Supplies and Services,Jun-21
Slough Borough Council,805178,AFM Transport Limited,"5,135.50",D880,Direct Service Organisation (DSO),Supplies and Services,Jun-21
Slough Borough Council,805178,AFM Transport Limited,"5,066.34",D880,Direct Service Organisation (DSO),Supplies and Services,Jun-21
Slough Borough Council,805178,AFM Transport Limited,"1,512.00",D880,Direct Service Organisation (DSO),Supplies and Services,Jun-21
Slough Borough Council,2486,Agriculture And Estate Services Limited,660.00,P220,Capital,Capital Charges,Jun-21
Slough Borough Council,2486,Agriculture And Estate Services Limited,505.00,D412,Planning and Transport,Supplies and Services,Jun-21
Slough Borough Council,2956,Alpha Parking Limited,"3,480.00",D124,Planning and Transport,Supplies and Services,Jun-21
Slough Borough Council,2956,Alpha Parking Limited,525.00,D124,Planning and Transport,Supplies and Services,Jun-21
Slough Borough Council,2956,Alpha Parking Limited,990.00,D124,Planning and Transport,Supplies and Services,Jun-21
Slough Borough Council,2197,Altwood Housing Ltd,744.00,H205,Housing (People) Services,Supplies and Services,Jun-21
Slough Borough Council,2197,Altwood Housing Ltd,"1,350.00",H205,Housing (People) Services,Supplies and Services,Jun-21
Slough Borough Council,2197,Altwood Housing Ltd,540.00,H205,Housing (People) Services,Supplies and Services,Jun-21
Slough Borough Council,2197,Altwood Housing Ltd,930.00,H205,Housing (People) Services,Supplies and Services,Jun-21
Slough Borough Council,2197,Altwood Housing Ltd,750.00,H205,Housing (People) Services,Supplies and Services,Jun-21
Slough Borough Council,2197,Altwood Housing Ltd,744.00,H205,Housing (People) Services,Supplies and Services,Jun-21
Slough Borough Council,2197,Altwood Housing Ltd,"2,480.00",H205,Housing (People) Services,Supplies and Services,Jun-21
Slough Borough Council,2197,Altwood Housing Ltd,765.00,H205,Housing (People) Services,Supplies and Services,Jun-21
Slough Borough Council,2197,Altwood Housing Ltd,"1,240.00",H205,Housing (People) Services,Supplies and Services,Jun-21
Slough Borough Council,2197,Altwood Housing Ltd,"1,705.00",H205,Housing (People) Services,Supplies and Services,Jun-21
Slough Borough Council,2197,Altwood Housing Ltd,"1,705.00",H205,Housing (People) Services,Supplies and Services,Jun-21
Slough Borough Council,2197,Altwood Housing Ltd,"1,395.00",H205,Housing (People) Services,Supplies and Services,Jun-21
Slough Borough Council,2197,Altwood Housing Ltd,"2,325.00",H205,Housing (People) Services,Supplies and Services,Jun-21
Slough Borough Council,2197,Altwood Housing Ltd,650.00,H205,Housing (People) Services,Supplies and Services,Jun-21
Slough Borough Council,2197,Altwood Housing Ltd,930.00,H205,Housing (People) Services,Supplies and Services,Jun-21
Slough Borough Council,2197,Altwood Housing Ltd,930.00,H205,Housing (People) Services,Supplies and Services,Jun-21
Slough Borough Council,2197,Altwood Housing Ltd,930.00,H205,Housing (People) Services,Supplies and Services,Jun-21
Slough Borough Council,2197,Altwood Housing Ltd,930.00,H205,Housing (People) Services,Supplies and Services,Jun-21
Slough Borough Council,2197,Altwood Housing Ltd,930.00,H205,Housing (People) Services,Supplies and Services,Jun-21
Slough Borough Council,2197,Altwood Housing Ltd,"1,705.00",H205,Housing (People) Services,Supplies and Services,Jun-21
Slough Borough Council,2197,Altwood Housing Ltd,"2,325.00",H205,Housing (People) Services,Supplies and Services,Jun-21
Slough Borough Council,2197,Altwood Housing Ltd,"1,705.00",H205,Housing (People) Services,Supplies and Services,Jun-21
Slough Borough Council,2197,Altwood Housing Ltd,930.00,H205,Housing (People) Services,Supplies and Services,Jun-21
Slough Borough Council,2197,Altwood Housing Ltd,930.00,H205,Housing (People) Services,Supplies and Services,Jun-21
Slough Borough Council,2197,Altwood Housing Ltd,930.00,H205,Housing (People) Services,Supplies and Services,Jun-21
Slough Borough Council,2197,Altwood Housing Ltd,"2,635.00",H205,Housing (People) Services,Supplies and Services,Jun-21
Slough Borough Council,2197,Altwood Housing Ltd,930.00,H205,Housing (People) Services,Supplies and Services,Jun-21
Slough Borough Council,2197,Altwood Housing Ltd,"1,860.00",H205,Housing (People) Services,Supplies and Services,Jun-21
Slough Borough Council,2197,Altwood Housing Ltd,930.00,H205,Housing (People) Services,Supplies and Services,Jun-21
Slough Borough Council,2197,Altwood Housing Ltd,930.00,H205,Housing (People) Services,Supplies and Services,Jun-21
Slough Borough Council,86,Altwood Properties Ltd,"37,344.68",H205,Housing (People) Services,Premises,Jun-21
Slough Borough Council,807515,Always Growing Together Community Interest Company Limited,"8,943.17",F909,DSG - Early Years,Supplies and Services,Jun-21
Slough Borough Council,807579,Andrea Goddard,700.00,B409,People,Supplies and Services,Jun-21
Slough Borough Council,807365,Anshoo Kapila-O�Shea,"3,136.90",F146,Early Years & Prevention,Indirect Employee Expenses,Jun-21
Slough Borough Council,3137,Applegarth Care Home Ltd,"3,400.00",M25C,Adult Social Care Operations,Supplies and Services,Jun-21
Slough Borough Council,3137,Applegarth Care Home Ltd,"3,200.00",M25C,Adult Social Care Operations,Supplies and Services,Jun-21
Slough Borough Council,3137,Applegarth Care Home Ltd,"3,500.00",M27C,Adult Social Care Operations,Supplies and Services,Jun-21
Slough Borough Council,170,Apse,"3,484.00",B203,Strategy & Performance,Supplies and Services,Jun-21
Slough Borough Council,3350,Arbour Vale School,"426,570.00",E509,DSG - High Needs Block,Supplies and Services,Jun-21
Slough Borough Council,806299,ARC Group London Limited,"87,104.19",P577,Capital,Capital Charges,Jun-21
Slough Borough Council,806299,ARC Group London Limited,"20,034.83",P577,Capital,Capital Charges,Jun-21
Slough Borough Council,2073,Arc Preschool,"11,654.73",F909,DSG - Early Years,Supplies and Services,Jun-21
Slough Borough Council,831,Argos Business Solutions Ltd,"8,728.10",D305,Customer and Communications,Supplies and Services,Jun-21
Slough Borough Council,831,Argos Business Solutions Ltd,"4,121.50",D305,Customer and Communications,Supplies and Services,Jun-21
Slough Borough Council,831,Argos Business Solutions Ltd,"5,305.51",D305,Customer and Communications,Supplies and Services,Jun-21
Slough Borough Council,831,Argos Business Solutions Ltd,"16,578.20",D305,Customer and Communications,Supplies and Services,Jun-21
Slough Borough Council,831,Argos Business Solutions Ltd,"16,578.20",D305,Customer and Communications,Supplies and Services,Jun-21
Slough Borough Council,1985,Ascentis,600.00,F210,Communities and Leisure,Supplies and Services,Jun-21
Slough Borough Council,420,Ashburn Estate Agents,"68,160.00",H205,Housing (People) Services,Premises,Jun-21
Slough Borough Council,420,Ashburn Estate Agents,"67,645.00",H205,Housing (People) Services,Premises,Jun-21
Slough Borough Council,803552,Askews and Holts Library Services Ltd,960.35,C104,Communities and Leisure,Supplies and Services,Jun-21
Slough Borough Council,803552,Askews and Holts Library Services Ltd,821.58,C104,Communities and Leisure,Supplies and Services,Jun-21
Slough Borough Council,803552,Askews and Holts Library Services Ltd,702.37,C104,Communities and Leisure,Supplies and Services,Jun-21
Slough Borough Council,3666,Assisted Living South West,"4,816.04",M26E,Adult Social Care Operations,Supplies and Services,Jun-21
Slough Borough Council,804324,Astoria Healthcare,"4,071.43",M27F,Adult Social Care Operations,Supplies and Services,Jun-21
Slough Borough Council,570,Atkins Limited,"16,857.21",P235,Capital,Capital Charges,Jun-21
Slough Borough Council,570,Atkins Limited,"26,000.00",P209,Capital,Capital Charges,Jun-21
Slough Borough Council,570,Atkins Limited,"6,320.00",P209,Capital,Capital Charges,Jun-21
Slough Borough Council,803988,Audience Systems Limitied,"13,526.06",C010,Communities and Leisure,Supplies and Services,Jun-21
Slough Borough Council,2148,Ava Dance Company/Avatara Ayuso,"2,740.00",C322,Communities and Leisure,Supplies and Services,Jun-21
Slough Borough Council,807609,Bag Books,577.00,C104,Communities and Leisure,Supplies and Services,Jun-21
Slough Borough Council,3370,Baylis Court School,"2,700.00",E709,DSG - Schools,Supplies and Services,Jun-21
Slough Borough Council,3370,Baylis Court School,"2,610.00",B297,Finance,Government Grants,Jun-21
Slough Borough Council,1444,Baylis Media Ltd,718.08,D124,Planning and Transport,Supplies and Services,Jun-21
Slough Borough Council,3208,Be Happy Pre School,"8,735.36",F909,DSG - Early Years,Supplies and Services,Jun-21
Slough Borough Council,3208,Be Happy Pre School,"5,208.19",F909,DSG - Early Years,Supplies and Services,Jun-21
Slough Borough Council,807107,Beacon Partnership LLP,"2,240.00",J020,HDC Housing Development,Supplies and Services,Jun-21
Slough Borough Council,1818,Bear Buses,995.54,D512,Major Infrastructure Projects,Supplies and Services,Jun-21
Slough Borough Council,609,Beechwood Secondary School,"10,600.00",E519,DSG - Schools,Supplies and Services,Jun-21
Slough Borough Council,612,Berkshire Healthcare Nhs Foundation Trust,"3,333.33",F520,Inclusion,Supplies and Services,Jun-21
Slough Borough Council,612,Berkshire Healthcare Nhs Foundation Trust,"3,333.33",F520,Inclusion,Supplies and Services,Jun-21
Slough Borough Council,612,Berkshire Healthcare Nhs Foundation Trust,"19,746.00",A07R,Adult Social Care Operations,Supplies and Services,Jun-21
Slough Borough Council,612,Berkshire Healthcare Nhs Foundation Trust,"10,208.00",A01P,Public Health,Supplies and Services,Jun-21
Slough Borough Council,1736,Bevan Brittan Llp,"1,235.00",P159,Capital,Capital Charges,Jun-21
Slough Borough Council,1736,Bevan Brittan Llp,"2,983.50",P172,Capital,Capital Charges,Jun-21
Slough Borough Council,806780,Big Blue Door Ltd,"10,200.00",M01A,"Children, Learning and Skills",Supplies and Services,Jun-21
Slough Borough Council,3611,Birch Assist Ltd T/A Bluebird Care (South Bucks & Slough),"3,218.25",M44C,Adult Social Care Operations,Supplies and Services,Jun-21
Slough Borough Council,3611,Birch Assist Ltd T/A Bluebird Care (South Bucks & Slough),"4,186.00",M44C,Adult Social Care Operations,Supplies and Services,Jun-21
Slough Borough Council,3611,Birch Assist Ltd T/A Bluebird Care (South Bucks & Slough),"2,268.00",M44D,Adult Social Care Operations,Supplies and Services,Jun-21
Slough Borough Council,807804,Blue Squirrel Research Ltd,860.00,A01P,Public Health,Supplies and Services,Jun-21
Slough Borough Council,803828,Blue Willow Day Nursery Ltd,"17,914.55",F909,DSG - Early Years,Supplies and Services,Jun-21
Slough Borough Council,806917,Boulters Lock,"4,714.29",M27F,Adult Social Care Operations,Supplies and Services,Jun-21
Slough Borough Council,805160,Bouygues E&S FM UK Limited,"-5,035.59",K522,Building Management,Premises,Jun-21
Slough Borough Council,805160,Bouygues E&S FM UK Limited,"5,038.18",K523,Building Management,Premises,Jun-21
Slough Borough Council,807487,Boyer Planning Ltd,861.25,D224,Planning and Transport,Supplies and Services,Jun-21
Slough Borough Council,805060,BPS Dorking Ltd t/a BPS Chartered Surveyors,"2,640.00",D224,Planning and Transport,Supplies and Services,Jun-21
Slough Borough Council,805179,Braywood Tree Surgery Ltd,"2,665.44",D880,Direct Service Organisation (DSO),Supplies and Services,Jun-21
Slough Borough Council,805179,Braywood Tree Surgery Ltd,"5,228.80",P220,Capital,Capital Charges,Jun-21
Slough Borough Council,805179,Braywood Tree Surgery Ltd,"2,015.52",P220,Capital,Capital Charges,Jun-21
Slough Borough Council,805179,Braywood Tree Surgery Ltd,"1,510.32",P220,Capital,Capital Charges,Jun-21
Slough Borough Council,805179,Braywood Tree Surgery Ltd,"9,057.60",P220,Capital,Capital Charges,Jun-21
Slough Borough Council,805179,Braywood Tree Surgery Ltd,"4,400.00",P220,Capital,Capital Charges,Jun-21
Slough Borough Council,805817,Bright World Nurseries,"12,584.49",F909,DSG - Early Years,Supplies and Services,Jun-21
Slough Borough Council,803293,British Telecommunication P.L.C.,"1,814.67",J015,Housing Revenue Account,Supplies and Services,Jun-21
Slough Borough Council,617,British Telecommunications,"1,756.47",D500,Major Infrastructure Projects,Premises,Jun-21
Slough Borough Council,504,Britwell Baptist Pre School,"5,179.48",F909,DSG - Early Years,Supplies and Services,Jun-21
Slough Borough Council,807947,Browns CS Ltd,"83,650.00",H235,Regulatory Services,Supplies and Services,Jun-21
Slough Borough Council,806464,"Broxap Limited,","2,519.50",C001,Communities and Leisure,Supplies and Services,Jun-21
Slough Borough Council,374,Bt Global Services,500.58,B023,Finance,Supplies and Services,Jun-21
Slough Borough Council,807273,Buckinghamshire Council,"20,564.22",D342,Direct Service Organisation (DSO),Supplies and Services,Jun-21
Slough Borough Council,620,Buckinghamshire County Council,617.50,F552,DSG - High Needs Block,Supplies and Services,Jun-21
Slough Borough Council,2850,Bullseye Awards & Garments Ltd,"1,500.00",B296,Finance,Supplies and Services,Jun-21
Slough Borough Council,741,Bunnies Pre-School,"6,169.79",F909,DSG - Early Years,Supplies and Services,Jun-21
Slough Borough Council,804448,Bupa Care Homes (ANS) Ltd,"5,821.18",M15D,Adult Social Care Operations,Supplies and Services,Jun-21
Slough Borough Council,804448,Bupa Care Homes (ANS) Ltd,"6,358.06",M18C,Adult Social Care Operations,Supplies and Services,Jun-21
Slough Borough Council,2675,Burnham Lodge Ltd,"1,085.71",M28C,Adult Social Care Operations,Supplies and Services,Jun-21
Slough Borough Council,2675,Burnham Lodge Ltd,"3,800.00",M28C,Adult Social Care Operations,Supplies and Services,Jun-21
Slough Borough Council,806950,Burrbaxter Print Ltd,954.00,B033,People,Supplies and Services,Jun-21
Slough Borough Council,807597,Bytesize Training ltd,700.00,B277,Digital and Strategic IT,Supplies and Services,Jun-21
Slough Borough Council,807597,Bytesize Training ltd,700.00,B277,Digital and Strategic IT,Supplies and Services,Jun-21
Slough Borough Council,807597,Bytesize Training ltd,700.00,B277,Digital and Strategic IT,Supplies and Services,Jun-21
Slough Borough Council,807597,Bytesize Training ltd,700.00,B277,Digital and Strategic IT,Supplies and Services,Jun-21
Slough Borough Council,803264,C A Telecom,"23,659.77",P235,Capital,Capital Charges,Jun-21
Slough Borough Council,2177,C F Roberts (Electrical Contractors)Plc,"73,954.86",P180,Capital,Capital Charges,Jun-21
Slough Borough Council,2177,C F Roberts (Electrical Contractors)Plc,"10,451.38",P198,Capital,Capital Charges,Jun-21
Slough Borough Council,629,C.H.O.I.C.E Limited,"6,214.33",M26E,Adult Social Care Operations,Supplies and Services,Jun-21
Slough Borough Council,629,C.H.O.I.C.E Limited,"10,090.89",M26E,Adult Social Care Operations,Supplies and Services,Jun-21
Slough Borough Council,629,C.H.O.I.C.E Limited,"10,409.83",M26E,Adult Social Care Operations,Supplies and Services,Jun-21
Slough Borough Council,629,C.H.O.I.C.E Limited,"10,409.83",M26E,Adult Social Care Operations,Supplies and Services,Jun-21
Slough Borough Council,629,C.H.O.I.C.E Limited,"11,083.71",M26E,Adult Social Care Operations,Supplies and Services,Jun-21
Slough Borough Council,629,C.H.O.I.C.E Limited,"10,642.89",M26E,Adult Social Care Operations,Supplies and Services,Jun-21
Slough Borough Council,629,C.H.O.I.C.E Limited,"9,080.87",M26E,Adult Social Care Operations,Supplies and Services,Jun-21
Slough Borough Council,629,C.H.O.I.C.E Limited,"6,145.35",M42E,Adult Social Care Operations,Supplies and Services,Jun-21
Slough Borough Council,629,C.H.O.I.C.E Limited,"8,456.61",M42E,Adult Social Care Operations,Supplies and Services,Jun-21
Slough Borough Council,629,C.H.O.I.C.E Limited,"1,107.14",M42E,Adult Social Care Operations,Supplies and Services,Jun-21
Slough Borough Council,629,C.H.O.I.C.E Limited,"5,657.10",M42E,Adult Social Care Operations,Supplies and Services,Jun-21
Slough Borough Council,629,C.H.O.I.C.E Limited,"3,832.23",M42E,Adult Social Care Operations,Supplies and Services,Jun-21
Slough Borough Council,629,C.H.O.I.C.E Limited,"4,132.38",M42E,Adult Social Care Operations,Supplies and Services,Jun-21
Slough Borough Council,629,C.H.O.I.C.E Limited,"2,189.85",M42E,Adult Social Care Operations,Supplies and Services,Jun-21
Slough Borough Council,629,C.H.O.I.C.E Limited,"5,947.12",M42E,Adult Social Care Operations,Supplies and Services,Jun-21
Slough Borough Council,629,C.H.O.I.C.E Limited,"6,033.90",M42E,Adult Social Care Operations,Supplies and Services,Jun-21
Slough Borough Council,629,C.H.O.I.C.E Limited,"6,235.03",M42E,Adult Social Care Operations,Supplies and Services,Jun-21
Slough Borough Council,629,C.H.O.I.C.E Limited,"6,100.18",M42E,Adult Social Care Operations,Supplies and Services,Jun-21
Slough Borough Council,629,C.H.O.I.C.E Limited,"4,431.49",M44D,Adult Social Care Operations,Supplies and Services,Jun-21
Slough Borough Council,629,C.H.O.I.C.E Limited,"2,332.04",M44F,Adult Social Care Operations,Supplies and Services,Jun-21
Slough Borough Council,629,C.H.O.I.C.E Limited,"2,355.68",M44F,Adult Social Care Operations,Supplies and Services,Jun-21
Slough Borough Council,629,C.H.O.I.C.E Limited,"2,608.07",M44F,Adult Social Care Operations,Supplies and Services,Jun-21
Slough Borough Council,629,C.H.O.I.C.E Limited,"2,523.94",M44F,Adult Social Care Operations,Supplies and Services,Jun-21
Slough Borough Council,629,C.H.O.I.C.E Limited,"2,581.90",M44F,Adult Social Care Operations,Supplies and Services,Jun-21
Slough Borough Council,629,C.H.O.I.C.E Limited,"2,581.90",M44F,Adult Social Care Operations,Supplies and Services,Jun-21
Slough Borough Council,629,C.H.O.I.C.E Limited,"2,498.61",M44F,Adult Social Care Operations,Supplies and Services,Jun-21
Slough Borough Council,807129,Calcot Services for Children Ltd (Eton Dorney Therapeutic School),"2,715.39",F462,DSG - High Needs Block,Supplies and Services,Jun-21
Slough Borough Council,807129,Calcot Services for Children Ltd (Eton Dorney Therapeutic School),"24,083.33",F462,DSG - High Needs Block,Supplies and Services,Jun-21
Slough Borough Council,807129,Calcot Services for Children Ltd (Eton Dorney Therapeutic School),"16,833.34",F551,DSG - High Needs Block,Supplies and Services,Jun-21
Slough Borough Council,807129,Calcot Services for Children Ltd (Eton Dorney Therapeutic School),"3,333.33",F551,DSG - High Needs Block,Supplies and Services,Jun-21
Slough Borough Council,807129,Calcot Services for Children Ltd (Eton Dorney Therapeutic School),"16,833.34",F551,DSG - High Needs Block,Supplies and Services,Jun-21
Slough Borough Council,807129,Calcot Services for Children Ltd (Eton Dorney Therapeutic School),"17,650.00",F462,DSG - High Needs Block,Supplies and Services,Jun-21
Slough Borough Council,807894,Calderstones Consulting Ltd,"7,500.00",B015,Finance,Supplies and Services,Jun-21
Slough Borough Council,623,Canon (Uk) Ltd,"2,723.86",K059,Customer and Communications,Supplies and Services,Jun-21
Slough Borough Council,623,Canon (Uk) Ltd,647.79,K059,Customer and Communications,Supplies and Services,Jun-21
Slough Borough Council,623,Canon (Uk) Ltd,"11,396.85",K059,Customer and Communications,Supplies and Services,Jun-21
Slough Borough Council,737,Capita Business Services Ltd,"5,000.00",D305,Customer and Communications,Supplies and Services,Jun-21
Slough Borough Council,806971,Capital Staffing Services Ltd,"3,439.20",F447,DSG - High Needs Block,Supplies and Services,Jun-21
Slough Borough Council,806971,Capital Staffing Services Ltd,"3,439.20",F447,DSG - High Needs Block,Supplies and Services,Jun-21
Slough Borough Council,806971,Capital Staffing Services Ltd,"3,439.20",F447,DSG - High Needs Block,Supplies and Services,Jun-21
Slough Borough Council,804861,Care Management Group Ltd,"14,744.00",M26E,Adult Social Care Operations,Supplies and Services,Jun-21
Slough Borough Council,804861,Care Management Group Ltd,"14,088.53",M26E,Adult Social Care Operations,Supplies and Services,Jun-21
Slough Borough Council,804861,Care Management Group Ltd,"1,926.74",M42F,Adult Social Care Operations,Supplies and Services,Jun-21
Slough Borough Council,805621,Care Staff Services,509.60,A07R,Adult Social Care Operations,Supplies and Services,Jun-21
Slough Borough Council,805621,Care Staff Services,"1,146.60",A07R,Adult Social Care Operations,Supplies and Services,Jun-21
Slough Borough Council,805621,Care Staff Services,"1,146.60",A07R,Adult Social Care Operations,Supplies and Services,Jun-21
Slough Borough Council,805621,Care Staff Services,568.75,A07R,Adult Social Care Operations,Supplies and Services,Jun-21
Slough Borough Council,805621,Care Staff Services,573.30,A07R,Adult Social Care Operations,Supplies and Services,Jun-21
Slough Borough Council,805621,Care Staff Services,819.00,M44C,Adult Social Care Operations,Supplies and Services,Jun-21
Slough Borough Council,805621,Care Staff Services,973.70,M44C,Adult Social Care Operations,Supplies and Services,Jun-21
Slough Borough Council,805621,Care Staff Services,"1,128.40",M44C,Adult Social Care Operations,Supplies and Services,Jun-21
Slough Borough Council,805621,Care Staff Services,982.80,M44C,Adult Social Care Operations,Supplies and Services,Jun-21
Slough Borough Council,805621,Care Staff Services,"2,538.90",M44C,Adult Social Care Operations,Supplies and Services,Jun-21
Slough Borough Council,805621,Care Staff Services,655.20,M44C,Adult Social Care Operations,Supplies and Services,Jun-21
Slough Borough Council,805621,Care Staff Services,"1,119.30",M44C,Adult Social Care Operations,Supplies and Services,Jun-21
Slough Borough Council,805621,Care Staff Services,"2,293.20",M44C,Adult Social Care Operations,Supplies and Services,Jun-21
Slough Borough Council,805621,Care Staff Services,"2,038.40",M44C,Adult Social Care Operations,Supplies and Services,Jun-21
Slough Borough Council,805621,Care Staff Services,"2,111.20",M44C,Adult Social Care Operations,Supplies and Services,Jun-21
Slough Borough Council,805621,Care Staff Services,"1,146.60",M44C,Adult Social Care Operations,Supplies and Services,Jun-21
Slough Borough Council,805621,Care Staff Services,891.80,M44C,Adult Social Care Operations,Supplies and Services,Jun-21
Slough Borough Council,805621,Care Staff Services,"1,092.00",M44C,Adult Social Care Operations,Supplies and Services,Jun-21
Slough Borough Council,805621,Care Staff Services,"2,802.80",M44C,Adult Social Care Operations,Supplies and Services,Jun-21
Slough Borough Council,805621,Care Staff Services,"1,183.00",M44C,Adult Social Care Operations,Supplies and Services,Jun-21
Slough Borough Council,805621,Care Staff Services,"1,019.20",M44C,Adult Social Care Operations,Supplies and Services,Jun-21
Slough Borough Council,805621,Care Staff Services,541.45,M44C,Adult Social Care Operations,Supplies and Services,Jun-21
Slough Borough Council,805621,Care Staff Services,"1,583.40",M44C,Adult Social Care Operations,Supplies and Services,Jun-21
Slough Borough Council,805621,Care Staff Services,910.00,M44C,Adult Social Care Operations,Supplies and Services,Jun-21
Slough Borough Council,805621,Care Staff Services,"2,438.80",M44C,Adult Social Care Operations,Supplies and Services,Jun-21
Slough Borough Council,805621,Care Staff Services,"1,274.00",M44C,Adult Social Care Operations,Supplies and Services,Jun-21
Slough Borough Council,805621,Care Staff Services,891.80,M44C,Adult Social Care Operations,Supplies and Services,Jun-21
Slough Borough Council,805621,Care Staff Services,546.00,M44C,Adult Social Care Operations,Supplies and Services,Jun-21
Slough Borough Council,805621,Care Staff Services,910.00,M44C,Adult Social Care Operations,Supplies and Services,Jun-21
Slough Borough Council,805621,Care Staff Services,"1,146.60",M44C,Adult Social Care Operations,Supplies and Services,Jun-21
Slough Borough Council,805621,Care Staff Services,659.75,M44C,Adult Social Care Operations,Supplies and Services,Jun-21
Slough Borough Council,805621,Care Staff Services,800.80,M44C,Adult Social Care Operations,Supplies and Services,Jun-21
Slough Borough Council,805621,Care Staff Services,"1,783.60",M44C,Adult Social Care Operations,Supplies and Services,Jun-21
Slough Borough Council,805621,Care Staff Services,"1,069.25",M44C,Adult Social Care Operations,Supplies and Services,Jun-21
Slough Borough Council,805621,Care Staff Services,800.80,M44C,Adult Social Care Operations,Supplies and Services,Jun-21
Slough Borough Council,805621,Care Staff Services,"1,146.60",M44C,Adult Social Care Operations,Supplies and Services,Jun-21
Slough Borough Council,805621,Care Staff Services,709.80,M44C,Adult Social Care Operations,Supplies and Services,Jun-21
Slough Borough Council,805621,Care Staff Services,755.30,M44C,Adult Social Care Operations,Supplies and Services,Jun-21
Slough Borough Council,805621,Care Staff Services,"2,293.20",M44C,Adult Social Care Operations,Supplies and Services,Jun-21
Slough Borough Council,805621,Care Staff Services,"2,548.00",M44C,Adult Social Care Operations,Supplies and Services,Jun-21
Slough Borough Council,805621,Care Staff Services,891.80,M44C,Adult Social Care Operations,Supplies and Services,Jun-21
Slough Borough Council,805621,Care Staff Services,637.00,M44C,Adult Social Care Operations,Supplies and Services,Jun-21
Slough Borough Council,805621,Care Staff Services,"1,146.60",M44C,Adult Social Care Operations,Supplies and Services,Jun-21
Slough Borough Council,805621,Care Staff Services,"2,293.20",M44C,Adult Social Care Operations,Supplies and Services,Jun-21
Slough Borough Council,805621,Care Staff Services,"6,115.20",M44C,Adult Social Care Operations,Supplies and Services,Jun-21
Slough Borough Council,805621,Care Staff Services,"1,146.60",M44C,Adult Social Care Operations,Supplies and Services,Jun-21
Slough Borough Council,805621,Care Staff Services,891.80,M44C,Adult Social Care Operations,Supplies and Services,Jun-21
Slough Borough Council,805621,Care Staff Services,891.80,M44C,Adult Social Care Operations,Supplies and Services,Jun-21
Slough Borough Council,805621,Care Staff Services,"2,293.20",M44C,Adult Social Care Operations,Supplies and Services,Jun-21
Slough Borough Council,805621,Care Staff Services,"2,293.20",M44C,Adult Social Care Operations,Supplies and Services,Jun-21
Slough Borough Council,805621,Care Staff Services,"2,002.00",M44C,Adult Social Care Operations,Supplies and Services,Jun-21
Slough Borough Council,805621,Care Staff Services,"2,111.20",M44C,Adult Social Care Operations,Supplies and Services,Jun-21
Slough Borough Council,805621,Care Staff Services,"1,437.80",M44C,Adult Social Care Operations,Supplies and Services,Jun-21
Slough Borough Council,805621,Care Staff Services,"1,274.00",M44D,Adult Social Care Operations,Supplies and Services,Jun-21
Slough Borough Council,805621,Care Staff Services,"1,519.70",M44D,Adult Social Care Operations,Supplies and Services,Jun-21
Slough Borough Council,805621,Care Staff Services,"2,265.90",M44D,Adult Social Care Operations,Supplies and Services,Jun-21
Slough Borough Council,805621,Care Staff Services,"3,021.20",M44D,Adult Social Care Operations,Supplies and Services,Jun-21
Slough Borough Council,805621,Care Staff Services,509.60,M44D,Adult Social Care Operations,Supplies and Services,Jun-21
Slough Borough Council,805621,Care Staff Services,919.10,M44D,Adult Social Care Operations,Supplies and Services,Jun-21
Slough Borough Council,805621,Care Staff Services,591.50,M44D,Adult Social Care Operations,Supplies and Services,Jun-21
Slough Borough Council,805621,Care Staff Services,"1,146.60",M44D,Adult Social Care Operations,Supplies and Services,Jun-21
Slough Borough Council,805621,Care Staff Services,728.00,M44F,Adult Social Care Operations,Supplies and Services,Jun-21
Slough Borough Council,805621,Care Staff Services,"2,548.00",M44F,Adult Social Care Operations,Supplies and Services,Jun-21
Slough Borough Council,805621,Care Staff Services,864.50,M44F,Adult Social Care Operations,Supplies and Services,Jun-21
Slough Borough Council,805621,Care Staff Services,982.80,M44F,Adult Social Care Operations,Supplies and Services,Jun-21
Slough Borough Council,805621,Care Staff Services,"2,766.40",M44F,Adult Social Care Operations,Supplies and Services,Jun-21
Slough Borough Council,805621,Care Staff Services,"1,146.60",M45C,Adult Social Care Operations,Supplies and Services,Jun-21
Slough Borough Council,805621,Care Staff Services,"2,293.20",M45C,Adult Social Care Operations,Supplies and Services,Jun-21
Slough Borough Council,805621,Care Staff Services,"2,147.60",M45C,Adult Social Care Operations,Supplies and Services,Jun-21
Slough Borough Council,805621,Care Staff Services,"1,983.80",M45C,Adult Social Care Operations,Supplies and Services,Jun-21
Slough Borough Council,805621,Care Staff Services,"3,640.00",M48C,Adult Social Care Operations,Supplies and Services,Jun-21
Slough Borough Council,805621,Care Staff Services,541.45,M48C,Adult Social Care Operations,Supplies and Services,Jun-21
Slough Borough Council,1162,Care Uk Community Partnership Ltd,"2,736.00",M15D,Adult Social Care Operations,Supplies and Services,Jun-21
Slough Borough Council,1497,Caroline Bridges,546.00,C322,Communities and Leisure,Supplies and Services,Jun-21
Slough Borough Council,804413,Castle Water,768.57,B068,Building Management,Premises,Jun-21
Slough Borough Council,804413,Castle Water,917.27,B068,Building Management,Premises,Jun-21
Slough Borough Council,804413,Castle Water,520.57,B185,Building Management,Premises,Jun-21
Slough Borough Council,418,Castleview School,"40,310.00",E239,DSG - Schools,Supplies and Services,Jun-21
Slough Borough Council,807954,CEDR Services Limited,"1,400.00",A06S,Adult Social Care Operations,Supplies and Services,Jun-21
Slough Borough Council,803560,Centennial Property Limited T/A Rent Connect,"14,065.00",H205,Housing (People) Services,Premises,Jun-21
Slough Borough Council,803560,Centennial Property Limited T/A Rent Connect,"13,535.00",H205,Housing (People) Services,Premises,Jun-21
Slough Borough Council,805619,Centennial Property Limited T/A The Housing Network,"19,315.00",H205,Housing (People) Services,Premises,Jun-21
Slough Borough Council,805619,Centennial Property Limited T/A The Housing Network,"20,525.00",H205,Housing (People) Services,Premises,Jun-21
Slough Borough Council,807959,Central Business School,"2,581.00",B146,Governance,Indirect Employee Expenses,Jun-21
Slough Borough Council,3609,Centurion Healthcare Ltd,"5,837.14",M26E,Adult Social Care Operations,Supplies and Services,Jun-21
Slough Borough Council,805174,Certas Energy,"15,529.56",D910,Direct Service Organisation (DSO),Supplies and Services,Jun-21
Slough Borough Council,805174,Certas Energy,"15,400.35",D910,Direct Service Organisation (DSO),Supplies and Services,Jun-21
Slough Borough Council,805174,Certas Energy,847.05,D910,Direct Service Organisation (DSO),Supplies and Services,Jun-21
Slough Borough Council,805174,Certas Energy,"1,116.60",D910,Direct Service Organisation (DSO),Supplies and Services,Jun-21
Slough Borough Council,805174,Certas Energy,"1,116.60",D910,Direct Service Organisation (DSO),Supplies and Services,Jun-21
Slough Borough Council,805174,Certas Energy,863.43,D910,Direct Service Organisation (DSO),Supplies and Services,Jun-21
Slough Borough Council,806920,Cetus Solutions Limited,540.00,P084,Capital,Capital Charges,Jun-21
Slough Borough Council,806920,Cetus Solutions Limited,"5,400.00",P084,Capital,Capital Charges,Jun-21
Slough Borough Council,2892,Chalfont Lodge,"3,095.83",M28C,Adult Social Care Operations,Supplies and Services,Jun-21
Slough Borough Council,2608,Chandos Lodge Nursing Home,"3,600.00",M18C,Adult Social Care Operations,Supplies and Services,Jun-21
Slough Borough Council,807017,Chelmsford Safety Supplies Ltd,"1,366.91",D610,Direct Service Organisation (DSO),Supplies and Services,Jun-21
Slough Borough Council,807017,Chelmsford Safety Supplies Ltd,830.33,D610,Direct Service Organisation (DSO),Supplies and Services,Jun-21
Slough Borough Council,1877,Chelsie Innes,"2,254.00",C322,Communities and Leisure,Supplies and Services,Jun-21
Slough Borough Council,1877,Chelsie Innes,"2,254.00",C322,Communities and Leisure,Supplies and Services,Jun-21
Slough Borough Council,3114,Cherry Trees Day Nursery,"34,704.98",F909,DSG - Early Years,Supplies and Services,Jun-21
Slough Borough Council,2871,Cherry Trees Residential Care,"1,607.14",M42F,Adult Social Care Operations,Supplies and Services,Jun-21
Slough Borough Council,2871,Cherry Trees Residential Care,"3,214.29",M42F,Adult Social Care Operations,Supplies and Services,Jun-21
Slough Borough Council,2871,Cherry Trees Residential Care,"1,392.86",M42F,Adult Social Care Operations,Supplies and Services,Jun-21
Slough Borough Council,2871,Cherry Trees Residential Care,"3,214.29",M42F,Adult Social Care Operations,Supplies and Services,Jun-21
Slough Borough Council,2871,Cherry Trees Residential Care,"3,214.29",M42F,Adult Social Care Operations,Supplies and Services,Jun-21
Slough Borough Council,2871,Cherry Trees Residential Care,"3,321.43",M42F,Adult Social Care Operations,Supplies and Services,Jun-21
Slough Borough Council,803495,Christchurch Court Ltd,"8,574.00",M15D,Adult Social Care Operations,Supplies and Services,Jun-21
Slough Borough Council,807491,Cippenham School,"21,500.00",E579,DSG - Schools,Supplies and Services,Jun-21
Slough Borough Council,807491,Cippenham School,"4,464.00",B297,Finance,Government Grants,Jun-21
Slough Borough Council,807491,Cippenham School,"2,246.40",B297,Finance,Government Grants,Jun-21
Slough Borough Council,806550,City Homecare Ltd,680.40,A07R,Adult Social Care Operations,Supplies and Services,Jun-21
Slough Borough Council,806550,City Homecare Ltd,"1,478.40",M44F,Adult Social Care Operations,Supplies and Services,Jun-21
Slough Borough Council,806550,City Homecare Ltd,537.60,M45C,Adult Social Care Operations,Supplies and Services,Jun-21
Slough Borough Council,806550,City Homecare Ltd,504.00,M45C,Adult Social Care Operations,Supplies and Services,Jun-21
Slough Borough Council,1083,Civica Uk Limited,"-1,199.49",B282,Digital and Strategic IT,Supplies and Services,Jun-21
Slough Borough Council,1083,Civica Uk Limited,"-2,950.39",B282,Digital and Strategic IT,Supplies and Services,Jun-21
Slough Borough Council,1083,Civica Uk Limited,"153,368.28",B282,Digital and Strategic IT,Supplies and Services,Jun-21
Slough Borough Council,1083,Civica Uk Limited,"7,550.08",B210,Governance,Supplies and Services,Jun-21
Slough Borough Council,1083,Civica Uk Limited,"-2,131.87",J200,Housing Revenue Account,Supplies and Services,Jun-21
Slough Borough Council,455,Cj Associates,700.00,F146,Early Years & Prevention,Indirect Employee Expenses,Jun-21
Slough Borough Council,1151,Claycots Primary School,"697,046.81",E209,DSG - Schools,Supplies and Services,Jun-21
Slough Borough Council,807949,CLM Fireproofing Limited,"7,611.26",B079,Regeneration Development,Capital Charges,Jun-21
Slough Borough Council,807949,CLM Fireproofing Limited,"4,500.00",B079,Regeneration Development,Capital Charges,Jun-21
Slough Borough Council,3685,Coghlan Lodges Limited,"2,316.72",M42F,Adult Social Care Operations,Supplies and Services,Jun-21
Slough Borough Council,3685,Coghlan Lodges Limited,"2,116.04",M44D,Adult Social Care Operations,Supplies and Services,Jun-21
Slough Borough Council,805823,Collaborative Care Solutions,"8,571.43",M42E,Adult Social Care Operations,Supplies and Services,Jun-21
Slough Borough Council,805823,Collaborative Care Solutions,"9,171.43",M42E,Adult Social Care Operations,Supplies and Services,Jun-21
Slough Borough Council,805823,Collaborative Care Solutions,"8,571.42",M42E,Adult Social Care Operations,Supplies and Services,Jun-21
Slough Borough Council,805823,Collaborative Care Solutions,"9,211.42",M42E,Adult Social Care Operations,Supplies and Services,Jun-21
Slough Borough Council,805823,Collaborative Care Solutions,"8,914.28",M42E,Adult Social Care Operations,Supplies and Services,Jun-21
Slough Borough Council,805823,Collaborative Care Solutions,"4,754.28",M42E,Adult Social Care Operations,Supplies and Services,Jun-21
Slough Borough Council,805823,Collaborative Care Solutions,"8,914.28",M42E,Adult Social Care Operations,Supplies and Services,Jun-21
Slough Borough Council,805823,Collaborative Care Solutions,"3,214.28",M42F,Adult Social Care Operations,Supplies and Services,Jun-21
Slough Borough Council,805823,Collaborative Care Solutions,"2,571.42",M42F,Adult Social Care Operations,Supplies and Services,Jun-21
Slough Borough Council,805823,Collaborative Care Solutions,"2,875.71",M42F,Adult Social Care Operations,Supplies and Services,Jun-21
Slough Borough Council,805823,Collaborative Care Solutions,"8,914.28",M44D,Adult Social Care Operations,Supplies and Services,Jun-21
Slough Borough Council,805823,Collaborative Care Solutions,"4,178.57",M44F,Adult Social Care Operations,Supplies and Services,Jun-21
Slough Borough Council,805823,Collaborative Care Solutions,"3,257.14",M44F,Adult Social Care Operations,Supplies and Services,Jun-21
Slough Borough Council,459,Colliers Cre,"3,666.67",J006,HDC Housing Development,Supplies and Services,Jun-21
Slough Borough Council,286,Colnbrook C Of E Primary School,"19,050.00",E219,DSG - Schools,Supplies and Services,Jun-21
Slough Borough Council,2535,Comfort Care Services,"1,575.00",M26E,Adult Social Care Operations,Supplies and Services,Jun-21
Slough Borough Council,2535,Comfort Care Services,"2,635.00",M27F,Adult Social Care Operations,Supplies and Services,Jun-21
Slough Borough Council,2535,Comfort Care Services,"2,503.63",M42E,Adult Social Care Operations,Supplies and Services,Jun-21
Slough Borough Council,2535,Comfort Care Services,"2,247.50",M42E,Adult Social Care Operations,Supplies and Services,Jun-21
Slough Borough Council,2535,Comfort Care Services,"2,247.50",M42E,Adult Social Care Operations,Supplies and Services,Jun-21
Slough Borough Council,2535,Comfort Care Services,"2,250.00",M42E,Adult Social Care Operations,Supplies and Services,Jun-21
Slough Borough Council,2535,Comfort Care Services,"3,089.06",M42E,Adult Social Care Operations,Supplies and Services,Jun-21
Slough Borough Council,2535,Comfort Care Services,750.00,M42E,Adult Social Care Operations,Supplies and Services,Jun-21
Slough Borough Council,2535,Comfort Care Services,775.00,M42E,Adult Social Care Operations,Supplies and Services,Jun-21
Slough Borough Council,2535,Comfort Care Services,"3,192.03",M42E,Adult Social Care Operations,Supplies and Services,Jun-21
Slough Borough Council,2535,Comfort Care Services,"2,325.00",M42E,Adult Social Care Operations,Supplies and Services,Jun-21
Slough Borough Council,2535,Comfort Care Services,775.00,M42E,Adult Social Care Operations,Supplies and Services,Jun-21
Slough Borough Council,2535,Comfort Care Services,"2,587.09",M42E,Adult Social Care Operations,Supplies and Services,Jun-21
Slough Borough Council,2535,Comfort Care Services,"2,550.00",M42F,Adult Social Care Operations,Supplies and Services,Jun-21
Slough Borough Council,2535,Comfort Care Services,"2,550.00",M42F,Adult Social Care Operations,Supplies and Services,Jun-21
Slough Borough Council,2535,Comfort Care Services,"2,550.00",M42F,Adult Social Care Operations,Supplies and Services,Jun-21
Slough Borough Council,2535,Comfort Care Services,"2,550.00",M42F,Adult Social Care Operations,Supplies and Services,Jun-21
Slough Borough Council,2535,Comfort Care Services,812.14,M42F,Adult Social Care Operations,Supplies and Services,Jun-21
Slough Borough Council,2535,Comfort Care Services,"2,262.43",M42F,Adult Social Care Operations,Supplies and Services,Jun-21
Slough Borough Council,2535,Comfort Care Services,"3,362.14",M42F,Adult Social Care Operations,Supplies and Services,Jun-21
Slough Borough Council,2535,Comfort Care Services,797.27,M42F,Adult Social Care Operations,Supplies and Services,Jun-21
Slough Borough Council,2535,Comfort Care Services,"2,635.00",M42F,Adult Social Care Operations,Supplies and Services,Jun-21
Slough Borough Council,2535,Comfort Care Services,839.21,M42F,Adult Social Care Operations,Supplies and Services,Jun-21
Slough Borough Council,2535,Comfort Care Services,839.21,M42F,Adult Social Care Operations,Supplies and Services,Jun-21
Slough Borough Council,2535,Comfort Care Services,"2,380.00",M42F,Adult Social Care Operations,Supplies and Services,Jun-21
Slough Borough Council,2535,Comfort Care Services,"2,550.00",M42F,Adult Social Care Operations,Supplies and Services,Jun-21
Slough Borough Council,2535,Comfort Care Services,812.14,M42F,Adult Social Care Operations,Supplies and Services,Jun-21
Slough Borough Council,2535,Comfort Care Services,"1,258.84",M42F,Adult Social Care Operations,Supplies and Services,Jun-21
Slough Borough Council,2535,Comfort Care Services,812.14,M42F,Adult Social Care Operations,Supplies and Services,Jun-21
Slough Borough Council,2535,Comfort Care Services,"2,689.07",M42F,Adult Social Care Operations,Supplies and Services,Jun-21
Slough Borough Council,2535,Comfort Care Services,"1,430.31",M42F,Adult Social Care Operations,Supplies and Services,Jun-21
Slough Borough Council,2535,Comfort Care Services,812.14,M42F,Adult Social Care Operations,Supplies and Services,Jun-21
Slough Borough Council,2535,Comfort Care Services,"3,768.21",M42F,Adult Social Care Operations,Supplies and Services,Jun-21
Slough Borough Council,2535,Comfort Care Services,"1,692.86",M42F,Adult Social Care Operations,Supplies and Services,Jun-21
Slough Borough Council,2535,Comfort Care Services,"2,550.00",M42F,Adult Social Care Operations,Supplies and Services,Jun-21
Slough Borough Council,2535,Comfort Care Services,812.14,M42F,Adult Social Care Operations,Supplies and Services,Jun-21
Slough Borough Council,2535,Comfort Care Services,974.57,M42F,Adult Social Care Operations,Supplies and Services,Jun-21
Slough Borough Council,2535,Comfort Care Services,"2,635.00",M42F,Adult Social Care Operations,Supplies and Services,Jun-21
Slough Borough Council,2535,Comfort Care Services,"1,300.80",M42F,Adult Social Care Operations,Supplies and Services,Jun-21
Slough Borough Council,2535,Comfort Care Services,"3,893.82",M42F,Adult Social Care Operations,Supplies and Services,Jun-21
Slough Borough Council,2535,Comfort Care Services,"1,749.29",M42F,Adult Social Care Operations,Supplies and Services,Jun-21
Slough Borough Council,2535,Comfort Care Services,839.21,M42F,Adult Social Care Operations,Supplies and Services,Jun-21
Slough Borough Council,2535,Comfort Care Services,"3,474.21",M42F,Adult Social Care Operations,Supplies and Services,Jun-21
Slough Borough Council,2535,Comfort Care Services,839.21,M42F,Adult Social Care Operations,Supplies and Services,Jun-21
Slough Borough Council,2535,Comfort Care Services,839.21,M42F,Adult Social Care Operations,Supplies and Services,Jun-21
Slough Borough Council,2535,Comfort Care Services,"2,635.00",M42F,Adult Social Care Operations,Supplies and Services,Jun-21
Slough Borough Council,2535,Comfort Care Services,"2,635.00",M42F,Adult Social Care Operations,Supplies and Services,Jun-21
Slough Borough Council,2535,Comfort Care Services,"2,369.29",M42F,Adult Social Care Operations,Supplies and Services,Jun-21
Slough Borough Council,2535,Comfort Care Services,"2,635.00",M42F,Adult Social Care Operations,Supplies and Services,Jun-21
Slough Borough Council,2535,Comfort Care Services,"1,477.99",M42F,Adult Social Care Operations,Supplies and Services,Jun-21
Slough Borough Council,2535,Comfort Care Services,"2,601.56",M42F,Adult Social Care Operations,Supplies and Services,Jun-21
Slough Borough Council,2535,Comfort Care Services,"1,300.80",M42F,Adult Social Care Operations,Supplies and Services,Jun-21
Slough Borough Council,2535,Comfort Care Services,"2,635.00",M42F,Adult Social Care Operations,Supplies and Services,Jun-21
Slough Borough Council,2535,Comfort Care Services,"2,778.71",M42F,Adult Social Care Operations,Supplies and Services,Jun-21
Slough Borough Council,2535,Comfort Care Services,839.21,M42F,Adult Social Care Operations,Supplies and Services,Jun-21
Slough Borough Council,2535,Comfort Care Services,"1,007.06",M42F,Adult Social Care Operations,Supplies and Services,Jun-21
Slough Borough Council,2535,Comfort Care Services,839.21,M42F,Adult Social Care Operations,Supplies and Services,Jun-21
Slough Borough Council,2535,Comfort Care Services,"2,635.00",M42F,Adult Social Care Operations,Supplies and Services,Jun-21
Slough Borough Council,2535,Comfort Care Services,"1,705.50",M44C,Adult Social Care Operations,Supplies and Services,Jun-21
Slough Borough Council,2535,Comfort Care Services,"1,762.35",M44C,Adult Social Care Operations,Supplies and Services,Jun-21
Slough Borough Council,2535,Comfort Care Services,546.00,M44E,Adult Social Care Operations,Supplies and Services,Jun-21
Slough Borough Council,2535,Comfort Care Services,"2,072.57",M44E,Adult Social Care Operations,Supplies and Services,Jun-21
Slough Borough Council,2535,Comfort Care Services,"4,317.64",M44E,Adult Social Care Operations,Supplies and Services,Jun-21
Slough Borough Council,2535,Comfort Care Services,"4,787.42",M44E,Adult Social Care Operations,Supplies and Services,Jun-21
Slough Borough Council,2535,Comfort Care Services,"2,141.66",M44E,Adult Social Care Operations,Supplies and Services,Jun-21
Slough Borough Council,2535,Comfort Care Services,564.20,M44E,Adult Social Care Operations,Supplies and Services,Jun-21
Slough Borough Council,2535,Comfort Care Services,"1,275.00",M44F,Adult Social Care Operations,Supplies and Services,Jun-21
Slough Borough Council,2535,Comfort Care Services,"3,362.14",M44F,Adult Social Care Operations,Supplies and Services,Jun-21
Slough Borough Council,2535,Comfort Care Services,"2,550.00",M44F,Adult Social Care Operations,Supplies and Services,Jun-21
Slough Borough Council,2535,Comfort Care Services,"2,337.84",M44F,Adult Social Care Operations,Supplies and Services,Jun-21
Slough Borough Council,2535,Comfort Care Services,"1,275.00",M44F,Adult Social Care Operations,Supplies and Services,Jun-21
Slough Borough Council,2535,Comfort Care Services,"1,827.34",M44F,Adult Social Care Operations,Supplies and Services,Jun-21
Slough Borough Council,2535,Comfort Care Services,"1,275.00",M44F,Adult Social Care Operations,Supplies and Services,Jun-21
Slough Borough Council,2535,Comfort Care Services,"1,275.00",M44F,Adult Social Care Operations,Supplies and Services,Jun-21
Slough Borough Council,2535,Comfort Care Services,503.53,M44F,Adult Social Care Operations,Supplies and Services,Jun-21
Slough Borough Council,2535,Comfort Care Services,"2,635.00",M44F,Adult Social Care Operations,Supplies and Services,Jun-21
Slough Borough Council,2535,Comfort Care Services,"1,317.50",M44F,Adult Social Care Operations,Supplies and Services,Jun-21
Slough Borough Council,2535,Comfort Care Services,"1,317.50",M44F,Adult Social Care Operations,Supplies and Services,Jun-21
Slough Borough Council,2535,Comfort Care Services,"3,474.21",M44F,Adult Social Care Operations,Supplies and Services,Jun-21
Slough Borough Council,2535,Comfort Care Services,"1,317.50",M44F,Adult Social Care Operations,Supplies and Services,Jun-21
Slough Borough Council,2535,Comfort Care Services,"1,317.50",M44F,Adult Social Care Operations,Supplies and Services,Jun-21
Slough Borough Council,2535,Comfort Care Services,"1,888.26",M44F,Adult Social Care Operations,Supplies and Services,Jun-21
Slough Borough Council,2535,Comfort Care Services,"2,550.00",M81D,Adult Social Care Operations,Supplies and Services,Jun-21
Slough Borough Council,2535,Comfort Care Services,"2,635.00",M81D,Adult Social Care Operations,Supplies and Services,Jun-21
Slough Borough Council,807853,Commonplace Digital Ltd,"31,500.00",D508,Major Infrastructure Projects,Supplies and Services,Jun-21
Slough Borough Council,3840,Community Housing And Therapy,"2,615.51",M80F,Adult Social Care Operations,Supplies and Services,Jun-21
Slough Borough Council,3840,Community Housing And Therapy,"2,531.14",M80F,Adult Social Care Operations,Supplies and Services,Jun-21
Slough Borough Council,3840,Community Housing And Therapy,"2,362.40",M80F,Adult Social Care Operations,Supplies and Services,Jun-21
Slough Borough Council,807580,Company Jinks LTD,800.00,C322,Communities and Leisure,Supplies and Services,Jun-21
Slough Borough Council,1772,Computershare Voucher Services,"4,199.25",B348,People,Supplies and Services,Jun-21
Slough Borough Council,807468,"Connect Managed Services (UK) Ltd, trading as Conn3ct","7,072.81",A106,Customer and Communications,Supplies and Services,Jun-21
Slough Borough Council,806683,Cornerstone OnDemand Limited,"57,250.00",B409,People,Indirect Employee Expenses,Jun-21
Slough Borough Council,805278,Countrystyle Recycling Ltd,"3,543.05",D342,Direct Service Organisation (DSO),Supplies and Services,Jun-21
Slough Borough Council,805278,Countrystyle Recycling Ltd,"4,723.75",D342,Direct Service Organisation (DSO),Supplies and Services,Jun-21
Slough Borough Council,805278,Countrystyle Recycling Ltd,"3,264.00",D342,Direct Service Organisation (DSO),Supplies and Services,Jun-21
Slough Borough Council,803910,Courdec UK Ltd,"16,660.00",B082,Regeneration Development,Premises,Jun-21
Slough Borough Council,3670,Craegmoor Birches Grove Priory,"1,888.44",M27F,Adult Social Care Operations,Supplies and Services,Jun-21
Slough Borough Council,3670,Craegmoor Birches Grove Priory,"1,631.00",M27F,Adult Social Care Operations,Supplies and Services,Jun-21
Slough Borough Council,806983,Critiqom,"1,712.17",H020,Customer and Communications,Supplies and Services,Jun-21
Slough Borough Council,806983,Critiqom,"1,223.08",H020,Customer and Communications,Supplies and Services,Jun-21
Slough Borough Council,806983,Critiqom,"1,121.60",H020,Customer and Communications,Supplies and Services,Jun-21
Slough Borough Council,806983,Critiqom,839.24,H020,Customer and Communications,Supplies and Services,Jun-21
Slough Borough Council,806983,Critiqom,"1,243.78",H020,Customer and Communications,Supplies and Services,Jun-21
Slough Borough Council,806983,Critiqom,"1,233.86",H015,Customer and Communications,Supplies and Services,Jun-21
Slough Borough Council,806983,Critiqom,521.18,H015,Customer and Communications,Supplies and Services,Jun-21
Slough Borough Council,806983,Critiqom,700.31,H015,Customer and Communications,Supplies and Services,Jun-21
Slough Borough Council,806983,Critiqom,"2,136.14",H015,Customer and Communications,Supplies and Services,Jun-21
Slough Borough Council,806983,Critiqom,597.88,H015,Customer and Communications,Supplies and Services,Jun-21
Slough Borough Council,806983,Critiqom,"1,048.46",H015,Customer and Communications,Supplies and Services,Jun-21
Slough Borough Council,806983,Critiqom,907.94,H015,Customer and Communications,Supplies and Services,Jun-21
Slough Borough Council,806983,Critiqom,"1,472.33",H015,Customer and Communications,Supplies and Services,Jun-21
Slough Borough Council,806983,Critiqom,"3,033.39",H015,Customer and Communications,Supplies and Services,Jun-21
Slough Borough Council,806983,Critiqom,"1,157.38",H020,Customer and Communications,Supplies and Services,Jun-21
Slough Borough Council,806983,Critiqom,998.73,H020,Customer and Communications,Supplies and Services,Jun-21
Slough Borough Council,806983,Critiqom,634.78,H020,Customer and Communications,Supplies and Services,Jun-21
Slough Borough Council,806983,Critiqom,"1,181.47",H020,Customer and Communications,Supplies and Services,Jun-21
Slough Borough Council,806983,Critiqom,"1,156.53",H020,Customer and Communications,Supplies and Services,Jun-21
Slough Borough Council,806063,Cruise Minibuses Ltd,"13,775.00",F123,Schools,Supplies and Services,Jun-21
Slough Borough Council,806900,CYXTERA TECHNOLOGY UK LIMITED,"23,893.49",B282,Digital and Strategic IT,Supplies and Services,Jun-21
Slough Borough Council,807288,David Allwood,"2,254.00",C322,Communities and Leisure,Supplies and Services,Jun-21
Slough Borough Council,807288,David Allwood,"2,254.00",C322,Communities and Leisure,Supplies and Services,Jun-21
Slough Borough Council,807012,David Byford of DJB Safeguarding Ltd,"1,650.00",A04A,Adult Social Care Operations,Supplies and Services,Jun-21
Slough Borough Council,361,David Ogilvie Engineeing Limited,"9,947.00",C001,Communities and Leisure,Premises,Jun-21
Slough Borough Council,807440,David Peplow,"1,200.00",A04A,Adult Social Care Operations,Supplies and Services,Jun-21
Slough Borough Council,2068,Dds Demolition,"2,790.00",P127,Capital,Capital Charges,Jun-21
Slough Borough Council,2068,Dds Demolition,"4,620.00",P127,Capital,Capital Charges,Jun-21
Slough Borough Council,804689,De Lage Landen Leasing Ltd,"2,085.00",K059,Customer and Communications,Supplies and Services,Jun-21
Slough Borough Council,804903,Dennis Eagle Limited,"17,013.78",D610,Direct Service Organisation (DSO),Supplies and Services,Jun-21
Slough Borough Council,804903,Dennis Eagle Limited,"1,604.26",D630,Direct Service Organisation (DSO),Supplies and Services,Jun-21
Slough Borough Council,806159,Devon Piatt-Panton,"1,187.20",C322,Communities and Leisure,Supplies and Services,Jun-21
Slough Borough Council,806159,Devon Piatt-Panton,"1,187.20",C322,Communities and Leisure,Supplies and Services,Jun-21
Slough Borough Council,805483,Direct Tyre Managenent Ltd,"1,745.46",D610,Direct Service Organisation (DSO),Transport,Jun-21
Slough Borough Council,805483,Direct Tyre Managenent Ltd,507.44,D620,Direct Service Organisation (DSO),Transport,Jun-21
Slough Borough Council,803306,Ditton Park Academy,"16,300.00",E269,DSG - Schools,Supplies and Services,Jun-21
Slough Borough Council,803306,Ditton Park Academy,"2,595.00",B297,Finance,Government Grants,Jun-21
Slough Borough Council,805195,Downs View Nurseries Ltd,"8,029.82",C001,Communities and Leisure,Premises,Jun-21
Slough Borough Council,805195,Downs View Nurseries Ltd,761.24,D347,Direct Service Organisation (DSO),Premises,Jun-21
Slough Borough Council,805195,Downs View Nurseries Ltd,555.50,J015,Housing Revenue Account,Premises,Jun-21
Slough Borough Council,1457,Dr Norman Gordon,"1,531.50",D320,Regulatory Services,Premises,Jun-21
Slough Borough Council,804938,Dr Umarjit Singh Bedi,900.00,A02A,Adult Social Care Operations,Supplies and Services,Jun-21
Slough Borough Council,854,Drayton Fencing,"1,184.00",H253,Neighbourhood Services,Supplies and Services,Jun-21
Slough Borough Council,854,Drayton Fencing,"1,184.00",P174,Capital,Capital Charges,Jun-21
Slough Borough Council,854,Drayton Fencing,"1,000.00",P871,Capital,Capital Charges,Jun-21
Slough Borough Council,803177,Early Steps Preschool,"5,579.43",F909,DSG - Early Years,Supplies and Services,Jun-21
Slough Borough Council,806539,Eclipse Digital Media Ltd,828.38,B175,Building Management,Supplies and Services,Jun-21
Slough Borough Council,803301,Eden Girls School,"3,500.00",E279,DSG - Schools,Supplies and Services,Jun-21
Slough Borough Council,1299,Edf Energy,"71,210.87",K526,Building Management,Premises,Jun-21
Slough Borough Council,1299,Edf Energy,"24,248.77",D413,Major Infrastructure Projects,Supplies and Services,Jun-21
Slough Borough Council,805698,EKC GROUP,"1,287.04",F558,DSG - High Needs Block,Supplies and Services,Jun-21
Slough Borough Council,807001,Elegant Care Services Ltd,"6,535.71",M44C,Adult Social Care Operations,Supplies and Services,Jun-21
Slough Borough Council,807001,Elegant Care Services Ltd,"3,321.42",M44F,Adult Social Care Operations,Supplies and Services,Jun-21
Slough Borough Council,807890,EliteMed Ltd,"1,980.00",A07S,Adult Social Care Operations,Salaries and Wages-Employees Expenses,Jun-21
Slough Borough Council,806355,Elysium Healthcare,"11,044.68",M26E,Adult Social Care Operations,Supplies and Services,Jun-21
Slough Borough Council,806355,Elysium Healthcare,"9,576.52",M26E,Adult Social Care Operations,Supplies and Services,Jun-21
Slough Borough Council,3752,Endurance Health,820.15,A07R,Adult Social Care Operations,Supplies and Services,Jun-21
Slough Borough Council,3752,Endurance Health,"1,272.99",A07R,Adult Social Care Operations,Supplies and Services,Jun-21
Slough Borough Council,3752,Endurance Health,696.15,A07R,Adult Social Care Operations,Supplies and Services,Jun-21
Slough Borough Council,3752,Endurance Health,"1,223.92",A07R,Adult Social Care Operations,Supplies and Services,Jun-21
Slough Borough Council,3752,Endurance Health,"1,034.28",A07R,Adult Social Care Operations,Supplies and Services,Jun-21
Slough Borough Council,3752,Endurance Health,690.53,M44C,Adult Social Care Operations,Supplies and Services,Jun-21
Slough Borough Council,3752,Endurance Health,649.75,M44C,Adult Social Care Operations,Supplies and Services,Jun-21
Slough Borough Council,3752,Endurance Health,"1,542.50",M44C,Adult Social Care Operations,Supplies and Services,Jun-21
Slough Borough Council,3752,Endurance Health,"1,897.20",M44C,Adult Social Care Operations,Supplies and Services,Jun-21
Slough Borough Council,3752,Endurance Health,695.17,M44C,Adult Social Care Operations,Supplies and Services,Jun-21
Slough Borough Council,3752,Endurance Health,691.86,M44C,Adult Social Care Operations,Supplies and Services,Jun-21
Slough Borough Council,3752,Endurance Health,"1,253.09",M44C,Adult Social Care Operations,Supplies and Services,Jun-21
Slough Borough Council,3752,Endurance Health,"2,506.14",M44C,Adult Social Care Operations,Supplies and Services,Jun-21
Slough Borough Council,3752,Endurance Health,"2,504.86",M44C,Adult Social Care Operations,Supplies and Services,Jun-21
Slough Borough Council,3752,Endurance Health,696.83,M44C,Adult Social Care Operations,Supplies and Services,Jun-21
Slough Borough Council,3752,Endurance Health,"1,529.56",M44C,Adult Social Care Operations,Supplies and Services,Jun-21
Slough Borough Council,3752,Endurance Health,838.04,M44C,Adult Social Care Operations,Supplies and Services,Jun-21
Slough Borough Council,3752,Endurance Health,"1,253.41",M44C,Adult Social Care Operations,Supplies and Services,Jun-21
Slough Borough Council,3752,Endurance Health,904.68,M44C,Adult Social Care Operations,Supplies and Services,Jun-21
Slough Borough Council,3752,Endurance Health,"2,025.15",M44C,Adult Social Care Operations,Supplies and Services,Jun-21
Slough Borough Council,3752,Endurance Health,"1,392.00",M44C,Adult Social Care Operations,Supplies and Services,Jun-21
Slough Borough Council,3752,Endurance Health,"1,047.23",M44C,Adult Social Care Operations,Supplies and Services,Jun-21
Slough Borough Council,3752,Endurance Health,"1,242.15",M44C,Adult Social Care Operations,Supplies and Services,Jun-21
Slough Borough Council,3752,Endurance Health,"1,451.00",M44C,Adult Social Care Operations,Supplies and Services,Jun-21
Slough Borough Council,3752,Endurance Health,"2,256.53",M44C,Adult Social Care Operations,Supplies and Services,Jun-21
Slough Borough Council,3752,Endurance Health,703.12,M44C,Adult Social Care Operations,Supplies and Services,Jun-21
Slough Borough Council,3752,Endurance Health,"1,361.16",M44C,Adult Social Care Operations,Supplies and Services,Jun-21
Slough Borough Council,3752,Endurance Health,"1,067.11",M44C,Adult Social Care Operations,Supplies and Services,Jun-21
Slough Borough Council,3752,Endurance Health,"1,454.31",M44C,Adult Social Care Operations,Supplies and Services,Jun-21
Slough Borough Council,3752,Endurance Health,"1,253.08",M44C,Adult Social Care Operations,Supplies and Services,Jun-21
Slough Borough Council,3752,Endurance Health,"1,253.08",M44C,Adult Social Care Operations,Supplies and Services,Jun-21
Slough Borough Council,3752,Endurance Health,"2,237.65",M44C,Adult Social Care Operations,Supplies and Services,Jun-21
Slough Borough Council,3752,Endurance Health,696.16,M44C,Adult Social Care Operations,Supplies and Services,Jun-21
Slough Borough Council,3752,Endurance Health,"2,506.17",M44C,Adult Social Care Operations,Supplies and Services,Jun-21
Slough Borough Council,3752,Endurance Health,"1,531.54",M44C,Adult Social Care Operations,Supplies and Services,Jun-21
Slough Borough Council,3752,Endurance Health,"1,949.25",M44C,Adult Social Care Operations,Supplies and Services,Jun-21
Slough Borough Council,3752,Endurance Health,"1,153.63",M44C,Adult Social Care Operations,Supplies and Services,Jun-21
Slough Borough Council,3752,Endurance Health,967.00,M44D,Adult Social Care Operations,Supplies and Services,Jun-21
Slough Borough Council,3752,Endurance Health,690.20,M44D,Adult Social Care Operations,Supplies and Services,Jun-21
Slough Borough Council,3752,Endurance Health,968.66,M44D,Adult Social Care Operations,Supplies and Services,Jun-21
Slough Borough Council,3752,Endurance Health,527.75,M44D,Adult Social Care Operations,Supplies and Services,Jun-21
Slough Borough Council,3752,Endurance Health,982.90,M44D,Adult Social Care Operations,Supplies and Services,Jun-21
Slough Borough Council,3752,Endurance Health,"1,132.76",M44D,Adult Social Care Operations,Supplies and Services,Jun-21
Slough Borough Council,3752,Endurance Health,696.16,M44D,Adult Social Care Operations,Supplies and Services,Jun-21
Slough Borough Council,3752,Endurance Health,727.81,M44F,Adult Social Care Operations,Supplies and Services,Jun-21
Slough Borough Council,3752,Endurance Health,557.59,M44F,Adult Social Care Operations,Supplies and Services,Jun-21
Slough Borough Council,3752,Endurance Health,"2,165.39",M44F,Adult Social Care Operations,Supplies and Services,Jun-21
Slough Borough Council,3752,Endurance Health,"1,358.85",M48C,Adult Social Care Operations,Supplies and Services,Jun-21
Slough Borough Council,3752,Endurance Health,509.19,M48C,Adult Social Care Operations,Supplies and Services,Jun-21
Slough Borough Council,3752,Endurance Health,559.91,M48C,Adult Social Care Operations,Supplies and Services,Jun-21
Slough Borough Council,3752,Endurance Health,827.43,M48C,Adult Social Care Operations,Supplies and Services,Jun-21
Slough Borough Council,3752,Endurance Health,"1,271.00",M48C,Adult Social Care Operations,Supplies and Services,Jun-21
Slough Borough Council,3752,Endurance Health,"1,392.33",M48C,Adult Social Care Operations,Supplies and Services,Jun-21
Slough Borough Council,805423,Enriched Care,"3,621.00",M44D,Adult Social Care Operations,Supplies and Services,Jun-21
Slough Borough Council,805423,Enriched Care,"4,275.00",M44F,Adult Social Care Operations,Supplies and Services,Jun-21
Slough Borough Council,805423,Enriched Care,"2,769.00",M44F,Adult Social Care Operations,Supplies and Services,Jun-21
Slough Borough Council,805423,Enriched Care,"2,679.00",M44F,Adult Social Care Operations,Supplies and Services,Jun-21
Slough Borough Council,805423,Enriched Care,"2,787.00",M44F,Adult Social Care Operations,Supplies and Services,Jun-21
Slough Borough Council,805423,Enriched Care,"1,701.30",M80F,Adult Social Care Operations,Supplies and Services,Jun-21
Slough Borough Council,807310,Enterprise Rent-A-Car UK Limited trading as Enterprise Flex-E-Rent,658.75,D750,Direct Service Organisation (DSO),Transport,Jun-21
Slough Borough Council,807310,Enterprise Rent-A-Car UK Limited trading as Enterprise Flex-E-Rent,644.58,D750,Direct Service Organisation (DSO),Transport,Jun-21
Slough Borough Council,807310,Enterprise Rent-A-Car UK Limited trading as Enterprise Flex-E-Rent,644.58,D750,Direct Service Organisation (DSO),Transport,Jun-21
Slough Borough Council,807310,Enterprise Rent-A-Car UK Limited trading as Enterprise Flex-E-Rent,658.75,D750,Direct Service Organisation (DSO),Transport,Jun-21
Slough Borough Council,807310,Enterprise Rent-A-Car UK Limited trading as Enterprise Flex-E-Rent,"30,991.64",D910,Direct Service Organisation (DSO),Transport,Jun-21
Slough Borough Council,806228,EQUAL EDUCATION LIMITED,"4,095.00",F449,DSG - High Needs Block,Supplies and Services,Jun-21
Slough Borough Council,806228,EQUAL EDUCATION LIMITED,"1,040.00",F449,DSG - High Needs Block,Supplies and Services,Jun-21
Slough Borough Council,806228,EQUAL EDUCATION LIMITED,"2,340.00",F449,DSG - High Needs Block,Supplies and Services,Jun-21
Slough Borough Council,803645,Esotec,"1,100.00",P193,Capital,Capital Charges,Jun-21
Slough Borough Council,803645,Esotec,"13,940.00",P871,Capital,Capital Charges,Jun-21
Slough Borough Council,2677,Eton House Residential Home,"3,420.00",M25C,Adult Social Care Operations,Supplies and Services,Jun-21
Slough Borough Council,2677,Eton House Residential Home,"3,420.00",M25C,Adult Social Care Operations,Supplies and Services,Jun-21
Slough Borough Council,2677,Eton House Residential Home,"2,571.43",M27C,Adult Social Care Operations,Supplies and Services,Jun-21
Slough Borough Council,2677,Eton House Residential Home,"2,571.43",M27C,Adult Social Care Operations,Supplies and Services,Jun-21
Slough Borough Council,806501,Excellent Healthcare Services Ltd,854.00,M44F,Adult Social Care Operations,Supplies and Services,Jun-21
Slough Borough Council,806501,Excellent Healthcare Services Ltd,846.72,M44F,Adult Social Care Operations,Supplies and Services,Jun-21
Slough Borough Council,1992,Facultatieve Technologies Ltd,"19,682.17",D320,Regulatory Services,Premises,Jun-21
Slough Borough Council,805225,Falcon Surfacing Ltd,"4,575.00",D880,Direct Service Organisation (DSO),Supplies and Services,Jun-21
Slough Borough Council,805225,Falcon Surfacing Ltd,"4,080.00",D880,Direct Service Organisation (DSO),Supplies and Services,Jun-21
Slough Borough Council,805225,Falcon Surfacing Ltd,"1,499.58",D880,Direct Service Organisation (DSO),Supplies and Services,Jun-21
Slough Borough Council,805225,Falcon Surfacing Ltd,"1,482.92",D880,Direct Service Organisation (DSO),Supplies and Services,Jun-21
Slough Borough Council,805225,Falcon Surfacing Ltd,"3,050.68",D880,Direct Service Organisation (DSO),Supplies and Services,Jun-21
Slough Borough Council,805225,Falcon Surfacing Ltd,"1,943.34",D880,Direct Service Organisation (DSO),Supplies and Services,Jun-21
Slough Borough Council,805225,Falcon Surfacing Ltd,"1,161.34",D880,Direct Service Organisation (DSO),Supplies and Services,Jun-21
Slough Borough Council,805225,Falcon Surfacing Ltd,"4,575.00",D880,Direct Service Organisation (DSO),Supplies and Services,Jun-21
Slough Borough Council,805225,Falcon Surfacing Ltd,"4,575.00",D880,Direct Service Organisation (DSO),Supplies and Services,Jun-21
Slough Borough Council,805225,Falcon Surfacing Ltd,"2,728.86",D880,Direct Service Organisation (DSO),Supplies and Services,Jun-21
Slough Borough Council,805225,Falcon Surfacing Ltd,"3,361.53",D880,Direct Service Organisation (DSO),Supplies and Services,Jun-21
Slough Borough Council,805225,Falcon Surfacing Ltd,"46,530.50",D880,Direct Service Organisation (DSO),Supplies and Services,Jun-21
Slough Borough Council,805225,Falcon Surfacing Ltd,"1,634.08",D880,Direct Service Organisation (DSO),Supplies and Services,Jun-21
Slough Borough Council,805225,Falcon Surfacing Ltd,"8,469.71",D880,Direct Service Organisation (DSO),Supplies and Services,Jun-21
Slough Borough Council,805225,Falcon Surfacing Ltd,"21,520.00",D880,Direct Service Organisation (DSO),Supplies and Services,Jun-21
Slough Borough Council,805225,Falcon Surfacing Ltd,"3,818.34",D880,Direct Service Organisation (DSO),Supplies and Services,Jun-21
Slough Borough Council,805225,Falcon Surfacing Ltd,"3,214.22",D880,Direct Service Organisation (DSO),Supplies and Services,Jun-21
Slough Borough Council,805225,Falcon Surfacing Ltd,"2,346.41",D880,Direct Service Organisation (DSO),Supplies and Services,Jun-21
Slough Borough Council,805225,Falcon Surfacing Ltd,"1,132.80",D880,Direct Service Organisation (DSO),Supplies and Services,Jun-21
Slough Borough Council,805225,Falcon Surfacing Ltd,"1,700.35",D880,Direct Service Organisation (DSO),Supplies and Services,Jun-21
Slough Borough Council,805225,Falcon Surfacing Ltd,730.38,D880,Direct Service Organisation (DSO),Supplies and Services,Jun-21
Slough Borough Council,805225,Falcon Surfacing Ltd,"1,428.75",D880,Direct Service Organisation (DSO),Supplies and Services,Jun-21
Slough Borough Council,805225,Falcon Surfacing Ltd,"1,887.67",D880,Direct Service Organisation (DSO),Supplies and Services,Jun-21
Slough Borough Council,805225,Falcon Surfacing Ltd,"2,122.50",D880,Direct Service Organisation (DSO),Supplies and Services,Jun-21
Slough Borough Council,805225,Falcon Surfacing Ltd,"5,490.00",D880,Direct Service Organisation (DSO),Supplies and Services,Jun-21
Slough Borough Council,805225,Falcon Surfacing Ltd,"2,827.05",D880,Direct Service Organisation (DSO),Supplies and Services,Jun-21
Slough Borough Council,805225,Falcon Surfacing Ltd,925.70,D880,Direct Service Organisation (DSO),Supplies and Services,Jun-21
Slough Borough Council,805225,Falcon Surfacing Ltd,"94,633.70",D880,Direct Service Organisation (DSO),Supplies and Services,Jun-21
Slough Borough Council,805225,Falcon Surfacing Ltd,"77,064.07",D880,Direct Service Organisation (DSO),Supplies and Services,Jun-21
Slough Borough Council,805225,Falcon Surfacing Ltd,"2,654.58",D880,Direct Service Organisation (DSO),Supplies and Services,Jun-21
Slough Borough Council,805225,Falcon Surfacing Ltd,"4,925.00",D880,Direct Service Organisation (DSO),Supplies and Services,Jun-21
Slough Borough Council,4031,Family Support Practise Limited,"2,025.00",A03D,Adult Social Care Operations,Supplies and Services,Jun-21
Slough Borough Council,4031,Family Support Practise Limited,500.00,A03D,Adult Social Care Operations,Supplies and Services,Jun-21
Slough Borough Council,4031,Family Support Practise Limited,"1,665.00",B277,Digital and Strategic IT,Supplies and Services,Jun-21
Slough Borough Council,4031,Family Support Practise Limited,"1,665.00",B277,Digital and Strategic IT,Supplies and Services,Jun-21
Slough Borough Council,4031,Family Support Practise Limited,"1,350.00",B277,Digital and Strategic IT,Supplies and Services,Jun-21
Slough Borough Council,4031,Family Support Practise Limited,"1,665.00",B277,Digital and Strategic IT,Supplies and Services,Jun-21
Slough Borough Council,4031,Family Support Practise Limited,"1,665.00",B277,Digital and Strategic IT,Supplies and Services,Jun-21
Slough Borough Council,2678,Farnham Common Nurseries Ltd,"2,952.00",P220,Capital,Capital Charges,Jun-21
Slough Borough Council,475,Farnham Road Surgery,"15,603.66",A04C,Adult Social Care Commissioning,Supplies and Services,Jun-21
Slough Borough Council,475,Farnham Road Surgery,"5,000.00",A04C,Adult Social Care Commissioning,Supplies and Services,Jun-21
Slough Borough Council,807620,FERN CONSULTING SERVICES LTD,"2,805.00",D012,Major Infrastructure Projects,Supplies and Services,Jun-21
Slough Borough Council,754,First Steps Day Nursery,"11,090.54",F909,DSG - Early Years,Supplies and Services,Jun-21
Slough Borough Council,1626,Five Star Radio Cars Limited,"2,170.00",F123,Schools,Supplies and Services,Jun-21
Slough Borough Council,1626,Five Star Radio Cars Limited,960.00,F123,Schools,Supplies and Services,Jun-21
Slough Borough Council,1626,Five Star Radio Cars Limited,"1,350.00",F123,Schools,Supplies and Services,Jun-21
Slough Borough Council,1626,Five Star Radio Cars Limited,"1,030.00",F123,Schools,Supplies and Services,Jun-21
Slough Borough Council,1626,Five Star Radio Cars Limited,"1,995.00",F123,Schools,Supplies and Services,Jun-21
Slough Borough Council,1626,Five Star Radio Cars Limited,"1,275.00",F123,Schools,Supplies and Services,Jun-21
Slough Borough Council,1626,Five Star Radio Cars Limited,"1,805.00",F123,Schools,Supplies and Services,Jun-21
Slough Borough Council,2519,Fleet Tutors,"3,640.00",F446,DSG - High Needs Block,Supplies and Services,Jun-21
Slough Borough Council,2519,Fleet Tutors,"2,538.00",F446,DSG - High Needs Block,Supplies and Services,Jun-21
Slough Borough Council,2519,Fleet Tutors,"3,544.00",F446,DSG - High Needs Block,Supplies and Services,Jun-21
Slough Borough Council,2204,Fleetdrive Management Ltd,500.08,M50A,Major Infrastructure Projects,Transport,Jun-21
Slough Borough Council,2204,Fleetdrive Management Ltd,500.08,M50A,Major Infrastructure Projects,Transport,Jun-21
Slough Borough Council,2204,Fleetdrive Management Ltd,500.08,M50A,Major Infrastructure Projects,Transport,Jun-21
Slough Borough Council,806017,FM180,"6,700.00",P159,Capital,Capital Charges,Jun-21
Slough Borough Council,3826,Forever Homecare Ltd,787.25,M44C,Adult Social Care Operations,Supplies and Services,Jun-21
Slough Borough Council,3826,Forever Homecare Ltd,502.50,M44C,Adult Social Care Operations,Supplies and Services,Jun-21
Slough Borough Council,3826,Forever Homecare Ltd,787.25,M44C,Adult Social Care Operations,Supplies and Services,Jun-21
Slough Borough Council,3826,Forever Homecare Ltd,770.50,M44C,Adult Social Care Operations,Supplies and Services,Jun-21
Slough Borough Council,3826,Forever Homecare Ltd,"2,454.00",M44C,Adult Social Care Operations,Supplies and Services,Jun-21
Slough Borough Council,3826,Forever Homecare Ltd,"1,088.75",M44C,Adult Social Care Operations,Supplies and Services,Jun-21
Slough Borough Council,3826,Forever Homecare Ltd,837.50,M44C,Adult Social Care Operations,Supplies and Services,Jun-21
Slough Borough Council,3826,Forever Homecare Ltd,"2,412.00",M44C,Adult Social Care Operations,Supplies and Services,Jun-21
Slough Borough Council,3826,Forever Homecare Ltd,"2,110.50",M44C,Adult Social Care Operations,Supplies and Services,Jun-21
Slough Borough Council,3826,Forever Homecare Ltd,"2,177.50",M44C,Adult Social Care Operations,Supplies and Services,Jun-21
Slough Borough Council,3826,Forever Homecare Ltd,586.25,M44C,Adult Social Care Operations,Supplies and Services,Jun-21
Slough Borough Council,3826,Forever Homecare Ltd,879.37,M44C,Adult Social Care Operations,Supplies and Services,Jun-21
Slough Borough Council,3826,Forever Homecare Ltd,"3,400.00",M44D,Adult Social Care Operations,Supplies and Services,Jun-21
Slough Borough Council,3826,Forever Homecare Ltd,"3,400.00",M44D,Adult Social Care Operations,Supplies and Services,Jun-21
Slough Borough Council,3826,Forever Homecare Ltd,"3,400.00",M44D,Adult Social Care Operations,Supplies and Services,Jun-21
Slough Borough Council,3826,Forever Homecare Ltd,"3,400.00",M44D,Adult Social Care Operations,Supplies and Services,Jun-21
Slough Borough Council,3826,Forever Homecare Ltd,"3,400.00",M44D,Adult Social Care Operations,Supplies and Services,Jun-21
Slough Borough Council,3826,Forever Homecare Ltd,"5,579.00",M44D,Adult Social Care Operations,Supplies and Services,Jun-21
Slough Borough Council,3826,Forever Homecare Ltd,"3,400.00",M44D,Adult Social Care Operations,Supplies and Services,Jun-21
Slough Borough Council,3826,Forever Homecare Ltd,"1,289.75",M44D,Adult Social Care Operations,Supplies and Services,Jun-21
Slough Borough Council,3826,Forever Homecare Ltd,536.00,M44D,Adult Social Care Operations,Supplies and Services,Jun-21
Slough Borough Council,3826,Forever Homecare Ltd,850.00,M44D,Adult Social Care Operations,Supplies and Services,Jun-21
Slough Borough Council,3826,Forever Homecare Ltd,"3,400.00",M44D,Adult Social Care Operations,Supplies and Services,Jun-21
Slough Borough Council,3826,Forever Homecare Ltd,"5,579.00",M44E,Adult Social Care Operations,Supplies and Services,Jun-21
Slough Borough Council,3826,Forever Homecare Ltd,"1,876.00",M44E,Adult Social Care Operations,Supplies and Services,Jun-21
Slough Borough Council,3826,Forever Homecare Ltd,"1,876.00",M44E,Adult Social Care Operations,Supplies and Services,Jun-21
Slough Borough Council,3826,Forever Homecare Ltd,502.00,M44F,Adult Social Care Operations,Supplies and Services,Jun-21
Slough Borough Council,1204,Forget Me Not,"3,800.00",M25C,Adult Social Care Operations,Supplies and Services,Jun-21
Slough Borough Council,1204,Forget Me Not,"3,180.00",M25C,Adult Social Care Operations,Supplies and Services,Jun-21
Slough Borough Council,1204,Forget Me Not,"4,180.00",M27C,Adult Social Care Operations,Supplies and Services,Jun-21
Slough Borough Council,1204,Forget Me Not,"3,400.00",M27C,Adult Social Care Operations,Supplies and Services,Jun-21
Slough Borough Council,1204,Forget Me Not,"3,047.40",M27C,Adult Social Care Operations,Supplies and Services,Jun-21
Slough Borough Council,806249,Formact Ltd,"12,797.27",P006,Capital,Capital Charges,Jun-21
Slough Borough Council,807250,Forthmeadow Limited,"2,328.00",M25C,Adult Social Care Operations,Supplies and Services,Jun-21
Slough Borough Council,647,Foxborough Primary School,"6,390.00",E229,DSG - Schools,Supplies and Services,Jun-21
Slough Borough Council,647,Foxborough Primary School,"1,545.00",B297,Finance,Government Grants,Jun-21
Slough Borough Council,649,Freeway Lift Services Ltd,"5,995.00",P006,Capital,Capital Charges,Jun-21
Slough Borough Council,807802,Freyssinet Limited,"135,141.96",P186,Capital,Capital Charges,Jun-21
Slough Borough Council,806480,Frontier NX Limited,"2,673.00",A04C,Adult Social Care Commissioning,Supplies and Services,Jun-21
Slough Borough Council,806480,Frontier NX Limited,676.20,A04C,Adult Social Care Commissioning,Supplies and Services,Jun-21
Slough Borough Council,807816,Furze Platt Junior School,"2,730.00",F552,DSG - High Needs Block,Supplies and Services,Jun-21
Slough Borough Council,803540,Furze Platt Senior School,"2,262.00",F552,DSG - High Needs Block,Supplies and Services,Jun-21
Slough Borough Council,807125,Futures For Shared Lives,"3,436.35",M40E,Adult Social Care Operations,Supplies and Services,Jun-21
Slough Borough Council,807125,Futures For Shared Lives,"3,325.50",M40E,Adult Social Care Operations,Supplies and Services,Jun-21
Slough Borough Council,1555,Gallagher Bassett,"35,265.32",B018,Finance,Supplies and Services,Jun-21
Slough Borough Council,804911,GAP Group Limited,924.00,D880,Direct Service Organisation (DSO),Supplies and Services,Jun-21
Slough Borough Council,804911,GAP Group Limited,882.00,D880,Direct Service Organisation (DSO),Supplies and Services,Jun-21
Slough Borough Council,804911,GAP Group Limited,855.38,D880,Direct Service Organisation (DSO),Supplies and Services,Jun-21
Slough Borough Council,806026,GARIMA AGRAWAL,"3,780.00",F446,DSG - High Needs Block,Supplies and Services,Jun-21
Slough Borough Council,806026,GARIMA AGRAWAL,"2,520.00",F446,DSG - High Needs Block,Supplies and Services,Jun-21
Slough Borough Council,1758,Gas Advisory Services Limited,840.00,J606,HDC Housing Development,Supplies and Services,Jun-21
Slough Borough Council,1758,Gas Advisory Services Limited,"4,988.00",J606,HDC Housing Development,Supplies and Services,Jun-21
Slough Borough Council,1758,Gas Advisory Services Limited,"4,998.00",J606,HDC Housing Development,Supplies and Services,Jun-21
Slough Borough Council,1758,Gas Advisory Services Limited,654.50,J606,HDC Housing Development,Supplies and Services,Jun-21
Slough Borough Council,806619,Gate One,"5,525.00",B417,Economic Development,Supplies and Services,Jun-21
Slough Borough Council,806619,Gate One,"17,000.00",B417,Economic Development,Supplies and Services,Jun-21
Slough Borough Council,806663,General Register Office /Home Office,"1,934.50",D332,Regulatory Services,Supplies and Services,Jun-21
Slough Borough Council,650,George Lines (Merchants) Ltd,522.00,D880,Direct Service Organisation (DSO),Supplies and Services,Jun-21
Slough Borough Council,650,George Lines (Merchants) Ltd,"1,207.16",D880,Direct Service Organisation (DSO),Supplies and Services,Jun-21
Slough Borough Council,807052,Georgia Thompson,"1,187.20",C322,Communities and Leisure,Supplies and Services,Jun-21
Slough Borough Council,806204,GLOBAL MEDIATION LIMITED,"1,600.00",F500,Inclusion,Supplies and Services,Jun-21
Slough Borough Council,2830,Golden Rose Comm Care Ltd,"2,128.00",A07R,Adult Social Care Operations,Supplies and Services,Jun-21
Slough Borough Council,2830,Golden Rose Comm Care Ltd,532.00,A07R,Adult Social Care Operations,Supplies and Services,Jun-21
Slough Borough Council,2830,Golden Rose Comm Care Ltd,"1,805.00",A07R,Adult Social Care Operations,Supplies and Services,Jun-21
Slough Borough Council,2830,Golden Rose Comm Care Ltd,"2,394.00",M44C,Adult Social Care Operations,Supplies and Services,Jun-21
Slough Borough Council,2830,Golden Rose Comm Care Ltd,"2,394.00",M44C,Adult Social Care Operations,Supplies and Services,Jun-21
Slough Borough Council,2830,Golden Rose Comm Care Ltd,665.00,M44C,Adult Social Care Operations,Supplies and Services,Jun-21
Slough Borough Council,2830,Golden Rose Comm Care Ltd,"2,394.00",M44C,Adult Social Care Operations,Supplies and Services,Jun-21
Slough Borough Council,2830,Golden Rose Comm Care Ltd,665.00,M44C,Adult Social Care Operations,Supplies and Services,Jun-21
Slough Borough Council,2830,Golden Rose Comm Care Ltd,"2,394.00",M44C,Adult Social Care Operations,Supplies and Services,Jun-21
Slough Borough Council,2830,Golden Rose Comm Care Ltd,"2,850.00",M44C,Adult Social Care Operations,Supplies and Services,Jun-21
Slough Borough Council,2830,Golden Rose Comm Care Ltd,"2,527.00",M44C,Adult Social Care Operations,Supplies and Services,Jun-21
Slough Borough Council,2830,Golden Rose Comm Care Ltd,"2,128.00",M44C,Adult Social Care Operations,Supplies and Services,Jun-21
Slough Borough Council,2830,Golden Rose Comm Care Ltd,"1,330.00",M44C,Adult Social Care Operations,Supplies and Services,Jun-21
Slough Borough Council,2830,Golden Rose Comm Care Ltd,"2,394.00",M44C,Adult Social Care Operations,Supplies and Services,Jun-21
Slough Borough Council,2830,Golden Rose Comm Care Ltd,"2,527.00",M44C,Adult Social Care Operations,Supplies and Services,Jun-21
Slough Borough Council,2830,Golden Rose Comm Care Ltd,"2,394.00",M44C,Adult Social Care Operations,Supplies and Services,Jun-21
Slough Borough Council,2830,Golden Rose Comm Care Ltd,931.00,M44C,Adult Social Care Operations,Supplies and Services,Jun-21
Slough Borough Council,2830,Golden Rose Comm Care Ltd,"2,128.00",M44C,Adult Social Care Operations,Supplies and Services,Jun-21
Slough Borough Council,2830,Golden Rose Comm Care Ltd,"2,394.00",M44C,Adult Social Care Operations,Supplies and Services,Jun-21
Slough Borough Council,2830,Golden Rose Comm Care Ltd,"1,330.00",M44C,Adult Social Care Operations,Supplies and Services,Jun-21
Slough Borough Council,2830,Golden Rose Comm Care Ltd,"2,204.00",M44C,Adult Social Care Operations,Supplies and Services,Jun-21
Slough Borough Council,2830,Golden Rose Comm Care Ltd,"2,394.00",M44C,Adult Social Care Operations,Supplies and Services,Jun-21
Slough Borough Council,2830,Golden Rose Comm Care Ltd,665.00,M44C,Adult Social Care Operations,Supplies and Services,Jun-21
Slough Borough Council,2830,Golden Rose Comm Care Ltd,"1,643.50",M44C,Adult Social Care Operations,Supplies and Services,Jun-21
Slough Borough Council,2830,Golden Rose Comm Care Ltd,"2,508.00",M44C,Adult Social Care Operations,Supplies and Services,Jun-21
Slough Borough Council,2830,Golden Rose Comm Care Ltd,"2,128.00",M44C,Adult Social Care Operations,Supplies and Services,Jun-21
Slough Borough Council,2830,Golden Rose Comm Care Ltd,798.00,M44C,Adult Social Care Operations,Supplies and Services,Jun-21
Slough Borough Council,2830,Golden Rose Comm Care Ltd,"2,736.00",M44D,Adult Social Care Operations,Supplies and Services,Jun-21
Slough Borough Council,2830,Golden Rose Comm Care Ltd,"1,596.00",M44D,Adult Social Care Operations,Supplies and Services,Jun-21
Slough Borough Council,2830,Golden Rose Comm Care Ltd,665.00,M44D,Adult Social Care Operations,Supplies and Services,Jun-21
Slough Borough Council,2830,Golden Rose Comm Care Ltd,"2,812.00",M44D,Adult Social Care Operations,Supplies and Services,Jun-21
Slough Borough Council,2830,Golden Rose Comm Care Ltd,"2,394.00",M44D,Adult Social Care Operations,Supplies and Services,Jun-21
Slough Borough Council,2830,Golden Rose Comm Care Ltd,"1,197.00",M44D,Adult Social Care Operations,Supplies and Services,Jun-21
Slough Borough Council,2830,Golden Rose Comm Care Ltd,"2,394.00",M44D,Adult Social Care Operations,Supplies and Services,Jun-21
Slough Borough Council,2830,Golden Rose Comm Care Ltd,"2,736.00",M44D,Adult Social Care Operations,Supplies and Services,Jun-21
Slough Borough Council,2830,Golden Rose Comm Care Ltd,665.00,M44D,Adult Social Care Operations,Supplies and Services,Jun-21
Slough Borough Council,2830,Golden Rose Comm Care Ltd,"2,812.00",M44D,Adult Social Care Operations,Supplies and Services,Jun-21
Slough Borough Council,2830,Golden Rose Comm Care Ltd,"2,242.00",M44D,Adult Social Care Operations,Supplies and Services,Jun-21
Slough Borough Council,2830,Golden Rose Comm Care Ltd,"2,128.00",M44F,Adult Social Care Operations,Supplies and Services,Jun-21
Slough Borough Council,2830,Golden Rose Comm Care Ltd,"2,128.00",M44F,Adult Social Care Operations,Supplies and Services,Jun-21
Slough Borough Council,2830,Golden Rose Comm Care Ltd,"1,064.00",M45C,Adult Social Care Operations,Supplies and Services,Jun-21
Slough Borough Council,2830,Golden Rose Comm Care Ltd,983.25,M45C,Adult Social Care Operations,Supplies and Services,Jun-21
Slough Borough Council,2830,Golden Rose Comm Care Ltd,798.00,M45C,Adult Social Care Operations,Supplies and Services,Jun-21
Slough Borough Council,2830,Golden Rose Comm Care Ltd,"1,197.00",M45C,Adult Social Care Operations,Supplies and Services,Jun-21
Slough Borough Council,2830,Golden Rose Comm Care Ltd,817.00,M45C,Adult Social Care Operations,Supplies and Services,Jun-21
Slough Borough Council,2830,Golden Rose Comm Care Ltd,"1,496.25",M45C,Adult Social Care Operations,Supplies and Services,Jun-21
Slough Borough Council,2830,Golden Rose Comm Care Ltd,"3,192.00",M45C,Adult Social Care Operations,Supplies and Services,Jun-21
Slough Borough Council,2830,Golden Rose Comm Care Ltd,"1,643.50",M45C,Adult Social Care Operations,Supplies and Services,Jun-21
Slough Borough Council,2830,Golden Rose Comm Care Ltd,"2,394.00",M48C,Adult Social Care Operations,Supplies and Services,Jun-21
Slough Borough Council,2830,Golden Rose Comm Care Ltd,"3,002.00",M48C,Adult Social Care Operations,Supplies and Services,Jun-21
Slough Borough Council,2830,Golden Rose Comm Care Ltd,"3,002.00",M48C,Adult Social Care Operations,Supplies and Services,Jun-21
Slough Borough Council,2830,Golden Rose Comm Care Ltd,"2,394.00",M48C,Adult Social Care Operations,Supplies and Services,Jun-21
Slough Borough Council,2830,Golden Rose Comm Care Ltd,"12,000.00",A06C,Adult Social Care Commissioning,Supplies and Services,Jun-21
Slough Borough Council,805186,Grafton Merchanting GB Ltd,556.18,D880,Direct Service Organisation (DSO),Supplies and Services,Jun-21
Slough Borough Council,807255,Green Corridor,"8,797.00",F558,DSG - High Needs Block,Supplies and Services,Jun-21
Slough Borough Council,807255,Green Corridor,"17,296.58",F558,DSG - High Needs Block,Supplies and Services,Jun-21
Slough Borough Council,804577,Green Monarch ZC2016 c/o Savills(UK) Limited,"1,666.67",B417,Economic Development,Premises,Jun-21
Slough Borough Council,804577,Green Monarch ZC2016 c/o Savills(UK) Limited,"3,583.33",H205,Housing (People) Services,Premises,Jun-21
Slough Borough Council,804577,Green Monarch ZC2016 c/o Savills(UK) Limited,"3,583.33",H205,Housing (People) Services,Premises,Jun-21
Slough Borough Council,804577,Green Monarch ZC2016 c/o Savills(UK) Limited,"3,583.33",H205,Housing (People) Services,Premises,Jun-21
Slough Borough Council,803131,Greenfield Nordic Ltd,"1,575.00",D224,Planning and Transport,Supplies and Services,Jun-21
Slough Borough Council,805069,Grove Academy,"4,300.00",E299,DSG - Schools,Supplies and Services,Jun-21
Slough Borough Council,804447,Grundon Waste Management Limited,"420,196.18",D342,Direct Service Organisation (DSO),Supplies and Services,Jun-21
Slough Borough Council,804447,Grundon Waste Management Limited,"1,398.25",B310,Finance,Supplies and Services,Jun-21
Slough Borough Council,804447,Grundon Waste Management Limited,"1,198.64",B310,Finance,Supplies and Services,Jun-21
Slough Borough Council,804447,Grundon Waste Management Limited,799.00,B310,Finance,Supplies and Services,Jun-21
Slough Borough Council,804447,Grundon Waste Management Limited,559.30,B310,Finance,Supplies and Services,Jun-21
Slough Borough Council,3228,H Plus Care Ltd,"4,045.71",M17C,Adult Social Care Operations,Supplies and Services,Jun-21
Slough Borough Council,3228,H Plus Care Ltd,"4,045.71",M18C,Adult Social Care Operations,Supplies and Services,Jun-21
Slough Borough Council,3228,H Plus Care Ltd,"12,685.71",M26E,Adult Social Care Operations,Supplies and Services,Jun-21
Slough Borough Council,1600,Hagsplay Ltd,"4,592.00",C001,Communities and Leisure,Premises,Jun-21
Slough Borough Council,806681,Hako Machines Ltd,530.96,D620,Direct Service Organisation (DSO),Supplies and Services,Jun-21
Slough Borough Council,806681,Hako Machines Ltd,530.96,D620,Direct Service Organisation (DSO),Supplies and Services,Jun-21
Slough Borough Council,806681,Hako Machines Ltd,597.42,D620,Direct Service Organisation (DSO),Supplies and Services,Jun-21
Slough Borough Council,806681,Hako Machines Ltd,597.42,D620,Direct Service Organisation (DSO),Supplies and Services,Jun-21
Slough Borough Council,806681,Hako Machines Ltd,597.42,D620,Direct Service Organisation (DSO),Supplies and Services,Jun-21
Slough Borough Council,744,Hampshire County Council,"23,475.88",D015,Major Infrastructure Projects,Supplies and Services,Jun-21
Slough Borough Council,1465,HAS Technology Limited,"1,979.01",M44C,Adult Social Care Operations,Supplies and Services,Jun-21
Slough Borough Council,1465,HAS Technology Limited,567.15,A02F,Adult Social Care Commissioning,Supplies and Services,Jun-21
Slough Borough Council,1465,HAS Technology Limited,783.42,A07R,Adult Social Care Operations,Supplies and Services,Jun-21
Slough Borough Council,804986,Havencare Ltd,"1,279.50",M26E,Adult Social Care Operations,Supplies and Services,Jun-21
Slough Borough Council,804986,Havencare Ltd,"1,279.50",M26E,Adult Social Care Operations,Supplies and Services,Jun-21
Slough Borough Council,804986,Havencare Ltd,"1,279.50",M26E,Adult Social Care Operations,Supplies and Services,Jun-21
Slough Borough Council,804986,Havencare Ltd,"1,279.50",M26E,Adult Social Care Operations,Supplies and Services,Jun-21
Slough Borough Council,1381,Haybrook College,"103,600.00",E809,DSG - High Needs Block,Supplies and Services,Jun-21
Slough Borough Council,3784,Haybrook College Pru,"54,200.00",E809,DSG - High Needs Block,Supplies and Services,Jun-21
Slough Borough Council,803753,Healthcare Homes,"2,734.29",M15D,Adult Social Care Operations,Supplies and Services,Jun-21
Slough Borough Council,803753,Healthcare Homes,"3,000.00",M27C,Adult Social Care Operations,Supplies and Services,Jun-21
Slough Borough Council,807682,Help and Care,"16,109.74",A02C,Adult Social Care Commissioning,Supplies and Services,Jun-21
Slough Borough Council,807682,Help and Care,"16,109.67",A02C,Adult Social Care Commissioning,Supplies and Services,Jun-21
Slough Borough Council,807682,Help and Care,"16,109.74",A02C,Adult Social Care Commissioning,Supplies and Services,Jun-21
Slough Borough Council,1686,Herald Chase,"13,615.83",B296,Finance,Supplies and Services,Jun-21
Slough Borough Council,1686,Herald Chase,"2,651.32",F382,Children & Families,Supplies and Services,Jun-21
Slough Borough Council,1686,Herald Chase,"17,741.44",B252,Customer and Communications,Supplies and Services,Jun-21
Slough Borough Council,803447,Herewards House Residential Home,"2,785.71",M27C,Adult Social Care Operations,Supplies and Services,Jun-21
Slough Borough Council,803447,Herewards House Residential Home,"2,878.57",M27C,Adult Social Care Operations,Supplies and Services,Jun-21
Slough Borough Council,3387,Herschel Grammar School,"1,300.00",E309,DSG - Schools,Supplies and Services,Jun-21
Slough Borough Council,3387,Herschel Grammar School,975.00,B297,Finance,Government Grants,Jun-21
Slough Borough Council,806452,Hire Station Ltd t/a ESS Safeforce,"2,163.00",D750,Direct Service Organisation (DSO),Supplies and Services,Jun-21
Slough Borough Council,850,Holy Family Catholic Primary School,"178,956.27",E259,DSG - Schools,Supplies and Services,Jun-21
Slough Borough Council,807699,Holy Family Catholic Primary School,"11,233.28",F552,DSG - High Needs Block,Supplies and Services,Jun-21
Slough Borough Council,803249,Holyport College,"20,000.00",F552,DSG - High Needs Block,Supplies and Services,Jun-21
Slough Borough Council,1914,Huntcliff Limited,"1,475.00",J028,Housing Revenue Account,Supplies and Services,Jun-21
Slough Borough Council,1914,Huntcliff Limited,"1,075.00",J028,Housing Revenue Account,Supplies and Services,Jun-21
Slough Borough Council,806778,IBB Solicitors,"2,785.40",A07R,Adult Social Care Operations,Supplies and Services,Jun-21
Slough Borough Council,806778,IBB Solicitors,600.00,B285,Finance,Supplies and Services,Jun-21
Slough Borough Council,2917,Imperial Coaches Ltd,"3,990.00",F123,Schools,Supplies and Services,Jun-21
Slough Borough Council,807666,Independence Home and Domicilary Care,"3,381.17",M44F,Adult Social Care Operations,Supplies and Services,Jun-21
Slough Borough Council,807666,Independence Home and Domicilary Care,"2,940.66",M44F,Adult Social Care Operations,Supplies and Services,Jun-21
Slough Borough Council,3570,Independent Supported Living And Disabilities Ltd,"2,904.37",B298,Finance,Supplies and Services,Jun-21
Slough Borough Council,3570,Independent Supported Living And Disabilities Ltd,"4,212.00",M44E,Adult Social Care Operations,Supplies and Services,Jun-21
Slough Borough Council,807050,Infinity Fire Protection Ltd,"1,185.00",A04F,Adult Social Care Operations,Supplies and Services,Jun-21
Slough Borough Council,803651,Insight Direct (UK) Ltd,"2,547.28",D760,Direct Service Organisation (DSO),Supplies and Services,Jun-21
Slough Borough Council,805325,Instarmac Group plc,"1,447.80",D880,Direct Service Organisation (DSO),Supplies and Services,Jun-21
Slough Borough Council,805325,Instarmac Group plc,"2,175.86",D880,Direct Service Organisation (DSO),Supplies and Services,Jun-21
Slough Borough Council,805325,Instarmac Group plc,652.40,D880,Direct Service Organisation (DSO),Supplies and Services,Jun-21
Slough Borough Council,3172,Intelligent Transport Services,"3,095.00",D508,Major Infrastructure Projects,Supplies and Services,Jun-21
Slough Borough Council,3500,Iqra Slough Islamic Primary School,"71,782.19",E489,DSG - Schools,Supplies and Services,Jun-21
Slough Borough Council,998,Iron Mountain Uk Ltd,703.72,B282,Digital and Strategic IT,Supplies and Services,Jun-21
Slough Borough Council,998,Iron Mountain Uk Ltd,832.50,B282,Digital and Strategic IT,Supplies and Services,Jun-21
Slough Borough Council,998,Iron Mountain Uk Ltd,833.43,B282,Digital and Strategic IT,Supplies and Services,Jun-21
Slough Borough Council,998,Iron Mountain Uk Ltd,"2,131.13",B282,Digital and Strategic IT,Supplies and Services,Jun-21
Slough Borough Council,2919,Islamic Shakhsiyah Foundation,"9,384.58",F909,DSG - Early Years,Supplies and Services,Jun-21
Slough Borough Council,806270,J2 RESEARCH LTD,"2,440.00",F210,Communities and Leisure,Supplies and Services,Jun-21
Slough Borough Council,807346,Jacaranda,"4,379.00",M44F,Adult Social Care Operations,Supplies and Services,Jun-21
Slough Borough Council,753,Jack In The Box Day Nursery,"10,369.81",F909,DSG - Early Years,Supplies and Services,Jun-21
Slough Borough Council,1479,Jactone Products Limited,"14,272.14",P095,Capital,Capital Charges,Jun-21
Slough Borough Council,733,James Elliman  School,"23,920.00",E319,DSG - Schools,Supplies and Services,Jun-21
Slough Borough Council,805666,James Rosental,"2,075.50",C322,Communities and Leisure,Supplies and Services,Jun-21
Slough Borough Council,805226,JD Surfacing & Civil Engineering Limited,"1,430.00",D880,Direct Service Organisation (DSO),Supplies and Services,Jun-21
Slough Borough Council,805226,JD Surfacing & Civil Engineering Limited,990.00,D880,Direct Service Organisation (DSO),Supplies and Services,Jun-21
Slough Borough Council,805226,JD Surfacing & Civil Engineering Limited,"1,855.00",D880,Direct Service Organisation (DSO),Supplies and Services,Jun-21
Slough Borough Council,805226,JD Surfacing & Civil Engineering Limited,"8,640.00",D880,Direct Service Organisation (DSO),Supplies and Services,Jun-21
Slough Borough Council,805226,JD Surfacing & Civil Engineering Limited,"1,484.00",D880,Direct Service Organisation (DSO),Supplies and Services,Jun-21
Slough Borough Council,805226,JD Surfacing & Civil Engineering Limited,"11,581.55",D880,Direct Service Organisation (DSO),Supplies and Services,Jun-21
Slough Borough Council,805226,JD Surfacing & Civil Engineering Limited,"1,241.00",D880,Direct Service Organisation (DSO),Supplies and Services,Jun-21
Slough Borough Council,805226,JD Surfacing & Civil Engineering Limited,"1,100.00",D880,Direct Service Organisation (DSO),Supplies and Services,Jun-21
Slough Borough Council,805226,JD Surfacing & Civil Engineering Limited,815.00,D880,Direct Service Organisation (DSO),Supplies and Services,Jun-21
Slough Borough Council,805226,JD Surfacing & Civil Engineering Limited,"12,251.04",D880,Direct Service Organisation (DSO),Supplies and Services,Jun-21
Slough Borough Council,805226,JD Surfacing & Civil Engineering Limited,"9,720.00",D880,Direct Service Organisation (DSO),Supplies and Services,Jun-21
Slough Borough Council,805226,JD Surfacing & Civil Engineering Limited,"4,582.00",D880,Direct Service Organisation (DSO),Supplies and Services,Jun-21
Slough Borough Council,805226,JD Surfacing & Civil Engineering Limited,"1,241.00",D880,Direct Service Organisation (DSO),Supplies and Services,Jun-21
Slough Borough Council,805226,JD Surfacing & Civil Engineering Limited,990.00,D880,Direct Service Organisation (DSO),Supplies and Services,Jun-21
Slough Borough Council,805226,JD Surfacing & Civil Engineering Limited,"10,013.55",D880,Direct Service Organisation (DSO),Supplies and Services,Jun-21
Slough Borough Council,805226,JD Surfacing & Civil Engineering Limited,"7,560.00",D880,Direct Service Organisation (DSO),Supplies and Services,Jun-21
Slough Borough Council,805226,JD Surfacing & Civil Engineering Limited,"1,855.00",D880,Direct Service Organisation (DSO),Supplies and Services,Jun-21
Slough Borough Council,805226,JD Surfacing & Civil Engineering Limited,858.00,D880,Direct Service Organisation (DSO),Supplies and Services,Jun-21
Slough Borough Council,805226,JD Surfacing & Civil Engineering Limited,"9,895.55",D880,Direct Service Organisation (DSO),Supplies and Services,Jun-21
Slough Borough Council,805226,JD Surfacing & Civil Engineering Limited,"1,241.00",D880,Direct Service Organisation (DSO),Supplies and Services,Jun-21
Slough Borough Council,805226,JD Surfacing & Civil Engineering Limited,"14,670.00",D880,Direct Service Organisation (DSO),Supplies and Services,Jun-21
Slough Borough Council,805226,JD Surfacing & Civil Engineering Limited,"1,375.00",D880,Direct Service Organisation (DSO),Supplies and Services,Jun-21
Slough Borough Council,805226,JD Surfacing & Civil Engineering Limited,"1,855.00",D880,Direct Service Organisation (DSO),Supplies and Services,Jun-21
Slough Borough Council,807308,JLA Total Care Ltd,649.66,H205,Housing (People) Services,Supplies and Services,Jun-21
Slough Borough Council,956,John Murphy & Company Ltd,"3,125.00",H219,Neighbourhood Services,Supplies and Services,Jun-21
Slough Borough Council,298,John Ross Pharmacy,768.59,A04C,Adult Social Care Commissioning,Supplies and Services,Jun-21
Slough Borough Council,2200,Joshua Pilmore,"1,288.00",C322,Communities and Leisure,Supplies and Services,Jun-21
Slough Borough Council,807674,Kainos Software Ltd,"2,500.00",D501,Planning and Transport,Supplies and Services,Jun-21
Slough Borough Council,201,Kamal Enterprises Ltd,768.59,A04C,Adult Social Care Commissioning,Supplies and Services,Jun-21
Slough Borough Council,803815,Kathys Childcare,"1,859.47",F909,DSG - Early Years,Supplies and Services,Jun-21
Slough Borough Council,2620,Kcare Nursing Agency Ltd,"1,394.37",M44C,Adult Social Care Operations,Supplies and Services,Jun-21
Slough Borough Council,2620,Kcare Nursing Agency Ltd,"2,441.80",M44C,Adult Social Care Operations,Supplies and Services,Jun-21
Slough Borough Council,2620,Kcare Nursing Agency Ltd,"3,032.13",M44C,Adult Social Care Operations,Supplies and Services,Jun-21
Slough Borough Council,2620,Kcare Nursing Agency Ltd,"2,690.10",M44C,Adult Social Care Operations,Supplies and Services,Jun-21
Slough Borough Council,2620,Kcare Nursing Agency Ltd,756.64,M44C,Adult Social Care Operations,Supplies and Services,Jun-21
Slough Borough Council,2620,Kcare Nursing Agency Ltd,887.73,M44C,Adult Social Care Operations,Supplies and Services,Jun-21
Slough Borough Council,2620,Kcare Nursing Agency Ltd,"2,391.20",M44C,Adult Social Care Operations,Supplies and Services,Jun-21
Slough Borough Council,2620,Kcare Nursing Agency Ltd,901.61,M44C,Adult Social Care Operations,Supplies and Services,Jun-21
Slough Borough Council,2620,Kcare Nursing Agency Ltd,951.78,M44C,Adult Social Care Operations,Supplies and Services,Jun-21
Slough Borough Council,2620,Kcare Nursing Agency Ltd,735.08,M44C,Adult Social Care Operations,Supplies and Services,Jun-21
Slough Borough Council,2620,Kcare Nursing Agency Ltd,"4,000.00",M48C,Adult Social Care Operations,Supplies and Services,Jun-21
Slough Borough Council,2620,Kcare Nursing Agency Ltd,"4,000.00",M48C,Adult Social Care Operations,Supplies and Services,Jun-21
Slough Borough Council,2620,Kcare Nursing Agency Ltd,"1,046.36",M48C,Adult Social Care Operations,Supplies and Services,Jun-21
Slough Borough Council,804887,KCare Nursing Agency Ltd Supported House Living,"2,926.00",M42F,Adult Social Care Operations,Supplies and Services,Jun-21
Slough Borough Council,804887,KCare Nursing Agency Ltd Supported House Living,"2,493.50",M44F,Adult Social Care Operations,Supplies and Services,Jun-21
Slough Borough Council,807742,Khalsa Primary School,"11,660.00",E529,DSG - Schools,Supplies and Services,Jun-21
Slough Borough Council,803916,Kharis Solutions,943.50,A07R,Adult Social Care Operations,Supplies and Services,Jun-21
Slough Borough Council,803916,Kharis Solutions,"2,142.00",A07R,Adult Social Care Operations,Supplies and Services,Jun-21
Slough Borough Council,803916,Kharis Solutions,"2,142.00",M44C,Adult Social Care Operations,Supplies and Services,Jun-21
Slough Borough Council,803916,Kharis Solutions,"1,904.00",M44C,Adult Social Care Operations,Supplies and Services,Jun-21
Slough Borough Council,803916,Kharis Solutions,"2,278.00",M44C,Adult Social Care Operations,Supplies and Services,Jun-21
Slough Borough Council,803916,Kharis Solutions,"10,836.00",M44E,Adult Social Care Operations,Supplies and Services,Jun-21
Slough Borough Council,803916,Kharis Solutions,"11,088.00",M44E,Adult Social Care Operations,Supplies and Services,Jun-21
Slough Borough Council,803916,Kharis Solutions,"11,088.00",M44E,Adult Social Care Operations,Supplies and Services,Jun-21
Slough Borough Council,803916,Kharis Solutions,"1,188.00",M44E,Adult Social Care Operations,Supplies and Services,Jun-21
Slough Borough Council,803916,Kharis Solutions,637.50,M45C,Adult Social Care Operations,Supplies and Services,Jun-21
Slough Borough Council,803916,Kharis Solutions,"2,210.00",M48C,Adult Social Care Operations,Supplies and Services,Jun-21
Slough Borough Council,807911,Kidz Enterprise LTD,840.00,F382,Children & Families,TP-Other Bodies,Jun-21
Slough Borough Council,807411,Kier Construction Limited T/A Kier Construction Southern,"265,584.55",P204,Capital,Capital Charges,Jun-21
Slough Borough Council,1728,Kristiina Smith,"1,750.00",C322,Communities and Leisure,Supplies and Services,Jun-21
Slough Borough Council,664,Langley Grammar School,800.00,E329,DSG - Schools,Supplies and Services,Jun-21
Slough Borough Council,1699,Langley Hall Primary Academy,"2,700.00",E739,DSG - Schools,Supplies and Services,Jun-21
Slough Borough Council,3001,Langley Haven Care Homes Ltd,"3,420.00",M25C,Adult Social Care Operations,Supplies and Services,Jun-21
Slough Borough Council,3001,Langley Haven Care Homes Ltd,"3,420.00",M25C,Adult Social Care Operations,Supplies and Services,Jun-21
Slough Borough Council,3001,Langley Haven Care Homes Ltd,"3,200.00",M25C,Adult Social Care Operations,Supplies and Services,Jun-21
Slough Borough Council,3001,Langley Haven Care Homes Ltd,"3,600.00",M26E,Adult Social Care Operations,Supplies and Services,Jun-21
Slough Borough Council,3001,Langley Haven Care Homes Ltd,"3,600.00",M26E,Adult Social Care Operations,Supplies and Services,Jun-21
Slough Borough Council,3001,Langley Haven Care Homes Ltd,"3,534.00",M27C,Adult Social Care Operations,Supplies and Services,Jun-21
Slough Borough Council,3001,Langley Haven Care Homes Ltd,"3,488.40",M27C,Adult Social Care Operations,Supplies and Services,Jun-21
Slough Borough Council,3001,Langley Haven Care Homes Ltd,"3,465.60",M27C,Adult Social Care Operations,Supplies and Services,Jun-21
Slough Borough Council,3001,Langley Haven Care Homes Ltd,"3,534.00",M27C,Adult Social Care Operations,Supplies and Services,Jun-21
Slough Borough Council,3001,Langley Haven Care Homes Ltd,"3,420.00",M27C,Adult Social Care Operations,Supplies and Services,Jun-21
Slough Borough Council,3001,Langley Haven Care Homes Ltd,"3,534.00",M27C,Adult Social Care Operations,Supplies and Services,Jun-21
Slough Borough Council,3001,Langley Haven Care Homes Ltd,"3,534.00",M27C,Adult Social Care Operations,Supplies and Services,Jun-21
Slough Borough Council,3001,Langley Haven Care Homes Ltd,"3,192.00",M27C,Adult Social Care Operations,Supplies and Services,Jun-21
Slough Borough Council,3001,Langley Haven Care Homes Ltd,"3,420.00",M27C,Adult Social Care Operations,Supplies and Services,Jun-21
Slough Borough Council,3001,Langley Haven Care Homes Ltd,"3,420.00",M27C,Adult Social Care Operations,Supplies and Services,Jun-21
Slough Borough Council,3001,Langley Haven Care Homes Ltd,"3,420.00",M27C,Adult Social Care Operations,Supplies and Services,Jun-21
Slough Borough Council,3001,Langley Haven Care Homes Ltd,"3,420.00",M27C,Adult Social Care Operations,Supplies and Services,Jun-21
Slough Borough Council,3001,Langley Haven Care Homes Ltd,"3,488.40",M27C,Adult Social Care Operations,Supplies and Services,Jun-21
Slough Borough Council,3001,Langley Haven Care Homes Ltd,"3,420.00",M27C,Adult Social Care Operations,Supplies and Services,Jun-21
Slough Borough Council,3001,Langley Haven Care Homes Ltd,"3,857.14",M27F,Adult Social Care Operations,Supplies and Services,Jun-21
Slough Borough Council,3001,Langley Haven Care Homes Ltd,"1,800.00",M27F,Adult Social Care Operations,Supplies and Services,Jun-21
Slough Borough Council,3001,Langley Haven Care Homes Ltd,"3,420.00",M27F,Adult Social Care Operations,Supplies and Services,Jun-21
Slough Borough Council,3001,Langley Haven Care Homes Ltd,"3,420.00",M27F,Adult Social Care Operations,Supplies and Services,Jun-21
Slough Borough Council,3001,Langley Haven Care Homes Ltd,"1,700.00",M27F,Adult Social Care Operations,Supplies and Services,Jun-21
Slough Borough Council,3001,Langley Haven Care Homes Ltd,912.00,M29C,Adult Social Care Operations,Supplies and Services,Jun-21
Slough Borough Council,3001,Langley Haven Care Homes Ltd,"3,420.00",M29C,Adult Social Care Operations,Supplies and Services,Jun-21
Slough Borough Council,803686,Lascelles Park Nursery,"15,736.21",F909,DSG - Early Years,Supplies and Services,Jun-21
Slough Borough Council,1077,Lavat Consulting Limited,"9,600.00",B008,Finance,Supplies and Services,Jun-21
Slough Borough Council,803222,Learning Pool Limited,"3,000.00",B409,People,Indirect Employee Expenses,Jun-21
Slough Borough Council,3482,Leonard Cheshire Disability,"5,608.87",M25D,Adult Social Care Operations,Supplies and Services,Jun-21
Slough Borough Council,3482,Leonard Cheshire Disability,"6,207.48",M26E,Adult Social Care Operations,Supplies and Services,Jun-21
Slough Borough Council,301,Liberata Uk Limited,"2,010.40",B290,Finance,Premises,Jun-21
Slough Borough Council,301,Liberata Uk Limited,"4,343.90",B290,Finance,Premises,Jun-21
Slough Borough Council,301,Liberata Uk Limited,"5,607.80",B290,Finance,Premises,Jun-21
Slough Borough Council,301,Liberata Uk Limited,"7,275.00",B290,Finance,Premises,Jun-21
Slough Borough Council,301,Liberata Uk Limited,"5,625.75",B290,Finance,Premises,Jun-21
Slough Borough Council,301,Liberata Uk Limited,"5,661.55",B290,Finance,Premises,Jun-21
Slough Borough Council,301,Liberata Uk Limited,"5,313.20",B290,Finance,Premises,Jun-21
Slough Borough Council,301,Liberata Uk Limited,"7,583.05",B048,Customer and Communications,Supplies and Services,Jun-21
Slough Borough Council,804692,Little Diamonds Pre School,"20,345.50",F909,DSG - Early Years,Supplies and Services,Jun-21
Slough Borough Council,3791,Littledown Pru,"17,100.00",E807,DSG - High Needs Block,Supplies and Services,Jun-21
Slough Borough Council,667,Littledown School,"55,600.00",E807,DSG - High Needs Block,Supplies and Services,Jun-21
Slough Borough Council,1533,Local Partnerships,"10,120.78",P168,Capital,Supplies and Services,Jun-21
Slough Borough Council,804544,London Borough of Harrow,"127,881.67",B096,Governance,Indirect Employee Expenses,Jun-21
Slough Borough Council,1282,Long Close School,"9,091.90",F909,DSG - Early Years,Supplies and Services,Jun-21
Slough Borough Council,804585,Longlea Ltd,"3,857.14",M18C,Adult Social Care Operations,Supplies and Services,Jun-21
Slough Borough Council,2302,Look Ahead Care And Support,"-2,020.40",M42F,Adult Social Care Operations,Supplies and Services,Jun-21
Slough Borough Council,2302,Look Ahead Care And Support,"27,593.80",M42F,Adult Social Care Operations,Supplies and Services,Jun-21
Slough Borough Council,2302,Look Ahead Care And Support,"27,275.40",M42F,Adult Social Care Operations,Supplies and Services,Jun-21
Slough Borough Council,2302,Look Ahead Care And Support,"2,020.40",M44F,Adult Social Care Operations,Supplies and Services,Jun-21
Slough Borough Council,2302,Look Ahead Care And Support,"3,450.02",M44F,Adult Social Care Operations,Supplies and Services,Jun-21
Slough Borough Council,2302,Look Ahead Care And Support,"3,131.62",M44F,Adult Social Care Operations,Supplies and Services,Jun-21
Slough Borough Council,2302,Look Ahead Care And Support,"17,726.39",M44F,Adult Social Care Operations,Supplies and Services,Jun-21
Slough Borough Council,806297,Love to ride,"5,000.00",D508,Major Infrastructure Projects,Supplies and Services,Jun-21
Slough Borough Council,807840,Lumen,"4,109.90",B282,Digital and Strategic IT,Supplies and Services,Jun-21
Slough Borough Council,1195,Lynch Hill (Foundation Primary) School,"32,450.00",E749,DSG - Schools,Supplies and Services,Jun-21
Slough Borough Council,1771,Lynch Hill Academy,"8,200.00",E359,DSG - Schools,Supplies and Services,Jun-21
Slough Borough Council,804323,Lyndsay Barlow,"5,250.00",F146,Early Years & Prevention,Indirect Employee Expenses,Jun-21
Slough Borough Council,290,Lyreco Uk Limited,624.00,B064,Building Management,Supplies and Services,Jun-21
Slough Borough Council,3424,M D Homes,"4,714.29",M15F,Adult Social Care Operations,Supplies and Services,Jun-21
Slough Borough Council,807217,Macadamia Support Limited,"3,589.12",M42E,Adult Social Care Operations,Supplies and Services,Jun-21
Slough Borough Council,807217,Macadamia Support Limited,"6,713.00",M42E,Adult Social Care Operations,Supplies and Services,Jun-21
Slough Borough Council,807217,Macadamia Support Limited,"3,591.56",M44C,Adult Social Care Operations,Supplies and Services,Jun-21
Slough Borough Council,807217,Macadamia Support Limited,"5,523.00",M44D,Adult Social Care Operations,Supplies and Services,Jun-21
Slough Borough Council,807895,Marcus Allard,"3,759.60",F253,Schools,Agency Staff,Jun-21
Slough Borough Council,529,Marish Primary School,"70,750.00",E759,DSG - Schools,Supplies and Services,Jun-21
Slough Borough Council,807774,Marsh Ltd,"33,647.69",B018,Finance,Supplies and Services,Jun-21
Slough Borough Council,807774,Marsh Ltd,"11,420.47",B018,Finance,Supplies and Services,Jun-21
Slough Borough Council,807774,Marsh Ltd,"2,475.11",B018,Finance,Supplies and Services,Jun-21
Slough Borough Council,2752,Martin Conway,980.00,H205,Housing (People) Services,Supplies and Services,Jun-21
Slough Borough Council,2752,Martin Conway,560.00,H205,Housing (People) Services,Supplies and Services,Jun-21
Slough Borough Council,2752,Martin Conway,980.00,H205,Housing (People) Services,Supplies and Services,Jun-21
Slough Borough Council,2752,Martin Conway,630.00,H205,Housing (People) Services,Supplies and Services,Jun-21
Slough Borough Council,1886,Matrix Scm,"323,914.12",B023,Finance,Agency Staff,Jun-21
Slough Borough Council,1886,Matrix Scm,"301,826.95",B023,Finance,Agency Staff,Jun-21
Slough Borough Council,1886,Matrix Scm,"303,442.32",B023,Finance,Agency Staff,Jun-21
Slough Borough Council,1886,Matrix Scm,"297,645.74",B023,Finance,Agency Staff,Jun-21
Slough Borough Council,671,Mcleod Cabins Ltd,"1,125.00",B242,Governance,Supplies and Services,Jun-21
Slough Borough Council,807902,Media Powerhouse,560.00,B175,Building Management,Premises,Jun-21
Slough Borough Council,807009,Medigold Health Consultancy Ltd,"6,998.25",B349,People,Supplies and Services,Jun-21
Slough Borough Council,807009,Medigold Health Consultancy Ltd,"-24,566.00",B349,People,Supplies and Services,Jun-21
Slough Borough Council,807009,Medigold Health Consultancy Ltd,"6,998.25",B349,People,Supplies and Services,Jun-21
Slough Borough Council,807009,Medigold Health Consultancy Ltd,"6,998.25",B349,People,Supplies and Services,Jun-21
Slough Borough Council,807009,Medigold Health Consultancy Ltd,"6,998.25",B349,People,Supplies and Services,Jun-21
Slough Borough Council,807009,Medigold Health Consultancy Ltd,"6,998.25",B349,People,Supplies and Services,Jun-21
Slough Borough Council,805981,Metastreet Limited,"11,000.00",H221,Neighbourhood Services,Supplies and Services,Jun-21
Slough Borough Council,1630,Mfd International Limited,"1,154.31",B169,Building Management,Premises,Jun-21
Slough Borough Council,1496,Mighty Acorns Day Nursery Ltd,"15,209.32",F909,DSG - Early Years,Supplies and Services,Jun-21
Slough Borough Council,805121,MMCG (2) Limited,"3,557.25",M15D,Adult Social Care Operations,Supplies and Services,Jun-21
Slough Borough Council,805121,MMCG (2) Limited,"3,375.00",M15F,Adult Social Care Operations,Supplies and Services,Jun-21
Slough Borough Council,805121,MMCG (2) Limited,"3,557.25",M17C,Adult Social Care Operations,Supplies and Services,Jun-21
Slough Borough Council,805121,MMCG (2) Limited,"3,487.50",M18C,Adult Social Care Operations,Supplies and Services,Jun-21
Slough Borough Council,805121,MMCG (2) Limited,"3,557.25",M18C,Adult Social Care Operations,Supplies and Services,Jun-21
Slough Borough Council,805121,MMCG (2) Limited,"3,557.25",M18C,Adult Social Care Operations,Supplies and Services,Jun-21
Slough Borough Council,805121,MMCG (2) Limited,562.50,M18C,Adult Social Care Operations,Supplies and Services,Jun-21
Slough Borough Council,805121,MMCG (2) Limited,"3,557.25",M18C,Adult Social Care Operations,Supplies and Services,Jun-21
Slough Borough Council,805121,MMCG (2) Limited,"3,557.25",M18C,Adult Social Care Operations,Supplies and Services,Jun-21
Slough Borough Council,805121,MMCG (2) Limited,"3,557.25",M18C,Adult Social Care Operations,Supplies and Services,Jun-21
Slough Borough Council,805121,MMCG (2) Limited,"3,557.25",M25C,Adult Social Care Operations,Supplies and Services,Jun-21
Slough Borough Council,805121,MMCG (2) Limited,"3,557.25",M25C,Adult Social Care Operations,Supplies and Services,Jun-21
Slough Borough Council,805121,MMCG (2) Limited,"3,557.25",M25C,Adult Social Care Operations,Supplies and Services,Jun-21
Slough Borough Council,805121,MMCG (2) Limited,"3,557.25",M25C,Adult Social Care Operations,Supplies and Services,Jun-21
Slough Borough Council,805121,MMCG (2) Limited,"3,557.25",M27C,Adult Social Care Operations,Supplies and Services,Jun-21
Slough Borough Council,805121,MMCG (2) Limited,"3,557.25",M27C,Adult Social Care Operations,Supplies and Services,Jun-21
Slough Borough Council,805121,MMCG (2) Limited,"3,557.25",M27C,Adult Social Care Operations,Supplies and Services,Jun-21
Slough Borough Council,805121,MMCG (2) Limited,"3,557.25",M27C,Adult Social Care Operations,Supplies and Services,Jun-21
Slough Borough Council,805121,MMCG (2) Limited,"3,557.25",M28C,Adult Social Care Operations,Supplies and Services,Jun-21
Slough Borough Council,805121,MMCG (2) Limited,"3,487.50",M28C,Adult Social Care Operations,Supplies and Services,Jun-21
Slough Borough Council,805121,MMCG (2) Limited,"3,487.50",M28C,Adult Social Care Operations,Supplies and Services,Jun-21
Slough Borough Council,805121,MMCG (2) Limited,"2,587.50",M28C,Adult Social Care Operations,Supplies and Services,Jun-21
Slough Borough Council,805121,MMCG (2) Limited,"3,557.25",M29C,Adult Social Care Operations,Supplies and Services,Jun-21
Slough Borough Council,2645,Modus Care Ltd,"10,804.39",M26E,Adult Social Care Operations,Supplies and Services,Jun-21
Slough Borough Council,805089,Molly McGibbon,"1,327.00",C322,Communities and Leisure,Supplies and Services,Jun-21
Slough Borough Council,2115,Montagu Evans Llp,"7,500.00",B079,Regeneration Development,Supplies and Services,Jun-21
Slough Borough Council,2166,Montague Swift Recruitment Ltd,"6,750.00",F640,Inclusion,Agency Staff,Jun-21
Slough Borough Council,1140,Montem Guesthouse,518.00,M51C,Adult Social Care Operations,Supplies and Services,Jun-21
Slough Borough Council,1140,Montem Guesthouse,"1,000.00",H216,Housing (People) Services,Supplies and Services,Jun-21
Slough Borough Council,1140,Montem Guesthouse,"1,395.00",H205,Housing (People) Services,Supplies and Services,Jun-21
Slough Borough Council,1140,Montem Guesthouse,"1,395.00",H205,Housing (People) Services,Supplies and Services,Jun-21
Slough Borough Council,1140,Montem Guesthouse,"1,240.00",H205,Housing (People) Services,Supplies and Services,Jun-21
Slough Borough Council,1140,Montem Guesthouse,"1,085.00",H205,Housing (People) Services,Supplies and Services,Jun-21
Slough Borough Council,1140,Montem Guesthouse,"1,395.00",H205,Housing (People) Services,Supplies and Services,Jun-21
Slough Borough Council,1140,Montem Guesthouse,"1,395.00",H205,Housing (People) Services,Supplies and Services,Jun-21
Slough Borough Council,1140,Montem Guesthouse,900.00,H205,Housing (People) Services,Supplies and Services,Jun-21
Slough Borough Council,1140,Montem Guesthouse,"1,085.00",H205,Housing (People) Services,Supplies and Services,Jun-21
Slough Borough Council,1140,Montem Guesthouse,"1,085.00",H205,Housing (People) Services,Supplies and Services,Jun-21
Slough Borough Council,1140,Montem Guesthouse,"1,085.00",H205,Housing (People) Services,Supplies and Services,Jun-21
Slough Borough Council,1140,Montem Guesthouse,"1,550.00",H205,Housing (People) Services,Supplies and Services,Jun-21
Slough Borough Council,1140,Montem Guesthouse,"1,550.00",H205,Housing (People) Services,Supplies and Services,Jun-21
Slough Borough Council,1140,Montem Guesthouse,"1,395.00",H205,Housing (People) Services,Supplies and Services,Jun-21
Slough Borough Council,1140,Montem Guesthouse,"1,240.00",H205,Housing (People) Services,Supplies and Services,Jun-21
Slough Borough Council,1140,Montem Guesthouse,675.00,H205,Housing (People) Services,Supplies and Services,Jun-21
Slough Borough Council,1140,Montem Guesthouse,675.00,H205,Housing (People) Services,Supplies and Services,Jun-21
Slough Borough Council,1140,Montem Guesthouse,"1,395.00",H205,Housing (People) Services,Supplies and Services,Jun-21
Slough Borough Council,1140,Montem Guesthouse,"1,705.00",H205,Housing (People) Services,Supplies and Services,Jun-21
Slough Borough Council,1140,Montem Guesthouse,"1,240.00",H205,Housing (People) Services,Supplies and Services,Jun-21
Slough Borough Council,1140,Montem Guesthouse,800.00,H205,Housing (People) Services,Supplies and Services,Jun-21
Slough Borough Council,1140,Montem Guesthouse,"1,240.00",H205,Housing (People) Services,Supplies and Services,Jun-21
Slough Borough Council,1140,Montem Guesthouse,"1,550.00",H207,Housing (People) Services,Supplies and Services,Jun-21
Slough Borough Council,3302,Montem Primary School,"24,250.00",E339,DSG - Schools,Supplies and Services,Jun-21
Slough Borough Council,1632,Monterpoint Technologies,"26,100.00",F210,Communities and Leisure,Supplies and Services,Jun-21
Slough Borough Council,807432,MPD FM Limited,"1,186.08",B152,Building Management,Premises,Jun-21
Slough Borough Council,807432,MPD FM Limited,"1,800.30",B167,Building Management,Premises,Jun-21
Slough Borough Council,807432,MPD FM Limited,"1,154.31",B175,Building Management,Premises,Jun-21
Slough Borough Council,807432,MPD FM Limited,"1,164.90",B175,Building Management,Premises,Jun-21
Slough Borough Council,807432,MPD FM Limited,"6,232.22",A07M,Mental Health Services,Premises,Jun-21
Slough Borough Council,807432,MPD FM Limited,"6,475.79",H216,Housing (People) Services,Supplies and Services,Jun-21
Slough Borough Council,806484,Mrs Parwinder Kaur Bhandal,"6,968.00",H205,Housing (People) Services,Supplies and Services,Jun-21
Slough Borough Council,806858,MUDDY BOOTS DAY NURSERY LTD,"8,857.88",F909,DSG - Early Years,Supplies and Services,Jun-21
Slough Borough Council,805369,NAS Services Limited,"8,442.50",M42E,Adult Social Care Operations,Supplies and Services,Jun-21
Slough Borough Council,805369,NAS Services Limited,"16,534.62",F449,DSG - High Needs Block,Supplies and Services,Jun-21
Slough Borough Council,805369,NAS Services Limited,727.76,F449,DSG - High Needs Block,Supplies and Services,Jun-21
Slough Borough Council,805369,NAS Services Limited,"14,560.00",F462,DSG - High Needs Block,Supplies and Services,Jun-21
Slough Borough Council,807473,Nash House Training Centre,"3,285.00",F210,Communities and Leisure,Indirect Employee Expenses,Jun-21
Slough Borough Council,804856,New Look Lawns,545.00,F186,Early Years & Prevention,Premises,Jun-21
Slough Borough Council,804856,New Look Lawns,944.60,F186,Early Years & Prevention,Premises,Jun-21
Slough Borough Council,601,Nfer Trading Ltd,"1,133.40",C003,Communities and Leisure,Supplies and Services,Jun-21
Slough Borough Council,807966,Nicholas Stuart,800.00,C322,Communities and Leisure,Supplies and Services,Jun-21
Slough Borough Council,1864,Noahs Ark Environmental Services Ltd,"2,623.60",H253,Neighbourhood Services,External Receipts,Jun-21
Slough Borough Council,1864,Noahs Ark Environmental Services Ltd,-509.30,H253,Neighbourhood Services,External Receipts,Jun-21
Slough Borough Council,1864,Noahs Ark Environmental Services Ltd,-960.00,H253,Neighbourhood Services,External Receipts,Jun-21
Slough Borough Council,805330,Norden Farm Centre Trust Limited,"1,480.00",B175,Building Management,External Receipts,Jun-21
Slough Borough Council,1391,Northgate Public Services (Uk) Ltd,"2,800.00",P216,Capital,Capital Charges,Jun-21
Slough Borough Council,3717,Norwood Schools Limited,"4,040.28",M26E,Adult Social Care Operations,Supplies and Services,Jun-21
Slough Borough Council,3717,Norwood Schools Limited,-608.80,M26E,Adult Social Care Operations,External Receipts,Jun-21
Slough Borough Council,2021,Now Medical,545.00,H207,Housing (People) Services,Supplies and Services,Jun-21
Slough Borough Council,2021,Now Medical,695.00,H207,Housing (People) Services,Supplies and Services,Jun-21
Slough Borough Council,803238,Oasis Care and Training Agency,"1,443.96",M42C,Adult Social Care Operations,Supplies and Services,Jun-21
Slough Borough Council,803238,Oasis Care and Training Agency,"1,014.20",M44C,Adult Social Care Operations,Supplies and Services,Jun-21
Slough Borough Council,803238,Oasis Care and Training Agency,"2,681.64",M44C,Adult Social Care Operations,Supplies and Services,Jun-21
Slough Borough Council,803238,Oasis Care and Training Agency,"3,472.40",M44C,Adult Social Care Operations,Supplies and Services,Jun-21
Slough Borough Council,803238,Oasis Care and Training Agency,"1,400.99",M44C,Adult Social Care Operations,Supplies and Services,Jun-21
Slough Borough Council,803238,Oasis Care and Training Agency,"2,784.80",M44C,Adult Social Care Operations,Supplies and Services,Jun-21
Slough Borough Council,803238,Oasis Care and Training Agency,"1,443.96",M44C,Adult Social Care Operations,Supplies and Services,Jun-21
Slough Borough Council,803238,Oasis Care and Training Agency,"2,165.96",M44C,Adult Social Care Operations,Supplies and Services,Jun-21
Slough Borough Council,803238,Oasis Care and Training Agency,731.59,M44C,Adult Social Care Operations,Supplies and Services,Jun-21
Slough Borough Council,803238,Oasis Care and Training Agency,"1,272.08",M44C,Adult Social Care Operations,Supplies and Services,Jun-21
Slough Borough Council,803238,Oasis Care and Training Agency,601.64,M44C,Adult Social Care Operations,Supplies and Services,Jun-21
Slough Borough Council,803238,Oasis Care and Training Agency,"1,340.84",M44D,Adult Social Care Operations,Supplies and Services,Jun-21
Slough Borough Council,803238,Oasis Care and Training Agency,979.84,M44D,Adult Social Care Operations,Supplies and Services,Jun-21
Slough Borough Council,803238,Oasis Care and Training Agency,842.32,M44D,Adult Social Care Operations,Supplies and Services,Jun-21
Slough Borough Council,803238,Oasis Care and Training Agency,"1,547.12",M44D,Adult Social Care Operations,Supplies and Services,Jun-21
Slough Borough Council,803238,Oasis Care and Training Agency,"4,331.88",M44F,Adult Social Care Operations,Supplies and Services,Jun-21
Slough Borough Council,803238,Oasis Care and Training Agency,550.08,M44F,Adult Social Care Operations,Supplies and Services,Jun-21
Slough Borough Council,803238,Oasis Care and Training Agency,"2,406.60",M48C,Adult Social Care Operations,Supplies and Services,Jun-21
Slough Borough Council,803238,Oasis Care and Training Agency,"9,576.00",M48C,Adult Social Care Operations,Supplies and Services,Jun-21
Slough Borough Council,282,Ocn Contract Services,"1,968.00",H202,Housing (People) Services,Supplies and Services,Jun-21
Slough Borough Council,1767,Olive Tree Montessori Ltd,"19,008.64",F909,DSG - Early Years,Supplies and Services,Jun-21
Slough Borough Council,3603,Olympia Transport Limited,"9,420.80",F123,Schools,Supplies and Services,Jun-21
Slough Borough Council,804687,Optalis Limited,"5,642.13",M26E,Adult Social Care Operations,Supplies and Services,Jun-21
Slough Borough Council,804687,Optalis Limited,"5,766.13",M42E,Adult Social Care Operations,Supplies and Services,Jun-21
Slough Borough Council,804687,Optalis Limited,"4,807.26",M42E,Adult Social Care Operations,Supplies and Services,Jun-21
Slough Borough Council,804687,Optalis Limited,"4,807.26",M42E,Adult Social Care Operations,Supplies and Services,Jun-21
Slough Borough Council,803490,Optimum Specialised Home Limited,"2,100.00",M26E,Adult Social Care Operations,Supplies and Services,Jun-21
Slough Borough Council,803490,Optimum Specialised Home Limited,"2,100.00",M26E,Adult Social Care Operations,Supplies and Services,Jun-21
Slough Borough Council,803490,Optimum Specialised Home Limited,"2,100.00",M26E,Adult Social Care Operations,Supplies and Services,Jun-21
Slough Borough Council,803490,Optimum Specialised Home Limited,"2,100.00",M26E,Adult Social Care Operations,Supplies and Services,Jun-21
Slough Borough Council,1629,Opus Energy Limited,"13,392.08",K526,Building Management,Premises,Jun-21
Slough Borough Council,1629,Opus Energy Limited,"29,961.36",K526,Building Management,Premises,Jun-21
Slough Borough Council,805011,Osborne Property Services Limited,"206,397.35",J607,HDC Housing Development,Premises,Jun-21
Slough Borough Council,805011,Osborne Property Services Limited,"46,335.78",J015,Housing Revenue Account,Premises,Jun-21
Slough Borough Council,805011,Osborne Property Services Limited,"165,442.33",J607,HDC Housing Development,Supplies and Services,Jun-21
Slough Borough Council,805011,Osborne Property Services Limited,"38,522.88",P409,Capital,Capital Charges,Jun-21
Slough Borough Council,805011,Osborne Property Services Limited,"63,354.85",P417,Capital,Capital Charges,Jun-21
Slough Borough Council,805011,Osborne Property Services Limited,"219,807.88",P421,Capital,Capital Charges,Jun-21
Slough Borough Council,805011,Osborne Property Services Limited,"62,927.66",P421,Capital,Capital Charges,Jun-21
Slough Borough Council,805011,Osborne Property Services Limited,"3,667.61",P547,Capital,Capital Charges,Jun-21
Slough Borough Council,805011,Osborne Property Services Limited,"11,542.96",P432,Capital,Capital Charges,Jun-21
Slough Borough Council,805011,Osborne Property Services Limited,"219,057.35",J607,HDC Housing Development,Supplies and Services,Jun-21
Slough Borough Council,805011,Osborne Property Services Limited,"252,224.11",J606,HDC Housing Development,Supplies and Services,Jun-21
Slough Borough Council,806996,OSG Architecture Limited,"5,025.00",P432,Capital,Capital Charges,Jun-21
Slough Borough Council,806996,OSG Architecture Limited,"8,000.00",P432,Capital,Capital Charges,Jun-21
Slough Borough Council,806996,OSG Architecture Limited,"7,000.00",P432,Capital,Capital Charges,Jun-21
Slough Borough Council,3371,Our Lady Of Peace Catholic Primary and Nursery School,"30,767.34",E349,DSG - Schools,Supplies and Services,Jun-21
Slough Borough Council,3371,Our Lady Of Peace Catholic Primary and Nursery School,690.00,B297,Finance,Government Grants,Jun-21
Slough Borough Council,294,Oxford Computer Consultants Ltd,"12,301.79",A03D,Adult Social Care Operations,Supplies and Services,Jun-21
Slough Borough Council,294,Oxford Computer Consultants Ltd,"9,650.54",A03D,Adult Social Care Operations,Supplies and Services,Jun-21
Slough Borough Council,680,Oxford House Community Care,547.65,M44C,Adult Social Care Operations,Supplies and Services,Jun-21
Slough Borough Council,680,Oxford House Community Care,687.87,M44C,Adult Social Care Operations,Supplies and Services,Jun-21
Slough Borough Council,680,Oxford House Community Care,749.75,M44C,Adult Social Care Operations,Supplies and Services,Jun-21
Slough Borough Council,680,Oxford House Community Care,608.37,M44C,Adult Social Care Operations,Supplies and Services,Jun-21
Slough Borough Council,680,Oxford House Community Care,"1,081.23",M44C,Adult Social Care Operations,Supplies and Services,Jun-21
Slough Borough Council,680,Oxford House Community Care,"1,216.15",M44C,Adult Social Care Operations,Supplies and Services,Jun-21
Slough Borough Council,680,Oxford House Community Care,734.21,M44C,Adult Social Care Operations,Supplies and Services,Jun-21
Slough Borough Council,680,Oxford House Community Care,"1,115.53",M44C,Adult Social Care Operations,Supplies and Services,Jun-21
Slough Borough Council,680,Oxford House Community Care,"2,443.21",M44C,Adult Social Care Operations,Supplies and Services,Jun-21
Slough Borough Council,680,Oxford House Community Care,972.99,M44C,Adult Social Care Operations,Supplies and Services,Jun-21
Slough Borough Council,680,Oxford House Community Care,"1,008.19",M44C,Adult Social Care Operations,Supplies and Services,Jun-21
Slough Borough Council,680,Oxford House Community Care,732.75,M44C,Adult Social Care Operations,Supplies and Services,Jun-21
Slough Borough Council,680,Oxford House Community Care,"1,042.79",M44C,Adult Social Care Operations,Supplies and Services,Jun-21
Slough Borough Council,680,Oxford House Community Care,"2,213.80",M44C,Adult Social Care Operations,Supplies and Services,Jun-21
Slough Borough Council,680,Oxford House Community Care,"1,102.94",M44C,Adult Social Care Operations,Supplies and Services,Jun-21
Slough Borough Council,680,Oxford House Community Care,850.67,M44C,Adult Social Care Operations,Supplies and Services,Jun-21
Slough Borough Council,680,Oxford House Community Care,"2,363.70",M44C,Adult Social Care Operations,Supplies and Services,Jun-21
Slough Borough Council,680,Oxford House Community Care,613.07,M44D,Adult Social Care Operations,Supplies and Services,Jun-21
Slough Borough Council,680,Oxford House Community Care,"1,110.56",M44D,Adult Social Care Operations,Supplies and Services,Jun-21
Slough Borough Council,680,Oxford House Community Care,646.80,M44D,Adult Social Care Operations,Supplies and Services,Jun-21
Slough Borough Council,680,Oxford House Community Care,580.80,M44F,Adult Social Care Operations,Supplies and Services,Jun-21
Slough Borough Council,680,Oxford House Community Care,706.06,M44F,Adult Social Care Operations,Supplies and Services,Jun-21
Slough Borough Council,680,Oxford House Community Care,633.60,M47D,Adult Social Care Operations,Supplies and Services,Jun-21
Slough Borough Council,680,Oxford House Community Care,"1,091.79",M48C,Adult Social Care Operations,Supplies and Services,Jun-21
Slough Borough Council,680,Oxford House Community Care,763.29,M48C,Adult Social Care Operations,Supplies and Services,Jun-21
Slough Borough Council,680,Oxford House Community Care,839.50,M48C,Adult Social Care Operations,Supplies and Services,Jun-21
Slough Borough Council,518,Oxford House Nursing Home,"3,052.60",M15D,Adult Social Care Operations,Supplies and Services,Jun-21
Slough Borough Council,518,Oxford House Nursing Home,"3,052.60",M15D,Adult Social Care Operations,Supplies and Services,Jun-21
Slough Borough Council,518,Oxford House Nursing Home,"3,052.60",M17C,Adult Social Care Operations,Supplies and Services,Jun-21
Slough Borough Council,518,Oxford House Nursing Home,"3,052.60",M18C,Adult Social Care Operations,Supplies and Services,Jun-21
Slough Borough Council,518,Oxford House Nursing Home,"3,052.60",M18C,Adult Social Care Operations,Supplies and Services,Jun-21
Slough Borough Council,518,Oxford House Nursing Home,"3,052.60",M18C,Adult Social Care Operations,Supplies and Services,Jun-21
Slough Borough Council,518,Oxford House Nursing Home,"3,052.60",M18C,Adult Social Care Operations,Supplies and Services,Jun-21
Slough Borough Council,518,Oxford House Nursing Home,"3,052.60",M18C,Adult Social Care Operations,Supplies and Services,Jun-21
Slough Borough Council,518,Oxford House Nursing Home,"3,005.12",M18C,Adult Social Care Operations,Supplies and Services,Jun-21
Slough Borough Council,518,Oxford House Nursing Home,"3,005.12",M18C,Adult Social Care Operations,Supplies and Services,Jun-21
Slough Borough Council,518,Oxford House Nursing Home,"-5,044.31",M18C,Adult Social Care Operations,Supplies and Services,Jun-21
Slough Borough Council,518,Oxford House Nursing Home,"3,005.12",M28C,Adult Social Care Operations,Supplies and Services,Jun-21
Slough Borough Council,518,Oxford House Nursing Home,"-2,253.84",M28C,Adult Social Care Operations,Supplies and Services,Jun-21
Slough Borough Council,518,Oxford House Nursing Home,"3,005.12",M28C,Adult Social Care Operations,Supplies and Services,Jun-21
Slough Borough Council,807512,Panagiotis Pavlopoulos,"1,047.00",C322,Communities and Leisure,Supplies and Services,Jun-21
Slough Borough Council,805913,PANORAMIC ASSOCIATES LIMITED,"2,250.00",A01P,Public Health,Supplies and Services,Jun-21
Slough Borough Council,805913,PANORAMIC ASSOCIATES LIMITED,"1,800.00",A01P,Public Health,Supplies and Services,Jun-21
Slough Borough Council,805913,PANORAMIC ASSOCIATES LIMITED,"2,250.00",A01P,Public Health,Supplies and Services,Jun-21
Slough Borough Council,805913,PANORAMIC ASSOCIATES LIMITED,"2,250.00",A01P,Public Health,Supplies and Services,Jun-21
Slough Borough Council,805913,PANORAMIC ASSOCIATES LIMITED,"4,950.00",B296,Finance,Supplies and Services,Jun-21
Slough Borough Council,805913,PANORAMIC ASSOCIATES LIMITED,"3,850.00",A01P,Public Health,Supplies and Services,Jun-21
Slough Borough Council,805913,PANORAMIC ASSOCIATES LIMITED,"2,200.00",A01P,Public Health,Supplies and Services,Jun-21
Slough Borough Council,805913,PANORAMIC ASSOCIATES LIMITED,"3,300.00",A01P,Public Health,Supplies and Services,Jun-21
Slough Borough Council,805913,PANORAMIC ASSOCIATES LIMITED,"2,750.00",A01P,Public Health,Supplies and Services,Jun-21
Slough Borough Council,3271,Partnership In Care Ltd,"3,973.45",M27F,Adult Social Care Operations,Supplies and Services,Jun-21
Slough Borough Council,2509,Parvaaz Project,585.00,M44E,Adult Social Care Operations,Supplies and Services,Jun-21
Slough Borough Council,2509,Parvaaz Project,585.00,M44E,Adult Social Care Operations,Supplies and Services,Jun-21
Slough Borough Council,2509,Parvaaz Project,585.00,M44E,Adult Social Care Operations,Supplies and Services,Jun-21
Slough Borough Council,2509,Parvaaz Project,585.00,M44E,Adult Social Care Operations,Supplies and Services,Jun-21
Slough Borough Council,2509,Parvaaz Project,736.00,M50E,Adult Social Care Operations,Supplies and Services,Jun-21
Slough Borough Council,2509,Parvaaz Project,736.00,M50E,Adult Social Care Operations,Supplies and Services,Jun-21
Slough Borough Council,2509,Parvaaz Project,736.00,M50E,Adult Social Care Operations,Supplies and Services,Jun-21
Slough Borough Council,2509,Parvaaz Project,736.00,M50E,Adult Social Care Operations,Supplies and Services,Jun-21
Slough Borough Council,807405,PayPoint Network Ltd,"7,240.98",B212,Customer and Communications,Supplies and Services,Jun-21
Slough Borough Council,824,Penn Wood Primary and Nursery School,"319,804.95",E459,DSG - Schools,Supplies and Services,Jun-21
Slough Borough Council,807611,Peopletoo Ltd,"28,418.00",A01D,Adult Social Care Operations,Supplies and Services,Jun-21
Slough Borough Council,1504,Permanent Futures Limited,"4,500.00",F410,DSG - High Needs Block,Agency Staff,Jun-21
Slough Borough Council,1504,Permanent Futures Limited,"1,500.00",F640,Inclusion,Agency Staff,Jun-21
Slough Borough Council,1504,Permanent Futures Limited,"1,500.00",F640,Inclusion,Agency Staff,Jun-21
Slough Borough Council,1504,Permanent Futures Limited,"1,000.00",F640,Inclusion,Agency Staff,Jun-21
Slough Borough Council,1504,Permanent Futures Limited,"1,500.00",F640,Inclusion,Agency Staff,Jun-21
Slough Borough Council,1504,Permanent Futures Limited,"1,500.00",F640,Inclusion,Agency Staff,Jun-21
Slough Borough Council,1504,Permanent Futures Limited,"1,500.00",F640,Inclusion,Agency Staff,Jun-21
Slough Borough Council,1504,Permanent Futures Limited,"1,500.00",F640,Inclusion,Agency Staff,Jun-21
Slough Borough Council,807727,Phoenix Infant Academy c/o Thames Learning Trust,"11,400.00",E289,DSG - Schools,Supplies and Services,Jun-21
Slough Borough Council,807727,Phoenix Infant Academy c/o Thames Learning Trust,"1,530.00",B297,Finance,Government Grants,Jun-21
Slough Borough Council,3359,Pippins School,"3,447.18",E379,DSG - Schools,Supplies and Services,Jun-21
Slough Borough Council,904,Pitney Bowes Finance Plc,996.64,K077,Building Management,Supplies and Services,Jun-21
Slough Borough Council,904,Pitney Bowes Finance Plc,504.00,K077,Building Management,Supplies and Services,Jun-21
Slough Borough Council,807120,PJ Care Limited,"9,514.50",M15D,Adult Social Care Operations,Supplies and Services,Jun-21
Slough Borough Council,806807,Poppy Radford,954.00,C322,Communities and Leisure,Supplies and Services,Jun-21
Slough Borough Council,1045,Posturite Uk Ltd,610.26,A07N,Adult Social Care Operations,Supplies and Services,Jun-21
Slough Borough Council,803188,Pre Paid Financial Services Ltd,959.00,A01D,Adult Social Care Operations,Supplies and Services,Jun-21
Slough Borough Council,2537,Pre School Stars,"6,210.90",F909,DSG - Early Years,Supplies and Services,Jun-21
Slough Borough Council,1780,Premier Plants,"2,551.00",D320,Regulatory Services,Supplies and Services,Jun-21
Slough Borough Council,2693,Pressbeau Ltd,"4,500.00",M18C,Adult Social Care Operations,Supplies and Services,Jun-21
Slough Borough Council,2693,Pressbeau Ltd,542.86,M29C,Adult Social Care Operations,Supplies and Services,Jun-21
Slough Borough Council,805398,PRIORITEYES LTD,"7,560.00",A05C,Adult Social Care Commissioning,Supplies and Services,Jun-21
Slough Borough Council,805398,PRIORITEYES LTD,"4,200.00",A05C,Adult Social Care Commissioning,Supplies and Services,Jun-21
Slough Borough Council,849,Priory Primary School,"420,301.98",E389,DSG - Schools,Supplies and Services,Jun-21
Slough Borough Council,807130,Prism Power Limited,"1,767.00",B064,Building Management,Premises,Jun-21
Slough Borough Council,807207,Proactive Cleaners,"1,250.00",M07E,Adult Social Care Operations,Supplies and Services,Jun-21
Slough Borough Council,806492,PW Safety Ltd,"1,200.00",P204,Capital,Capital Charges,Jun-21
Slough Borough Council,1138,Qed Slough Ltd,"513,641.25",F868,"Children, Learning and Skills",Supplies and Services,Jun-21
Slough Borough Council,1138,Qed Slough Ltd,"577,961.80",F868,"Children, Learning and Skills",Supplies and Services,Jun-21
Slough Borough Council,1138,Qed Slough Ltd,"4,332.48",F868,"Children, Learning and Skills",Supplies and Services,Jun-21
Slough Borough Council,805746,Qfree (Bristol) UK Ltd,"2,265.66",D500,Major Infrastructure Projects,Premises,Jun-21
Slough Borough Council,805746,Qfree (Bristol) UK Ltd,"2,225.66",D500,Major Infrastructure Projects,Premises,Jun-21
Slough Borough Council,2376,Quality Care Homes Uk Ltd,"1,800.00",M26E,Adult Social Care Operations,Supplies and Services,Jun-21
Slough Borough Council,2376,Quality Care Homes Uk Ltd,"1,800.00",M26E,Adult Social Care Operations,Supplies and Services,Jun-21
Slough Borough Council,2376,Quality Care Homes Uk Ltd,"1,800.00",M26E,Adult Social Care Operations,Supplies and Services,Jun-21
Slough Borough Council,2376,Quality Care Homes Uk Ltd,"1,800.00",M26E,Adult Social Care Operations,Supplies and Services,Jun-21
Slough Borough Council,2376,Quality Care Homes Uk Ltd,"1,795.00",M26E,Adult Social Care Operations,Supplies and Services,Jun-21
Slough Borough Council,2376,Quality Care Homes Uk Ltd,"1,795.00",M26E,Adult Social Care Operations,Supplies and Services,Jun-21
Slough Borough Council,2376,Quality Care Homes Uk Ltd,"1,795.00",M26E,Adult Social Care Operations,Supplies and Services,Jun-21
Slough Borough Council,2376,Quality Care Homes Uk Ltd,"1,795.00",M26E,Adult Social Care Operations,Supplies and Services,Jun-21
Slough Borough Council,2376,Quality Care Homes Uk Ltd,"1,000.00",M26E,Adult Social Care Operations,Supplies and Services,Jun-21
Slough Borough Council,2376,Quality Care Homes Uk Ltd,"1,750.00",M26E,Adult Social Care Operations,Supplies and Services,Jun-21
Slough Borough Council,2376,Quality Care Homes Uk Ltd,"1,750.00",M26E,Adult Social Care Operations,Supplies and Services,Jun-21
Slough Borough Council,2376,Quality Care Homes Uk Ltd,"1,750.00",M26E,Adult Social Care Operations,Supplies and Services,Jun-21
Slough Borough Council,2376,Quality Care Homes Uk Ltd,"1,750.00",M26E,Adult Social Care Operations,Supplies and Services,Jun-21
Slough Borough Council,2376,Quality Care Homes Uk Ltd,"1,750.00",M26E,Adult Social Care Operations,Supplies and Services,Jun-21
Slough Borough Council,2376,Quality Care Homes Uk Ltd,"1,250.00",M26E,Adult Social Care Operations,Supplies and Services,Jun-21
Slough Borough Council,2376,Quality Care Homes Uk Ltd,"1,750.00",M26E,Adult Social Care Operations,Supplies and Services,Jun-21
Slough Borough Council,2376,Quality Care Homes Uk Ltd,"1,750.00",M26E,Adult Social Care Operations,Supplies and Services,Jun-21
Slough Borough Council,2376,Quality Care Homes Uk Ltd,"1,750.00",M26E,Adult Social Care Operations,Supplies and Services,Jun-21
Slough Borough Council,2376,Quality Care Homes Uk Ltd,"1,750.00",M26E,Adult Social Care Operations,Supplies and Services,Jun-21
Slough Borough Council,2376,Quality Care Homes Uk Ltd,"1,750.00",M26E,Adult Social Care Operations,Supplies and Services,Jun-21
Slough Borough Council,2376,Quality Care Homes Uk Ltd,"1,750.00",M26E,Adult Social Care Operations,Supplies and Services,Jun-21
Slough Borough Council,2376,Quality Care Homes Uk Ltd,"1,750.00",M26E,Adult Social Care Operations,Supplies and Services,Jun-21
Slough Borough Council,1942,Quickson (South & West) Ltd,"274,284.32",P180,Capital,Capital Charges,Jun-21
Slough Borough Council,1942,Quickson (South & West) Ltd,"123,857.01",P204,Capital,Capital Charges,Jun-21
Slough Borough Council,805551,R Watts and Sons Ltd,"2,703.50",D750,Direct Service Organisation (DSO),Premises,Jun-21
Slough Borough Council,2685,R.E.A.C.H,"6,679.60",M26E,Adult Social Care Operations,Supplies and Services,Jun-21
Slough Borough Council,2685,R.E.A.C.H,"5,755.36",M26E,Adult Social Care Operations,Supplies and Services,Jun-21
Slough Borough Council,2685,R.E.A.C.H,"7,267.68",M26E,Adult Social Care Operations,Supplies and Services,Jun-21
Slough Borough Council,2685,R.E.A.C.H,"5,108.20",M26E,Adult Social Care Operations,Supplies and Services,Jun-21
Slough Borough Council,2685,R.E.A.C.H,"6,592.00",M26E,Adult Social Care Operations,Supplies and Services,Jun-21
Slough Borough Council,2685,R.E.A.C.H,-521.80,M26E,Adult Social Care Operations,External Receipts,Jun-21
Slough Borough Council,806990,Rainmaker Solutions,"45,000.00",P084,Capital,Supplies and Services,Jun-21
Slough Borough Council,806990,Rainmaker Solutions,"53,075.00",P084,Capital,Supplies and Services,Jun-21
Slough Borough Council,690,Reading Borough Council,"7,620.00",F500,Inclusion,Supplies and Services,Jun-21
Slough Borough Council,805444,Reading Transport Ltd,"7,919.67",D512,Major Infrastructure Projects,Supplies and Services,Jun-21
Slough Borough Council,806766,Red Brick Care Ltd,"1,702.56",B298,Finance,Supplies and Services,Jun-21
Slough Borough Council,806766,Red Brick Care Ltd,"1,071.00",M44C,Adult Social Care Operations,Supplies and Services,Jun-21
Slough Borough Council,806766,Red Brick Care Ltd,"1,764.00",M44C,Adult Social Care Operations,Supplies and Services,Jun-21
Slough Borough Council,806766,Red Brick Care Ltd,952.00,M44C,Adult Social Care Operations,Supplies and Services,Jun-21
Slough Borough Council,806766,Red Brick Care Ltd,"2,057.00",M44C,Adult Social Care Operations,Supplies and Services,Jun-21
Slough Borough Council,806766,Red Brick Care Ltd,"2,057.00",M44C,Adult Social Care Operations,Supplies and Services,Jun-21
Slough Borough Council,806766,Red Brick Care Ltd,705.50,M44C,Adult Social Care Operations,Supplies and Services,Jun-21
Slough Borough Council,806766,Red Brick Care Ltd,"1,071.00",M44C,Adult Social Care Operations,Supplies and Services,Jun-21
Slough Borough Council,806766,Red Brick Care Ltd,"1,764.00",M44C,Adult Social Care Operations,Supplies and Services,Jun-21
Slough Borough Council,806766,Red Brick Care Ltd,952.00,M44C,Adult Social Care Operations,Supplies and Services,Jun-21
Slough Borough Council,806541,Redacted,"15,337.37",F909,DSG - Early Years,Supplies and Services,Jun-21
Slough Borough Council,803807,Redacted,"1,895.67",F909,DSG - Early Years,Supplies and Services,Jun-21
Slough Borough Council,3762,Redacted,721.50,F909,DSG - Early Years,Supplies and Services,Jun-21
Slough Borough Council,3903,Redacted,959.33,F909,DSG - Early Years,Supplies and Services,Jun-21
Slough Borough Council,3834,Redacted,537.32,F909,DSG - Early Years,Supplies and Services,Jun-21
Slough Borough Council,805101,Redacted,579.67,F909,DSG - Early Years,Supplies and Services,Jun-21
Slough Borough Council,3934,Redacted,527.77,F909,DSG - Early Years,Supplies and Services,Jun-21
Slough Borough Council,804705,Redacted,"1,362.56",F909,DSG - Early Years,Supplies and Services,Jun-21
Slough Borough Council,804761,Redacted,"1,056.54",F909,DSG - Early Years,Supplies and Services,Jun-21
Slough Borough Council,807233,Redacted,552.99,F909,DSG - Early Years,Supplies and Services,Jun-21
Slough Borough Council,803824,Redacted,"1,848.05",F909,DSG - Early Years,Supplies and Services,Jun-21
Slough Borough Council,807475,Redacted,"2,682.48",F909,DSG - Early Years,Supplies and Services,Jun-21
Slough Borough Council,3251,Redacted,"1,086.15",F909,DSG - Early Years,Supplies and Services,Jun-21
Slough Borough Council,807836,Redacted,805.00,F909,DSG - Early Years,Supplies and Services,Jun-21
Slough Borough Council,807698,Redacted,"1,082.25",F909,DSG - Early Years,Supplies and Services,Jun-21
Slough Borough Council,803884,Redacted,"1,086.15",F909,DSG - Early Years,Supplies and Services,Jun-21
Slough Borough Council,803802,Redacted,"1,254.04",F909,DSG - Early Years,Supplies and Services,Jun-21
Slough Borough Council,803842,Redacted,721.50,F909,DSG - Early Years,Supplies and Services,Jun-21
Slough Borough Council,807789,Redacted,"1,920.00",C322,Communities and Leisure,Supplies and Services,Jun-21
Slough Borough Council,806854,Reed Specialist Recruitment,606.00,B033,People,Salaries and Wages,Jun-21
Slough Borough Council,806854,Reed Specialist Recruitment,626.20,B033,People,Salaries and Wages,Jun-21
Slough Borough Council,806854,Reed Specialist Recruitment,636.30,B033,People,Salaries and Wages,Jun-21
Slough Borough Council,806854,Reed Specialist Recruitment,606.00,B348,People,Salaries and Wages,Jun-21
Slough Borough Council,806854,Reed Specialist Recruitment,757.50,B348,People,Salaries and Wages,Jun-21
Slough Borough Council,6,Re-Format Llp,"6,942.00",P577,Capital,Capital Charges,Jun-21
Slough Borough Council,6,Re-Format Llp,"15,246.60",P153,Capital,Capital Charges,Jun-21
Slough Borough Council,807562,Renovo Farnborough Limited,"8,502.24",M25D,Adult Social Care Operations,Supplies and Services,Jun-21
Slough Borough Council,807562,Renovo Farnborough Limited,"8,227.97",M25D,Adult Social Care Operations,Supplies and Services,Jun-21
Slough Borough Council,806612,Rentokil Initial K Ltd T/A Initial Washroom Hygiene,"1,951.65",B064,Building Management,Supplies and Services,Jun-21
Slough Borough Council,3486,Response Organisation,"1,274.28",M42F,Adult Social Care Operations,Supplies and Services,Jun-21
Slough Borough Council,3486,Response Organisation,"1,179.64",M42F,Adult Social Care Operations,Supplies and Services,Jun-21
Slough Borough Council,1893,Ricardo-Aea Limited,"15,375.00",D460,Major Infrastructure Projects,Supplies and Services,Jun-21
Slough Borough Council,1893,Ricardo-Aea Limited,"2,100.00",P155,Capital,Capital Charges,Jun-21
Slough Borough Council,1553,Robyn Baker,"1,442.39",C322,Communities and Leisure,Supplies and Services,Jun-21
Slough Borough Council,806930,Roselight Healthcare Service Limited,"3,340.00",M42F,Adult Social Care Operations,Supplies and Services,Jun-21
Slough Borough Council,806930,Roselight Healthcare Service Limited,"3,340.00",M44F,Adult Social Care Operations,Supplies and Services,Jun-21
Slough Borough Council,806930,Roselight Healthcare Service Limited,"2,600.00",M44F,Adult Social Care Operations,Supplies and Services,Jun-21
Slough Borough Council,805580,Rouge Media,"1,950.00",A01P,Public Health,Supplies and Services,Jun-21
Slough Borough Council,1220,Royal Borough Of Windsor & Mhead,"4,500.00",B655,Adult Social Care Operations,Supplies and Services,Jun-21
Slough Borough Council,696,Royal Borough Of Windsor And Maidenhead,"8,222.00",F210,Communities and Leisure,Premises,Jun-21
Slough Borough Council,806662,Royal College of Psychiatrists CCQI,"2,892.00",A07M,Mental Health Services,Supplies and Services,Jun-21
Slough Borough Council,356,Royal Mail Group Ltd,786.30,B242,Governance,Supplies and Services,Jun-21
Slough Borough Council,356,Royal Mail Group Ltd,802.65,B242,Governance,Supplies and Services,Jun-21
Slough Borough Council,804860,Royal Masonic Benevolent Institution,"4,071.43",M18C,Adult Social Care Operations,Supplies and Services,Jun-21
Slough Borough Council,2168,RSM Risk Assurance Services LLP,"25,572.75",B132,Finance,Supplies and Services,Jun-21
Slough Borough Council,2168,RSM Risk Assurance Services LLP,"7,500.00",B018,Finance,Supplies and Services,Jun-21
Slough Borough Council,2168,RSM Risk Assurance Services LLP,"33,300.00",B146,Governance,Supplies and Services,Jun-21
Slough Borough Council,2168,RSM Risk Assurance Services LLP,"35,475.00",B146,Governance,Supplies and Services,Jun-21
Slough Borough Council,2168,RSM Risk Assurance Services LLP,"39,087.50",B146,Governance,Supplies and Services,Jun-21
Slough Borough Council,2168,RSM Risk Assurance Services LLP,"36,250.00",B146,Governance,Supplies and Services,Jun-21
Slough Borough Council,2168,RSM Risk Assurance Services LLP,"20,200.00",B146,Governance,Supplies and Services,Jun-21
Slough Borough Council,2168,RSM Risk Assurance Services LLP,"22,100.00",B146,Governance,Supplies and Services,Jun-21
Slough Borough Council,2168,RSM Risk Assurance Services LLP,"31,987.50",B146,Governance,Supplies and Services,Jun-21
Slough Borough Council,2168,RSM Risk Assurance Services LLP,"13,375.00",B146,Governance,Supplies and Services,Jun-21
Slough Borough Council,2168,RSM Risk Assurance Services LLP,"35,625.00",B146,Governance,Supplies and Services,Jun-21
Slough Borough Council,2168,RSM Risk Assurance Services LLP,"80,950.00",B146,Governance,Supplies and Services,Jun-21
Slough Borough Council,2168,RSM Risk Assurance Services LLP,656.00,B409,People,Support Services,Jun-21
Slough Borough Council,842,Ryvers Primary School,"31,700.00",E399,DSG - Schools,Supplies and Services,Jun-21
Slough Borough Council,806398,Saba Park UK Services Limited,"14,326.59",D010,Planning and Transport,Supplies and Services,Jun-21
Slough Borough Council,806398,Saba Park UK Services Limited,"12,792.47",D122,Planning and Transport,Premises,Jun-21
Slough Borough Council,806398,Saba Park UK Services Limited,811.09,D123,Planning and Transport,Supplies and Services,Jun-21
Slough Borough Council,806398,Saba Park UK Services Limited,"3,744.72",D123,Planning and Transport,Supplies and Services,Jun-21
Slough Borough Council,806398,Saba Park UK Services Limited,750.00,D123,Planning and Transport,Supplies and Services,Jun-21
Slough Borough Council,806398,Saba Park UK Services Limited,"95,717.80",D123,Planning and Transport,Supplies and Services,Jun-21
Slough Borough Council,806398,Saba Park UK Services Limited,"10,635.31",D122,Planning and Transport,Supplies and Services,Jun-21
Slough Borough Council,806398,Saba Park UK Services Limited,"1,613.62",D123,Planning and Transport,Supplies and Services,Jun-21
Slough Borough Council,807945,Sadia Chaudhri,"2,200.00",B409,People,Supplies and Services,Jun-21
Slough Borough Council,805875,Salutem LD Bidco IV Limited T/A Ambito Care,"6,187.82",M25D,Adult Social Care Operations,Supplies and Services,Jun-21
Slough Borough Council,805875,Salutem LD Bidco IV Limited T/A Ambito Care,"3,164.21",M25D,Adult Social Care Operations,Supplies and Services,Jun-21
Slough Borough Council,805875,Salutem LD Bidco IV Limited T/A Ambito Care,"2,926.11",M25D,Adult Social Care Operations,Supplies and Services,Jun-21
Slough Borough Council,805875,Salutem LD Bidco IV Limited T/A Ambito Care,"4,494.56",M26E,Adult Social Care Operations,Supplies and Services,Jun-21
Slough Borough Council,805875,Salutem LD Bidco IV Limited T/A Ambito Care,"4,349.57",M26E,Adult Social Care Operations,Supplies and Services,Jun-21
Slough Borough Council,805875,Salutem LD Bidco IV Limited T/A Ambito Care,-611.59,M26E,Adult Social Care Operations,External Receipts,Jun-21
Slough Borough Council,805875,Salutem LD Bidco IV Limited T/A Ambito Care,-591.86,M26E,Adult Social Care Operations,External Receipts,Jun-21
Slough Borough Council,925,Sara Wood,600.00,D320,Regulatory Services,Supplies and Services,Jun-21
Slough Borough Council,925,Sara Wood,575.00,D320,Regulatory Services,Supplies and Services,Jun-21
Slough Borough Council,925,Sara Wood,675.00,D320,Regulatory Services,Supplies and Services,Jun-21
Slough Borough Council,807892,Sarah Wigley Associates Ltd,"9,800.00",H254,Regulatory Services,Supplies and Services,Jun-21
Slough Borough Council,807892,Sarah Wigley Associates Ltd,"10,200.00",H254,Regulatory Services,Supplies and Services,Jun-21
Slough Borough Council,1580,Savills (UK) Ltd,"1,610.00",J150,Housing Revenue Account,Supplies and Services,Jun-21
Slough Borough Council,1580,Savills (UK) Ltd,"1,840.00",J150,Housing Revenue Account,Supplies and Services,Jun-21
Slough Borough Council,1580,Savills (UK) Ltd,"2,070.00",J150,Housing Revenue Account,Supplies and Services,Jun-21
Slough Borough Council,1580,Savills (UK) Ltd,"2,760.00",J150,Housing Revenue Account,Supplies and Services,Jun-21
Slough Borough Council,1580,Savills (UK) Ltd,"4,623.00",P405,Capital,Capital Charges,Jun-21
Slough Borough Council,1580,Savills (UK) Ltd,"4,575.00",P405,Capital,Capital Charges,Jun-21
Slough Borough Council,1580,Savills (UK) Ltd,"2,500.00",P435,Capital,Capital Charges,Jun-21
Slough Borough Council,1580,Savills (UK) Ltd,"3,013.00",P432,Capital,Capital Charges,Jun-21
Slough Borough Council,1580,Savills (UK) Ltd,"1,885.00",P432,Capital,Capital Charges,Jun-21
Slough Borough Council,1580,Savills (UK) Ltd,"4,100.00",P432,Capital,Capital Charges,Jun-21
Slough Borough Council,1580,Savills (UK) Ltd,"1,250.00",J606,HDC Housing Development,Supplies and Services,Jun-21
Slough Borough Council,1580,Savills (UK) Ltd,"1,250.00",J606,HDC Housing Development,Supplies and Services,Jun-21
Slough Borough Council,1022,Sdk Environmental Ltd,"5,208.33",C001,Communities and Leisure,Supplies and Services,Jun-21
Slough Borough Council,1022,Sdk Environmental Ltd,"3,830.22",H253,Neighbourhood Services,External Receipts,Jun-21
Slough Borough Council,3169,Seeability,"11,377.00",M26E,Adult Social Care Operations,Supplies and Services,Jun-21
Slough Borough Council,3169,Seeability,"10,350.19",M26E,Adult Social Care Operations,Supplies and Services,Jun-21
Slough Borough Council,803999,Sequence Care Group,"11,630.79",M26E,Adult Social Care Operations,Supplies and Services,Jun-21
Slough Borough Council,803999,Sequence Care Group,"12,018.49",M26E,Adult Social Care Operations,Supplies and Services,Jun-21
Slough Borough Council,1680,Service Point,"1,002.50",B296,Finance,Supplies and Services,Jun-21
Slough Borough Council,1853,Shamita Ray,715.00,C322,Communities and Leisure,Supplies and Services,Jun-21
Slough Borough Council,2003,Sharpe Pritchard Llp,"1,652.00",D105,Major Infrastructure Projects,Supplies and Services,Jun-21
Slough Borough Council,805203,Shorts Agricultural Services Ltd,"4,948.60",D342,Direct Service Organisation (DSO),Supplies and Services,Jun-21
Slough Borough Council,805203,Shorts Agricultural Services Ltd,"13,760.56",D342,Direct Service Organisation (DSO),Supplies and Services,Jun-21
Slough Borough Council,805204,Shorts Group Ltd,900.00,D750,Direct Service Organisation (DSO),Supplies and Services,Jun-21
Slough Borough Council,805303,Sign Health,"3,576.47",M27C,Adult Social Care Operations,Supplies and Services,Jun-21
Slough Borough Council,805303,Sign Health,"3,230.36",M27C,Adult Social Care Operations,Supplies and Services,Jun-21
Slough Borough Council,805303,Sign Health,"3,576.47",M27C,Adult Social Care Operations,Supplies and Services,Jun-21
Slough Borough Council,57,Signis Limited,"11,200.00",B277,Digital and Strategic IT,Supplies and Services,Jun-21
Slough Borough Council,790,Silk And Mackman Services Ltd,"2,112.50",J015,Housing Revenue Account,Supplies and Services,Jun-21
Slough Borough Council,807829,"Simon Horsington and Associates Ltd, T/A Rates Plus","7,500.00",B007,Finance,Supplies and Services,Jun-21
Slough Borough Council,807814,Simon Pallett,"4,500.00",B017,Finance,Supplies and Services,Jun-21
Slough Borough Council,807082,Simone Surveys Limited,"12,036.00",P209,Capital,Capital Charges,Jun-21
Slough Borough Council,804922,SIMPSON ENVIRONMENTAL SERVICE LTD,"10,160.00",B081,Regeneration Development,Premises,Jun-21
Slough Borough Council,813,Site-Equip Ltd,507.00,B252,Customer and Communications,Supplies and Services,Jun-21
Slough Borough Council,807165,Slindon College,"10,670.00",F462,DSG - High Needs Block,Supplies and Services,Jun-21
Slough Borough Council,3333,Slk Services,"8,835.00",F123,Schools,Supplies and Services,Jun-21
Slough Borough Council,472,Slough & Eton C.E.School,"5,010.00",B297,Finance,Government Grants,Jun-21
Slough Borough Council,1459,Slough And Eton C E School,"18,500.00",E769,DSG - Schools,Supplies and Services,Jun-21
Slough Borough Council,807834,Slough Children First,"2,454,217.04",M99C,"Children, Learning and Skills",Supplies and Services,Jun-21
Slough Borough Council,2466,Slough Childrens Services Trust Limited,"12,249.99",F388,Early Years & Prevention,Salaries and Wages,Jun-21
Slough Borough Council,276,Slough Community Transport & Shopmobility,"17,240.00",F123,Schools,Supplies and Services,Jun-21
Slough Borough Council,276,Slough Community Transport & Shopmobility,"25,094.00",F123,Schools,Supplies and Services,Jun-21
Slough Borough Council,1913,Slough Crossroads Caring For Carers,528.00,M44D,Adult Social Care Operations,Supplies and Services,Jun-21
Slough Borough Council,1913,Slough Crossroads Caring For Carers,"1,024.00",M44F,Adult Social Care Operations,Supplies and Services,Jun-21
Slough Borough Council,1119,Slough Cvs,"34,127.00",A02C,Adult Social Care Commissioning,Supplies and Services,Jun-21
Slough Borough Council,1119,Slough Cvs,"118,936.50",A02C,Adult Social Care Commissioning,Supplies and Services,Jun-21
Slough Borough Council,3503,Slough Day Nursery,"7,848.96",F909,DSG - Early Years,Supplies and Services,Jun-21
Slough Borough Council,3011,Slough Urban Renewal Community Projects LLP,"140,640.47",P575,Capital,Capital Charges,Jun-21
Slough Borough Council,3011,Slough Urban Renewal Community Projects LLP,"10,928.24",P575,Capital,Capital Charges,Jun-21
Slough Borough Council,3011,Slough Urban Renewal Community Projects LLP,"40,500.00",P575,Capital,Capital Charges,Jun-21
Slough Borough Council,382,Softcat Plc,"10,500.00",P084,Capital,Capital Charges,Jun-21
Slough Borough Council,803580,Software solutions,"1,450.00",F210,Communities and Leisure,Supplies and Services,Jun-21
Slough Borough Council,114,Solutions 4 Health Ltd,"15,015.83",A03C,Adult Social Care Commissioning,Supplies and Services,Jun-21
Slough Borough Council,114,Solutions 4 Health Ltd,"95,370.00",B310,Finance,Supplies and Services,Jun-21
Slough Borough Council,114,Solutions 4 Health Ltd,"229,057.81",A09C,Adult Social Care Commissioning,Supplies and Services,Jun-21
Slough Borough Council,114,Solutions 4 Health Ltd,"60,000.00",A09C,Adult Social Care Commissioning,Supplies and Services,Jun-21
Slough Borough Council,1598,Sorbon Estates Limited,"5,865.00",H205,Housing (People) Services,Premises,Jun-21
Slough Borough Council,710,Southern Electric Plc,972.01,H203,Housing (People) Services,Premises,Jun-21
Slough Borough Council,807124,Spacecraft Limited,"27,715.07",P084,Capital,Capital Charges,Jun-21
Slough Borough Council,804781,Sports and Leisure Management Ltd,841.00,B210,Governance,Premises,Jun-21
Slough Borough Council,804781,Sports and Leisure Management Ltd,"73,458.71",C025,Communities and Leisure,Supplies and Services,Jun-21
Slough Borough Council,804781,Sports and Leisure Management Ltd,"112,996.00",C025,Communities and Leisure,Supplies and Services,Jun-21
Slough Borough Council,804781,Sports and Leisure Management Ltd,"16,047.00",B310,Finance,Supplies and Services,Jun-21
Slough Borough Council,804781,Sports and Leisure Management Ltd,"4,500.00",B310,Finance,Supplies and Services,Jun-21
Slough Borough Council,804781,Sports and Leisure Management Ltd,"17,476.20",B242,Governance,Supplies and Services,Jun-21
Slough Borough Council,1875,Ss & Kk. Hothi,"11,771.25",H205,Housing (People) Services,Premises,Jun-21
Slough Borough Council,1875,Ss & Kk. Hothi,"15,816.66",H205,Housing (People) Services,Premises,Jun-21
Slough Borough Council,1875,Ss & Kk. Hothi,"5,055.00",H205,Housing (People) Services,Premises,Jun-21
Slough Borough Council,2019,Ssr General & Management Ltd,550.00,F640,Inclusion,Agency Staff,Jun-21
Slough Borough Council,2019,Ssr General & Management Ltd,550.00,F640,Inclusion,Agency Staff,Jun-21
Slough Borough Council,2019,Ssr General & Management Ltd,550.00,F640,Inclusion,Agency Staff,Jun-21
Slough Borough Council,2019,Ssr General & Management Ltd,"1,100.00",F640,Inclusion,Agency Staff,Jun-21
Slough Borough Council,2019,Ssr General & Management Ltd,825.00,F640,Inclusion,Agency Staff,Jun-21
Slough Borough Council,803165,St Anthony's Catholic Primary School & Nursery,"21,530.00",E409,DSG - Schools,Supplies and Services,Jun-21
Slough Borough Council,3383,St Bernards Catholic Grammar School,"424,846.49",E559,DSG - Schools,Supplies and Services,Jun-21
Slough Borough Council,2918,St Bernard'S Rc Preparatory School,"14,773.13",F909,DSG - Early Years,Supplies and Services,Jun-21
Slough Borough Council,805366,St Edmund Campion Catholic Primary School,"1,810.00",F552,DSG - High Needs Block,Supplies and Services,Jun-21
Slough Borough Council,3547,St Ethelberts School,"13,490.00",E419,DSG - Schools,Supplies and Services,Jun-21
Slough Borough Council,1378,St Josephs Catholic High School,"13,400.00",E569,DSG - Schools,Supplies and Services,Jun-21
Slough Borough Council,1378,St Josephs Catholic High School,"1,035.00",B297,Finance,Government Grants,Jun-21
Slough Borough Council,806584,St Mattews Ltd,"3,964.28",M15F,Adult Social Care Operations,Supplies and Services,Jun-21
Slough Borough Council,807813,St Peter's Church,"10,000.00",D508,Major Infrastructure Projects,Supplies and Services,Jun-21
Slough Borough Council,805867,ST VINCENTS SCHOOL FOR THE BLIND,"13,495.00",F462,DSG - High Needs Block,Supplies and Services,Jun-21
Slough Borough Council,468,Stannah Lift Services Ltd,"3,131.00",P547,Capital,Capital Charges,Jun-21
Slough Borough Council,468,Stannah Lift Services Ltd,"5,988.00",P547,Capital,Capital Charges,Jun-21
Slough Borough Council,468,Stannah Lift Services Ltd,"1,216.00",P547,Capital,Capital Charges,Jun-21
Slough Borough Council,804910,Stennetts Limited,"5,070.00",D630,Direct Service Organisation (DSO),Supplies and Services,Jun-21
Slough Borough Council,804910,Stennetts Limited,"1,000.00",D750,Direct Service Organisation (DSO),Supplies and Services,Jun-21
Slough Borough Council,804910,Stennetts Limited,"1,365.00",D880,Direct Service Organisation (DSO),Supplies and Services,Jun-21
Slough Borough Council,807812,Stephen Cullen,"2,500.00",A04A,Adult Social Care Operations,Supplies and Services,Jun-21
Slough Borough Council,807654,Stephen Pinder Employment Law LTD,500.00,B348,People,Supplies and Services,Jun-21
Slough Borough Council,2687,Stepping Stones,"5,133.24",M26E,Adult Social Care Operations,Supplies and Services,Jun-21
Slough Borough Council,2687,Stepping Stones,"5,133.24",M26E,Adult Social Care Operations,Supplies and Services,Jun-21
Slough Borough Council,2687,Stepping Stones,"8,005.12",M27F,Adult Social Care Operations,Supplies and Services,Jun-21
Slough Borough Council,2687,Stepping Stones,"8,005.12",M27F,Adult Social Care Operations,Supplies and Services,Jun-21
Slough Borough Council,1330,Storm Technologies Ltd,"1,206.80",P084,Capital,Capital Charges,Jun-21
Slough Borough Council,805181,Street Furnishings Ltd,541.20,D880,Direct Service Organisation (DSO),Supplies and Services,Jun-21
Slough Borough Council,805181,Street Furnishings Ltd,717.60,D880,Direct Service Organisation (DSO),Supplies and Services,Jun-21
Slough Borough Council,805181,Street Furnishings Ltd,"5,120.00",D880,Direct Service Organisation (DSO),Supplies and Services,Jun-21
Slough Borough Council,805181,Street Furnishings Ltd,864.00,D880,Direct Service Organisation (DSO),Supplies and Services,Jun-21
Slough Borough Council,805181,Street Furnishings Ltd,"1,800.00",D880,Direct Service Organisation (DSO),Supplies and Services,Jun-21
Slough Borough Council,805181,Street Furnishings Ltd,920.00,D880,Direct Service Organisation (DSO),Supplies and Services,Jun-21
Slough Borough Council,807113,Substance,"5,000.00",C424,Communities and Leisure,Supplies and Services,Jun-21
Slough Borough Council,2688,Sunnyside Nursing Home,"2,991.76",M15D,Adult Social Care Operations,Supplies and Services,Jun-21
Slough Borough Council,807889,Sunrise Transport Ltd,"2,166.00",F123,Schools,Supplies and Services,Jun-21
Slough Borough Council,293,Surecare Slough,668.64,A07R,Adult Social Care Operations,Supplies and Services,Jun-21
Slough Borough Council,293,Surecare Slough,668.32,A07R,Adult Social Care Operations,Supplies and Services,Jun-21
Slough Borough Council,293,Surecare Slough,"1,240.04",M44C,Adult Social Care Operations,Supplies and Services,Jun-21
Slough Borough Council,293,Surecare Slough,661.95,M44C,Adult Social Care Operations,Supplies and Services,Jun-21
Slough Borough Council,293,Surecare Slough,"1,404.34",M44C,Adult Social Care Operations,Supplies and Services,Jun-21
Slough Borough Council,293,Surecare Slough,"1,062.84",M44C,Adult Social Care Operations,Supplies and Services,Jun-21
Slough Borough Council,293,Surecare Slough,"1,199.93",M44C,Adult Social Care Operations,Supplies and Services,Jun-21
Slough Borough Council,293,Surecare Slough,906.93,M44C,Adult Social Care Operations,Supplies and Services,Jun-21
Slough Borough Council,293,Surecare Slough,801.28,M44C,Adult Social Care Operations,Supplies and Services,Jun-21
Slough Borough Council,293,Surecare Slough,"1,734.42",M44C,Adult Social Care Operations,Supplies and Services,Jun-21
Slough Borough Council,293,Surecare Slough,"1,413.60",M44C,Adult Social Care Operations,Supplies and Services,Jun-21
Slough Borough Council,293,Surecare Slough,668.64,M44C,Adult Social Care Operations,Supplies and Services,Jun-21
Slough Borough Council,293,Surecare Slough,"2,406.60",M44C,Adult Social Care Operations,Supplies and Services,Jun-21
Slough Borough Council,293,Surecare Slough,801.26,M44C,Adult Social Care Operations,Supplies and Services,Jun-21
Slough Borough Council,293,Surecare Slough,"1,068.61",M44C,Adult Social Care Operations,Supplies and Services,Jun-21
Slough Borough Council,293,Surecare Slough,"2,406.60",M44C,Adult Social Care Operations,Supplies and Services,Jun-21
Slough Borough Council,293,Surecare Slough,"1,410.86",M44C,Adult Social Care Operations,Supplies and Services,Jun-21
Slough Borough Council,293,Surecare Slough,"1,354.33",M44C,Adult Social Care Operations,Supplies and Services,Jun-21
Slough Borough Council,293,Surecare Slough,"2,941.68",M44C,Adult Social Care Operations,Supplies and Services,Jun-21
Slough Borough Council,293,Surecare Slough,"2,403.70",M44C,Adult Social Care Operations,Supplies and Services,Jun-21
Slough Borough Council,293,Surecare Slough,"2,494.45",M44C,Adult Social Care Operations,Supplies and Services,Jun-21
Slough Borough Council,293,Surecare Slough,"1,196.71",M44C,Adult Social Care Operations,Supplies and Services,Jun-21
Slough Borough Council,293,Surecare Slough,800.30,M44C,Adult Social Care Operations,Supplies and Services,Jun-21
Slough Borough Council,293,Surecare Slough,"1,174.93",M44C,Adult Social Care Operations,Supplies and Services,Jun-21
Slough Borough Council,293,Surecare Slough,"1,160.46",M44C,Adult Social Care Operations,Supplies and Services,Jun-21
Slough Borough Council,293,Surecare Slough,534.80,M44C,Adult Social Care Operations,Supplies and Services,Jun-21
Slough Borough Council,293,Surecare Slough,"2,925.46",M44C,Adult Social Care Operations,Supplies and Services,Jun-21
Slough Borough Council,293,Surecare Slough,"1,069.60",M44C,Adult Social Care Operations,Supplies and Services,Jun-21
Slough Borough Council,293,Surecare Slough,"2,748.71",M44C,Adult Social Care Operations,Supplies and Services,Jun-21
Slough Borough Council,293,Surecare Slough,"2,390.96",M44C,Adult Social Care Operations,Supplies and Services,Jun-21
Slough Borough Council,293,Surecare Slough,"2,653.22",M44C,Adult Social Care Operations,Supplies and Services,Jun-21
Slough Borough Council,293,Surecare Slough,533.53,M44C,Adult Social Care Operations,Supplies and Services,Jun-21
Slough Borough Council,293,Surecare Slough,"1,622.04",M44C,Adult Social Care Operations,Supplies and Services,Jun-21
Slough Borough Council,293,Surecare Slough,"2,462.95",M44C,Adult Social Care Operations,Supplies and Services,Jun-21
Slough Borough Council,293,Surecare Slough,935.09,M44C,Adult Social Care Operations,Supplies and Services,Jun-21
Slough Borough Council,293,Surecare Slough,"1,061.57",M44C,Adult Social Care Operations,Supplies and Services,Jun-21
Slough Borough Council,293,Surecare Slough,"1,202.48",M44C,Adult Social Care Operations,Supplies and Services,Jun-21
Slough Borough Council,293,Surecare Slough,668.50,M44C,Adult Social Care Operations,Supplies and Services,Jun-21
Slough Borough Council,293,Surecare Slough,571.41,M44C,Adult Social Care Operations,Supplies and Services,Jun-21
Slough Borough Council,293,Surecare Slough,962.01,M44C,Adult Social Care Operations,Supplies and Services,Jun-21
Slough Borough Council,293,Surecare Slough,"2,445.04",M44C,Adult Social Care Operations,Supplies and Services,Jun-21
Slough Borough Council,293,Surecare Slough,"1,413.60",M44C,Adult Social Care Operations,Supplies and Services,Jun-21
Slough Borough Council,293,Surecare Slough,"1,067.34",M44C,Adult Social Care Operations,Supplies and Services,Jun-21
Slough Borough Council,293,Surecare Slough,"1,352.41",M44C,Adult Social Care Operations,Supplies and Services,Jun-21
Slough Borough Council,293,Surecare Slough,"1,394.46",M44C,Adult Social Care Operations,Supplies and Services,Jun-21
Slough Borough Council,293,Surecare Slough,"2,406.60",M44C,Adult Social Care Operations,Supplies and Services,Jun-21
Slough Borough Council,293,Surecare Slough,666.10,M44C,Adult Social Care Operations,Supplies and Services,Jun-21
Slough Borough Council,293,Surecare Slough,582.55,M44C,Adult Social Care Operations,Supplies and Services,Jun-21
Slough Borough Council,293,Surecare Slough,"1,409.91",M44C,Adult Social Care Operations,Supplies and Services,Jun-21
Slough Borough Council,293,Surecare Slough,"2,406.60",M44C,Adult Social Care Operations,Supplies and Services,Jun-21
Slough Borough Council,293,Surecare Slough,"2,095.50",M44C,Adult Social Care Operations,Supplies and Services,Jun-21
Slough Borough Council,293,Surecare Slough,"2,406.60",M44C,Adult Social Care Operations,Supplies and Services,Jun-21
Slough Borough Council,293,Surecare Slough,663.23,M44C,Adult Social Care Operations,Supplies and Services,Jun-21
Slough Borough Council,293,Surecare Slough,883.44,M44C,Adult Social Care Operations,Supplies and Services,Jun-21
Slough Borough Council,293,Surecare Slough,"1,236.24",M44C,Adult Social Care Operations,Supplies and Services,Jun-21
Slough Borough Council,293,Surecare Slough,"1,525.64",M44C,Adult Social Care Operations,Supplies and Services,Jun-21
Slough Borough Council,293,Surecare Slough,"1,334.46",M44C,Adult Social Care Operations,Supplies and Services,Jun-21
Slough Borough Council,293,Surecare Slough,816.23,M44C,Adult Social Care Operations,Supplies and Services,Jun-21
Slough Borough Council,293,Surecare Slough,"1,067.69",M44C,Adult Social Care Operations,Supplies and Services,Jun-21
Slough Borough Council,293,Surecare Slough,"2,480.41",M44D,Adult Social Care Operations,Supplies and Services,Jun-21
Slough Borough Council,293,Surecare Slough,"2,521.36",M44D,Adult Social Care Operations,Supplies and Services,Jun-21
Slough Borough Council,293,Surecare Slough,"1,194.32",M44D,Adult Social Care Operations,Supplies and Services,Jun-21
Slough Borough Council,293,Surecare Slough,"1,337.00",M44D,Adult Social Care Operations,Supplies and Services,Jun-21
Slough Borough Council,293,Surecare Slough,"2,674.00",M44D,Adult Social Care Operations,Supplies and Services,Jun-21
Slough Borough Council,293,Surecare Slough,"2,406.60",M44D,Adult Social Care Operations,Supplies and Services,Jun-21
Slough Borough Council,293,Surecare Slough,"3,544.39",M44D,Adult Social Care Operations,Supplies and Services,Jun-21
Slough Borough Council,293,Surecare Slough,"2,406.60",M44D,Adult Social Care Operations,Supplies and Services,Jun-21
Slough Borough Council,293,Surecare Slough,"2,132.52",M44D,Adult Social Care Operations,Supplies and Services,Jun-21
Slough Borough Council,293,Surecare Slough,"2,479.77",M44D,Adult Social Care Operations,Supplies and Services,Jun-21
Slough Borough Council,293,Surecare Slough,928.69,M44D,Adult Social Care Operations,Supplies and Services,Jun-21
Slough Borough Council,293,Surecare Slough,"1,337.00",M44E,Adult Social Care Operations,Supplies and Services,Jun-21
Slough Borough Council,293,Surecare Slough,687.60,M44E,Adult Social Care Operations,Supplies and Services,Jun-21
Slough Borough Council,293,Surecare Slough,589.56,M44F,Adult Social Care Operations,Supplies and Services,Jun-21
Slough Borough Council,293,Surecare Slough,682.85,M44F,Adult Social Care Operations,Supplies and Services,Jun-21
Slough Borough Council,293,Surecare Slough,"1,547.10",M45C,Adult Social Care Operations,Supplies and Services,Jun-21
Slough Borough Council,293,Surecare Slough,"1,031.40",M45C,Adult Social Care Operations,Supplies and Services,Jun-21
Slough Borough Council,293,Surecare Slough,802.48,M45C,Adult Social Care Operations,Supplies and Services,Jun-21
Slough Borough Council,293,Surecare Slough,"1,067.69",M45C,Adult Social Care Operations,Supplies and Services,Jun-21
Slough Borough Council,293,Surecare Slough,"2,406.60",M47D,Adult Social Care Operations,Supplies and Services,Jun-21
Slough Borough Council,293,Surecare Slough,"1,871.80",M48C,Adult Social Care Operations,Supplies and Services,Jun-21
Slough Borough Council,293,Surecare Slough,"2,935.31",M48C,Adult Social Care Operations,Supplies and Services,Jun-21
Slough Borough Council,293,Surecare Slough,"2,406.60",M48C,Adult Social Care Operations,Supplies and Services,Jun-21
Slough Borough Council,293,Surecare Slough,634.84,M48C,Adult Social Care Operations,Supplies and Services,Jun-21
Slough Borough Council,293,Surecare Slough,"1,375.48",M48C,Adult Social Care Operations,Supplies and Services,Jun-21
Slough Borough Council,293,Surecare Slough,"2,674.00",M48C,Adult Social Care Operations,Supplies and Services,Jun-21
Slough Borough Council,715,Surrey County Council,"4,503.00",F123,Schools,Supplies and Services,Jun-21
Slough Borough Council,715,Surrey County Council,"5,293.00",F123,Schools,Supplies and Services,Jun-21
Slough Borough Council,715,Surrey County Council,"5,609.00",F123,Schools,Supplies and Services,Jun-21
Slough Borough Council,803668,Surrey Disabled People�s Partnership,"27,454.50",A02C,Adult Social Care Commissioning,Supplies and Services,Jun-21
Slough Borough Council,1724,Susan Nash,"1,332.00",C322,Communities and Leisure,Supplies and Services,Jun-21
Slough Borough Council,1833,Swarco Traffic Limited,"6,707.00",P192,Capital,Capital Charges,Jun-21
Slough Borough Council,805484,Synergy Asset Services Ltd,"1,497.00",D342,Direct Service Organisation (DSO),Supplies and Services,Jun-21
Slough Borough Council,805683,Team Carita DCS Limited,868.00,M42C,Adult Social Care Operations,Supplies and Services,Jun-21
Slough Borough Council,805683,Team Carita DCS Limited,"1,038.64",M44C,Adult Social Care Operations,Supplies and Services,Jun-21
Slough Borough Council,805683,Team Carita DCS Limited,"1,038.64",M44C,Adult Social Care Operations,Supplies and Services,Jun-21
Slough Borough Council,3369,Teeny Boppers Montessori School,"8,023.84",F909,DSG - Early Years,Supplies and Services,Jun-21
Slough Borough Council,1596,Teleshore (Uk) Limited,"1,120.00",D320,Regulatory Services,Supplies and Services,Jun-21
Slough Borough Council,1596,Teleshore (Uk) Limited,"3,095.00",D320,Regulatory Services,Supplies and Services,Jun-21
Slough Borough Council,806836,Telford Cleaners LTD,"1,000.00",M28E,Adult Social Care Operations,Supplies and Services,Jun-21
Slough Borough Council,803712,Thames Valley Transport Services LTD,"105,541.50",F123,Schools,Supplies and Services,Jun-21
Slough Borough Council,717,Thames Water Utilities Limited,"1,108.37",J015,Housing Revenue Account,Premises,Jun-21
Slough Borough Council,803774,The Abbeyfield Maidenhead Society Ltd,"3,000.00",M27C,Adult Social Care Operations,Supplies and Services,Jun-21
Slough Borough Council,803774,The Abbeyfield Maidenhead Society Ltd,"3,214.29",M27C,Adult Social Care Operations,Supplies and Services,Jun-21
Slough Borough Council,803774,The Abbeyfield Maidenhead Society Ltd,"3,321.43",M27C,Adult Social Care Operations,Supplies and Services,Jun-21
Slough Borough Council,803774,The Abbeyfield Maidenhead Society Ltd,"3,321.42",M27C,Adult Social Care Operations,Supplies and Services,Jun-21
Slough Borough Council,804424,The CCTV User Group Ltd,"2,200.00",K089,Regulatory Services,Premises,Jun-21
Slough Borough Council,804424,The CCTV User Group Ltd,"2,200.00",K089,Regulatory Services,Premises,Jun-21
Slough Borough Council,807950,The Disabilities Trust,"131,000.00",A06S,Adult Social Care Operations,Supplies and Services,Jun-21
Slough Borough Council,653,The Godolphin Junior Academy,"7,600.00",E779,DSG - Schools,Supplies and Services,Jun-21
Slough Borough Council,1385,The Langley Academy,"11,100.00",E719,DSG - Schools,Supplies and Services,Jun-21
Slough Borough Council,803300,The Langley Academy Primary,"23,370.00",E469,DSG - Schools,Supplies and Services,Jun-21
Slough Borough Council,806847,The Langley Heritage Primary Academy,"13,780.00",E369,DSG - Schools,Supplies and Services,Jun-21
Slough Borough Council,805400,The Leading Care Company,511.45,A07R,Adult Social Care Operations,Supplies and Services,Jun-21
Slough Borough Council,805400,The Leading Care Company,688.00,A07R,Adult Social Care Operations,Supplies and Services,Jun-21
Slough Borough Council,805400,The Leading Care Company,"1,960.56",M41D,Adult Social Care Operations,Supplies and Services,Jun-21
Slough Borough Council,805400,The Leading Care Company,770.31,M44C,Adult Social Care Operations,Supplies and Services,Jun-21
Slough Borough Council,805400,The Leading Care Company,"1,072.84",M44C,Adult Social Care Operations,Supplies and Services,Jun-21
Slough Borough Council,805400,The Leading Care Company,"1,783.13",M44C,Adult Social Care Operations,Supplies and Services,Jun-21
Slough Borough Council,805400,The Leading Care Company,753.22,M44C,Adult Social Care Operations,Supplies and Services,Jun-21
Slough Borough Council,805400,The Leading Care Company,643.99,M44C,Adult Social Care Operations,Supplies and Services,Jun-21
Slough Borough Council,805400,The Leading Care Company,852.75,M44C,Adult Social Care Operations,Supplies and Services,Jun-21
Slough Borough Council,805400,The Leading Care Company,"1,033.55",M44C,Adult Social Care Operations,Supplies and Services,Jun-21
Slough Borough Council,805400,The Leading Care Company,563.05,M44C,Adult Social Care Operations,Supplies and Services,Jun-21
Slough Borough Council,805400,The Leading Care Company,524.67,M44C,Adult Social Care Operations,Supplies and Services,Jun-21
Slough Borough Council,805400,The Leading Care Company,"1,093.04",M44C,Adult Social Care Operations,Supplies and Services,Jun-21
Slough Borough Council,805400,The Leading Care Company,783.83,M44C,Adult Social Care Operations,Supplies and Services,Jun-21
Slough Borough Council,805400,The Leading Care Company,679.33,M44C,Adult Social Care Operations,Supplies and Services,Jun-21
Slough Borough Council,805400,The Leading Care Company,814.50,M44C,Adult Social Care Operations,Supplies and Services,Jun-21
Slough Borough Council,805400,The Leading Care Company,"1,348.94",M44C,Adult Social Care Operations,Supplies and Services,Jun-21
Slough Borough Council,805400,The Leading Care Company,867.80,M44C,Adult Social Care Operations,Supplies and Services,Jun-21
Slough Borough Council,805400,The Leading Care Company,"1,051.75",M44C,Adult Social Care Operations,Supplies and Services,Jun-21
Slough Borough Council,805400,The Leading Care Company,"1,344.58",M44C,Adult Social Care Operations,Supplies and Services,Jun-21
Slough Borough Council,805400,The Leading Care Company,"3,800.00",M44D,Adult Social Care Operations,Supplies and Services,Jun-21
Slough Borough Council,805400,The Leading Care Company,806.14,M44D,Adult Social Care Operations,Supplies and Services,Jun-21
Slough Borough Council,805400,The Leading Care Company,"3,935.72",M44D,Adult Social Care Operations,Supplies and Services,Jun-21
Slough Borough Council,805400,The Leading Care Company,"4,506.84",M44D,Adult Social Care Operations,Supplies and Services,Jun-21
Slough Borough Council,805400,The Leading Care Company,"1,403.00",M45C,Adult Social Care Operations,Supplies and Services,Jun-21
Slough Borough Council,805400,The Leading Care Company,"1,091.79",M45C,Adult Social Care Operations,Supplies and Services,Jun-21
Slough Borough Council,805400,The Leading Care Company,646.37,M48C,Adult Social Care Operations,Supplies and Services,Jun-21
Slough Borough Council,805400,The Leading Care Company,"1,261.33",M48C,Adult Social Care Operations,Supplies and Services,Jun-21
Slough Borough Council,807781,The Livity School,"3,339.70",F551,DSG - High Needs Block,Supplies and Services,Jun-21
Slough Borough Council,3116,The Oratory Montessori Day Nursery,"14,933.77",F909,DSG - Early Years,Supplies and Services,Jun-21
Slough Borough Council,96,The Play Inspection Company Ltd,"3,525.00",D750,Direct Service Organisation (DSO),Supplies and Services,Jun-21
Slough Borough Council,2898,The Regard Partnership Ltd,"6,998.49",M26E,Adult Social Care Operations,Supplies and Services,Jun-21
Slough Borough Council,2898,The Regard Partnership Ltd,"5,571.43",M26E,Adult Social Care Operations,Supplies and Services,Jun-21
Slough Borough Council,2898,The Regard Partnership Ltd,"5,180.49",M42E,Adult Social Care Operations,Supplies and Services,Jun-21
Slough Borough Council,2898,The Regard Partnership Ltd,"4,963.89",M42E,Adult Social Care Operations,Supplies and Services,Jun-21
Slough Borough Council,2898,The Regard Partnership Ltd,"3,158.83",M42E,Adult Social Care Operations,Supplies and Services,Jun-21
Slough Borough Council,2898,The Regard Partnership Ltd,"4,871.36",M42E,Adult Social Care Operations,Supplies and Services,Jun-21
Slough Borough Council,2898,The Regard Partnership Ltd,"6,525.94",M42E,Adult Social Care Operations,Supplies and Services,Jun-21
Slough Borough Council,2898,The Regard Partnership Ltd,"6,310.29",M42E,Adult Social Care Operations,Supplies and Services,Jun-21
Slough Borough Council,2898,The Regard Partnership Ltd,"4,846.20",M42E,Adult Social Care Operations,Supplies and Services,Jun-21
Slough Borough Council,2898,The Regard Partnership Ltd,"5,007.74",M42E,Adult Social Care Operations,Supplies and Services,Jun-21
Slough Borough Council,2898,The Regard Partnership Ltd,"4,373.36",M44D,Adult Social Care Operations,Supplies and Services,Jun-21
Slough Borough Council,2898,The Regard Partnership Ltd,"5,414.23",M44E,Adult Social Care Operations,Supplies and Services,Jun-21
Slough Borough Council,821,The Westgate School,"21,300.00",E789,DSG - Schools,Supplies and Services,Jun-21
Slough Borough Council,807030,Thrive365 Ltd,"5,600.00",F210,Communities and Leisure,TP-Other Bodies,Jun-21
Slough Borough Council,806360,Tiny Turtles Daycare Nursery Ltd,660.00,F374,DSG - Early Years,Supplies and Services,Jun-21
Slough Borough Council,806360,Tiny Turtles Daycare Nursery Ltd,"12,350.95",F909,DSG - Early Years,Supplies and Services,Jun-21
Slough Borough Council,805506,TKF Training,970.00,D750,Direct Service Organisation (DSO),Indirect Employee Expenses,Jun-21
Slough Borough Council,805506,TKF Training,708.35,D750,Direct Service Organisation (DSO),Indirect Employee Expenses,Jun-21
Slough Borough Council,171,Toad Hall Nursery,"30,848.95",F909,DSG - Early Years,Supplies and Services,Jun-21
Slough Borough Council,1782,Top Mill Ltd,"4,480.00",H216,Housing (People) Services,Supplies and Services,Jun-21
Slough Borough Council,1782,Top Mill Ltd,560.00,H205,Housing (People) Services,Supplies and Services,Jun-21
Slough Borough Council,1782,Top Mill Ltd,560.00,H205,Housing (People) Services,Supplies and Services,Jun-21
Slough Borough Council,804286,TRICS Consortium Limited,"2,830.00",P192,Capital,Capital Charges,Jun-21
Slough Borough Council,803437,Trinova Systems Ltd,"2,500.00",D750,Direct Service Organisation (DSO),Supplies and Services,Jun-21
Slough Borough Council,807202,Triple P UK Limited,"9,312.38",F143,Early Years & Prevention,Indirect Employee Expenses,Jun-21
Slough Borough Council,309,Trustmarque Solutions Ltd,"17,817.00",B342,Digital and Strategic IT,Supplies and Services,Jun-21
Slough Borough Council,805771,TTS Group Ltd,"1,328.11",F283,Early Years & Prevention,Supplies and Services,Jun-21
Slough Borough Council,2889,Tudor (UK) Ltd t/a Tudor Environmental,"1,132.00",D750,Direct Service Organisation (DSO),Supplies and Services,Jun-21
Slough Borough Council,2889,Tudor (UK) Ltd t/a Tudor Environmental,615.31,D880,Direct Service Organisation (DSO),Supplies and Services,Jun-21
Slough Borough Council,807935,Two Scoop Films,"6,500.00",C322,Communities and Leisure,Supplies and Services,Jun-21
Slough Borough Council,1575,Twofold Limited,612.05,D224,Planning and Transport,Supplies and Services,Jun-21
Slough Borough Council,807414,Uniq Health Care,"7,368.00",A04L,Adult Social Care Operations,Supplies and Services,Jun-21
Slough Borough Council,807414,Uniq Health Care,"4,912.00",A04L,Adult Social Care Operations,Supplies and Services,Jun-21
Slough Borough Council,807414,Uniq Health Care,"11,052.00",A04L,Adult Social Care Operations,Supplies and Services,Jun-21
Slough Borough Council,803603,Unique Training Solutions,720.00,B409,People,Supplies and Services,Jun-21
Slough Borough Council,803603,Unique Training Solutions,"1,080.00",B409,People,Supplies and Services,Jun-21
Slough Borough Council,807494,UNITED LIVING PROPERTY SERVICES,"115,056.80",P577,Capital,Capital Charges,Jun-21
Slough Borough Council,3953,Upton Court Grammar School,"2,000.00",E799,DSG - Schools,Supplies and Services,Jun-21
Slough Borough Council,3953,Upton Court Grammar School,780.00,B297,Finance,Government Grants,Jun-21
Slough Borough Council,577,Upton Park Hotel,"1,950.00",M80F,Adult Social Care Operations,Supplies and Services,Jun-21
Slough Borough Council,577,Upton Park Hotel,520.00,M80F,Adult Social Care Operations,Supplies and Services,Jun-21
Slough Borough Council,577,Upton Park Hotel,-520.00,M80F,Adult Social Care Operations,Supplies and Services,Jun-21
Slough Borough Council,577,Upton Park Hotel,"2,015.00",M80F,Adult Social Care Operations,Supplies and Services,Jun-21
Slough Borough Council,577,Upton Park Hotel,"3,510.00",H205,Housing (People) Services,Supplies and Services,Jun-21
Slough Borough Council,577,Upton Park Hotel,"2,430.00",H205,Housing (People) Services,Supplies and Services,Jun-21
Slough Borough Council,577,Upton Park Hotel,"2,430.00",H205,Housing (People) Services,Supplies and Services,Jun-21
Slough Borough Council,577,Upton Park Hotel,"2,430.00",H205,Housing (People) Services,Supplies and Services,Jun-21
Slough Borough Council,577,Upton Park Hotel,"2,430.00",H205,Housing (People) Services,Supplies and Services,Jun-21
Slough Borough Council,577,Upton Park Hotel,"2,052.00",H205,Housing (People) Services,Supplies and Services,Jun-21
Slough Borough Council,577,Upton Park Hotel,"2,430.00",H205,Housing (People) Services,Supplies and Services,Jun-21
Slough Borough Council,577,Upton Park Hotel,"2,430.00",H205,Housing (People) Services,Supplies and Services,Jun-21
Slough Borough Council,577,Upton Park Hotel,"2,430.00",H205,Housing (People) Services,Supplies and Services,Jun-21
Slough Borough Council,577,Upton Park Hotel,"2,430.00",H205,Housing (People) Services,Supplies and Services,Jun-21
Slough Borough Council,577,Upton Park Hotel,"2,430.00",H205,Housing (People) Services,Supplies and Services,Jun-21
Slough Borough Council,577,Upton Park Hotel,"2,430.00",H205,Housing (People) Services,Supplies and Services,Jun-21
Slough Borough Council,577,Upton Park Hotel,"2,430.00",H205,Housing (People) Services,Supplies and Services,Jun-21
Slough Borough Council,577,Upton Park Hotel,"2,430.00",H205,Housing (People) Services,Supplies and Services,Jun-21
Slough Borough Council,577,Upton Park Hotel,"2,430.00",H205,Housing (People) Services,Supplies and Services,Jun-21
Slough Borough Council,577,Upton Park Hotel,"2,430.00",H205,Housing (People) Services,Supplies and Services,Jun-21
Slough Borough Council,577,Upton Park Hotel,"1,350.00",H205,Housing (People) Services,Supplies and Services,Jun-21
Slough Borough Council,577,Upton Park Hotel,"2,430.00",H205,Housing (People) Services,Supplies and Services,Jun-21
Slough Borough Council,577,Upton Park Hotel,"2,430.00",H205,Housing (People) Services,Supplies and Services,Jun-21
Slough Borough Council,577,Upton Park Hotel,"3,510.00",H205,Housing (People) Services,Supplies and Services,Jun-21
Slough Borough Council,577,Upton Park Hotel,"2,160.00",H205,Housing (People) Services,Supplies and Services,Jun-21
Slough Borough Council,577,Upton Park Hotel,"2,430.00",H205,Housing (People) Services,Supplies and Services,Jun-21
Slough Borough Council,577,Upton Park Hotel,"2,430.00",H205,Housing (People) Services,Supplies and Services,Jun-21
Slough Borough Council,577,Upton Park Hotel,"1,890.00",H205,Housing (People) Services,Supplies and Services,Jun-21
Slough Borough Council,577,Upton Park Hotel,"2,430.00",H205,Housing (People) Services,Supplies and Services,Jun-21
